Workbook

Sheet 1st Advance Payment
A1: STATE OF CALIFORNIA | J1: Purchase Authority | L1: BSCC 5227
A2: BOARD OF STATE AND COMMUNITY CORRECTIONS | J2: Purchase Order: | L2: 2455
A3: Advance Payment Invoice: BSCC 201A (Revised 06/2020)
B6: Program: | C6: ='INVOICE 1'!B5 -> Youth Reinvestment Grant | H6: Grantee: | J6: ='INVOICE 1'!B7 -> COUNTY OF SANTA CLARA
B8: Contract #: | C8: ='INVOICE 1'!B9 -> BSCC 590-19 | H8: Address | J8: 2314 N 1st St.
J9: Address Line 1
B10: Term: | C10: ='INVOICE 1'!E9 -> 2019-07-01 | D10: TO | E10: ='INVOICE 1'!G9 -> 2023-02-28 | J10: San Jose, CA 95131
J11: Address Line 2
B13: Advance Payment # | D13: 1 YRG 2019 | G13: Please Note: The California State Controller's Office will send all checks directly to the address listed in the "BSCC Vendor Data" section at the bottom of this invoice.
B15: Effective Invoice # | D15: 1
A18: Advance Payment Invoice
J19: Total Grant Award: | K19: 1000000
J20: Advance Total: | K20: 333333
J21: Grant Award Balance: | K21: =K19-K20 -> 666667
F29: BSCC USE ONLY
B31: Approved By: | C31: Kimberly Busgard | J31: BSCC Supplier Data
C32: BSCC Field Representative | I32: COUNTYOFSA-020
J33: Supplier Name
B34: Date: | C34: 2019-09-09 | I34: 12077
J35: Supplier Number

Sheet INVOICE 1
A1: STATE OF CALIFORNIA | L1: Purchase Authority | N1: BSCC 5227
A2: BOARD OF STATE AND COMMUNITY CORRECTIONS | L2: Purchase Order: | N2: 2455
A3: Financial Invoice Form: BSCC 201 (Revised 04/2020)
A5: Program: | B5: Youth Reinvestment Grant | K5: Please Note: The California State Controller's Office will send all checks directly to the address listed in the "BSCC Vendor Data" section at the bottom of this invoice.
A7: Grantee: | B7: COUNTY OF SANTA CLARA | F7: Lead Public Agency: | G7: N/A
A9: Contract #: | B9: BSCC 590-19 | D9: Term: | E9: 2019-07-01 | F9: TO | G9: 2023-02-28 | L9: Invoicing Frequency | M9: Quarterly
A11: Invoice #: | B11: 1 | D11: Reporting Period: | E11: 2019-07-01 | F11: TO | G11: 2019-09-30 | H11: Due: | I11: 2019-11-14 | L11: Final Invoice (Y/N): | M11: No
A13: Line Items | B13: Budget | E13: Prior Expenditures | H13: This Reporting Period | K13: Balance | N13: Advance Disbursements
B14: Grant Funds | C14: Match | D14: TOTAL | E14: Grant Funds | F14: Match | G14: TOTAL | H14: Grant Funds | I14: Match | J14: TOTAL | K14: Grant Funds | L14: Match | M14: TOTAL
A15: Salaries & Benefits | B15: 54221 | C15: 249371 | D15: =SUM(B15:C15) -> 303592 | E15: 0 | F15: 0 | G15: =SUM(E15:F15) -> 0 | H15: 0 | I15: 0 | J15: =SUM(H15:I15) -> 0 | K15: =B15-E15-H15 -> 54221 | L15: =C15-F15-I15 -> 249371 | M15: =SUM(K15:L15) -> 303592 | N15: 1st Advance [10/25/19]
A16: Services & Supplies | B16: 0 | C16: 0 | D16: 0 | E16: 0 | F16: 0 | G16: =SUM(E16:F16) -> 0 | H16: 0 | I16: 0 | J16: 0 | K16: 0 | L16: 0 | M16: 0 | N16: ='1st Advance Payment'!K20 -> 333333
A17: Professional Services | B17: 0 | C17: 0 | D17: 0 | E17: 0 | F17: 0 | G17: =SUM(E17:F17) -> 0 | H17: 0 | I17: 0 | J17: 0 | K17: 0 | L17: 0 | M17: 0
A18: NGO Subcontracts | B18: 900000 | C18: 0 | D18: 900000 | E18: 0 | F18: 0 | G18: 0 | H18: 0 | I18: 0 | J18: 0 | K18: 900000 | L18: 0 | M18: 900000 | N18: 2nd Advance [enter date]
A19: Equipment / Fixed Assets | B19: 0 | C19: 0 | D19: 0 | E19: 0 | F19: 0 | G19: 0 | H19: 0 | I19: 0 | J19: 0 | K19: 0 | L19: 0 | M19: 0 | N19: 0
A20: Data Collection | B20: 0 | C20: 0 | D20: 0 | E20: 0 | F20: 0 | G20: 0 | H20: 0 | I20: 0 | J20: 0 | K20: 0 | L20: 0 | M20: 0
A21: Project Evaluation | B21: 33733 | C21: 0 | D21: 33733 | E21: 0 | F21: 0 | G21: 0 | H21: 0 | I21: 0 | J21: 0 | K21: 33733 | L21: 0 | M21: 33733 | N21: 3rd Advance [enter date]
A22: Other | B22: 6625 | C22: 629 | D22: =SUM(B22:C22) -> 7254 | E22: 0 | F22: 0 | G22: 0 | H22: 0 | I22: 0 | J22: 0 | K22: 6625 | L22: 629 | M22: 7254 | N22: 0
A23: Indirect Costs | B23: 5421 | C23: 0 | D23: 5421 | E23: 0 | F23: 0 | G23: 0 | H23: 0 | I23: 0 | J23: 0 | K23: 5421 | L23: 0 | M23: 5421
A24: TOTAL | B24: =SUM(B15:B23) -> 1000000 | C24: =SUM(C15:C23) -> 250000 | D24: =SUM(D15:D23) -> 1250000 | E24: =SUM(E15:E23) -> 0 | F24: 0 | G24: 0 | H24: 0 | I24: =SUM(I15:I23) -> 0 | J24: 0 | K24: 1000000 | L24: 250000 | M24: 1250000 | N24: =SUM(N16+N19+N22) -> 333333
A26: Project Income | C26: Income reported to date | D26: =I26 -> 0 | F26: Prior allocated income | G26: 0 | H26: This Period | I26: 0 | L26: Unallocated income balance | M26: =D26-G26 -> 0
A27: 0
C28: Grant funds expended to date: | D28: =SUM(E24,H24) -> 0 | G28: Grant funds claimed this period: | H28: =H24 -> 0 | L28: Percentage Grant $$ expended to date: | M28: Percentage Grant $$ expended to date: | N28: =D28/N24 -> 0
C29: Match funds to date: | D29: =SUM(F24,I24) -> 0 | L29: % of Total Obligated Match to date: | M29: % of Total Obligated Match to date: | N29: =D29/C24 -> 0
D33: Expenditure Descriptions - Units / $ Amounts | L33: Comments
A34: Salaries & Benefits | B34: Grant Funds | C34: =H15 -> 0
B35: Match | C35: =I15 -> 0
A36: Services & Supplies | B36: Grant Funds | C36: =H16 -> 0
B37: Match | C37: =I16 -> 0
A38: Professional Services | B38: Grant Funds | C38: =H17 -> 0
B39: Match | C39: =I17 -> 0
A40: NGO Subcontracts | B40: Grant Funds | C40: =H18 -> 0
B41: Match | C41: =I18 -> 0
A42: Equipment / Fixed Assets | B42: Grant Funds | C42: =H19 -> 0
B43: Match | C43: =I19 -> 0
A44: Data Collection | B44: Grant Funds | C44: =H20 -> 0
B45: Match | C45: =I20 -> 0
A46: Project Evaluation | B46: Grant Funds | C46: =H21 -> 0
B47: Match | C47: =I21 -> 0
A48: Other | B48: Grant Funds | C48: =H22 -> 0
B49: Match | C49: =I22 -> 0
A50: Indirect Costs | B50: Grant Funds | C50: =H23 -> 0
B51: Match | C51: =I23 -> 0
A52: Project Income | C52: =I26 -> 0
A53: PERSON PREPARING REPORT | E53: AUTHORIZED FINANCIAL OFFICER | L53: BSCC Supplier Data - Internal Use Only
E54: By checking the box below, I hereby certify that I am the authorized financial officer of the herein named agency. I further certify that I have not violated any of the provisions of Section 1090 of the Government Code in incurring the expenditures reported in this invoice, nor in any other way; that Sections 1090 through 1096 of the Government Code will not be violated in any way in the expenditure of funds pursuant to this invoice; that statement of funds above is true, correct, and in accordance with program provisions in all respects; and that all expenditures submitted after the expiration date of this contract are for the purpose of substantiating obligations legally incurred during the contract period. Furthermore, by submitting this invoice, I acknowledge that it must adhere to all of the requirements in the BSCC Grant Administration Guide, including any updates to the Guide during the term of the grant agreement.
A55: Jennifer Del Bono, Director, SCCOE | L55: 12077
A56: Name, Title | L56: Supplier ID
A57: 408-453-6784 | L57: COUNTYOFSA-020
A58: Phone | L58: Supplier Name
A59: jennifer_delbono@sccoe.org | L59: 2314 N 1ST ST
A60: Email | L60: Address Line 1
A61: 2019-11-13 | L61: SAN JOSE CA 95131
A62: Date | L62: Address Line 2
E64: ThuyTrang Nguyen, Department Fiscal Officer
E65: Name, Title
E66: (408)468-1646
E67: Phone
E68: 2019-11-15
E69: Date
A71: BSCC USE ONLY
A72: Date Received: | C72: 2019-11-15 | G72: Approved By: | I72: Kimberly Bushard
I73: BSCC Field Representative

Sheet MOD 1
M1: STATE OF CALIFORNIA
A2: MODIFICATION REQUEST - (FORM BSCC 223.1 (Revised 04/20) | M2: BOARD OF STATE AND COMMUNITY CORRECTIONS
B5: Line-Item Change | F5: Budget Modification | J5: Project Income Allocation
B6: Check this box if you are modifying narrative details within a line item (or line items) but not changing the budget. | F6: Check this box if you are modifying line-item dollar amounts by moving funds from one line-item to another. | J6: Check this box if you are allocating earned project income.
A8: Important Note: You must provide a detailed justification for all modification requests. All modifications require BSCC Field Representative approval.
A10: Grantee: | B10: ='INVOICE 1'!B7 -> COUNTY OF SANTA CLARA | I10: Grant Program: | J10: ='INVOICE 1'!B5 -> Youth Reinvestment Grant
A12: Address | B12: ='1st Advance Payment'!J8 -> 2314 N 1st St. | I12: Lead Public Agency: | J12: ='INVOICE 1'!G7 -> N/A
B14: ='1st Advance Payment'!J10 -> San Jose, CA 95131
A16: Contract #: | B16: ='INVOICE 1'!B9 -> BSCC 590-19 | J16: Modification Request # | K16: 1
A18: Term: | B18: ='INVOICE 1'!E9 -> 2019-07-01 | C18: ='INVOICE 1'!F9 -> TO | D18: ='INVOICE 1'!G9 -> 2023-02-28 | J18: Effective on Invoice # | K18: 2
A20: Line Items | B20: Current Budget | E20: Available Budget | H20: Changes (+/-) | K20: Modified Budget
B21: Grant Funds | C21: Match | D21: TOTAL | E21: Grant Funds | F21: Match | G21: TOTAL | H21: Grant Funds | I21: Match | J21: TOTAL | K21: Grant Funds | L21: Match | M21: TOTAL
A22: Salaries & Benefits | B22: 54221 | C22: 249371 | D22: =SUM(B22:C22) -> 303592 | E22: ='INVOICE 1'!K15 -> 54221 | F22: ='INVOICE 1'!L15 -> 249371 | G22: =SUM(E22:F22) -> 303592 | H22: 0 | I22: 0 | J22: =SUM(H22:I22) -> 0 | K22: =SUM(B22,H22) -> 54221 | L22: 249371 | M22: =SUM(K22:L22) -> 303592
A23: Services & Supplies | B23: 0 | C23: 0 | D23: 0 | E23: ='INVOICE 1'!K16 -> 0 | F23: ='INVOICE 1'!L16 -> 0 | G23: 0 | H23: 0 | I23: 0 | J23: 0 | K23: 0 | L23: 0 | M23: 0
A24: Professional Services | B24: 0 | C24: 0 | D24: 0 | E24: ='INVOICE 1'!K17 -> 0 | F24: ='INVOICE 1'!L17 -> 0 | G24: 0 | H24: 0 | I24: 0 | J24: 0 | K24: 0 | L24: 0 | M24: 0
A25: NGO Subcontracts | B25: 900000 | C25: 0 | D25: 900000 | E25: ='INVOICE 1'!K18 -> 900000 | F25: ='INVOICE 1'!L18 -> 0 | G25: 900000 | H25: 0 | I25: 0 | J25: 0 | K25: 900000 | L25: 0 | M25: 900000
A26: Equipment / Fixed Assets | B26: 0 | C26: 0 | D26: 0 | E26: ='INVOICE 1'!K19 -> 0 | F26: ='INVOICE 1'!L19 -> 0 | G26: 0 | H26: 0 | I26: 0 | J26: 0 | K26: 0 | L26: 0 | M26: 0
A27: Data Collection | B27: 0 | C27: 0 | D27: 0 | E27: ='INVOICE 1'!K20 -> 0 | F27: ='INVOICE 1'!L20 -> 0 | G27: 0 | H27: 0 | I27: 0 | J27: 0 | K27: 0 | L27: 0 | M27: 0
A28: Project Evaluation | B28: 33733 | C28: 0 | D28: 33733 | E28: ='INVOICE 1'!K21 -> 33733 | F28: ='INVOICE 1'!L21 -> 0 | G28: 33733 | H28: 0 | I28: 0 | J28: 0 | K28: 33733 | L28: 0 | M28: 33733
A29: Other | B29: 6625 | C29: 629 | D29: 7254 | E29: ='INVOICE 1'!K22 -> 6625 | F29: ='INVOICE 1'!L22 -> 629 | G29: 7254 | H29: 0 | I29: 0 | J29: 0 | K29: 6625 | L29: 629 | M29: 7254
A30: Indirect Costs | B30: 5421 | C30: 0 | D30: 5421 | E30: ='INVOICE 1'!K23 -> 5421 | F30: ='INVOICE 1'!L23 -> 0 | G30: 5421 | H30: 0 | I30: 0 | J30: 0 | K30: 5421 | L30: 0 | M30: 5421
A31: TOTAL | B31: =SUM(B22:B30) -> 1000000 | C31: 250000 | D31: 1250000 | E31: ='INVOICE 1'!K24 -> 1000000 | F31: ='INVOICE 1'!L24 -> 250000 | G31: 1250000 | H31: 0 | I31: 0 | J31: 0 | K31: 1000000 | L31: 250000 | M31: 1250000
A33: Project Income | C33: Income reported to date | D33: 0 | F33: Prior allocated income | G33: 0 | H33: Allocating | I33: 0 | L33: Unallocated income balance | M33: =D33-I33 -> 0
A35: JUSTIFICATION FOR MODIFICATION:
A36: Alex Coronel will be added as personnel supporting the grant with administrative duties. She will be paid through June 30th, 2020 to support the grant yet the payments will not exceed $10,000. Funds will be shifted from Stephanie Tague and Jennifer Del Bono grant funds to cover the costs. Alex will support the grant process by ensuring the MOUs with the CBOs are fully executed, communicate to CBOs regarding the grant reporting requirements, schedule meetings with the oversight committee and grant partners, and support the invoice and grant reporting deadlines. Hourly rate = $54.24. Alex Coronel will be preparing the reports and invoices. `
A55: PERSON PREPARING REPORT | I55: AUTHORIZED FINANCIAL OFFICER
I56: I hereby certify that I am the authorized financial officer of the herein named agency. I further certify that I have not violated any of the provisions of Section 1090 of the Government Code in incurring the expenditures reported in this invoice, nor in any other way; that Sections 1090 through 1096 of the Government Code will not be violated in any way in the expenditure of funds pursuant to this invoice; that statement of funds above is true, correct, and in accordance with program provisions in all respects; and that all expenditures submitted after the expiration date of this contract are for the purpose of substantiating obligations legally incurred during the contract period. Furthermore, by submitting this invoice, I acknowledge that it must adhere to all of the requirements in the BSCC Grant Administration Guide, including any updates to the Guide during the term of the grant agreement.
A57: Jennifer Del Bono, Director, SCCOE
A58: Name, Title
A59: 408-453-6784
A60: Phone
A61: jennifer_delbono@sccoe.org
A62: Email
A63: 2019-11-13
A64: Date
I66: ThuyTrang Nguyen, Department Fiscal Officer
I67: Name, Title
I68: (408)468-1646
I69: Phone
I70: 2019-11-15
I71: Date
A73: BSCC USE ONLY
A74: Date Received: | C74: 2019-11-15 | H74: Approved By: | I74: Kimberly Bushard | L74: Date: | M74: 2019-11-20
I75: BSCC Field Representative

Sheet INVOICE 2
A1: STATE OF CALIFORNIA | L1: Purchase Authority | N1: BSCC 5227
A2: BOARD OF STATE AND COMMUNITY CORRECTIONS | L2: Purchase Order: | N2: 2455
A3: Financial Invoice Form: BSCC 201 (Revised 04/2020)
A5: Program: | B5: ='INVOICE 1'!B5 -> Youth Reinvestment Grant | K5: Please Note: The California State Controller's Office will send all checks directly to the address listed in the "BSCC Vendor Data" section at the bottom of this invoice.
A7: Grantee: | B7: ='INVOICE 1'!B7 -> COUNTY OF SANTA CLARA | F7: Lead Public Agency: | G7: N/A
A9: Contract #: | B9: ='INVOICE 1'!B9 -> BSCC 590-19 | D9: Term: | E9: ='INVOICE 1'!E9 -> 2019-07-01 | F9: TO | G9: ='INVOICE 1'!G9 -> 2023-02-28 | L9: Invoicing Frequency | M9: Quarterly
A11: Invoice #: | B11: 2 | D11: Reporting Period: | E11: 2019-10-01 | F11: TO | G11: 2019-12-31 | H11: Due: | I11: 0/14/2020 | L11: Final Invoice (Y/N): | M11: No
A13: Line Items | B13: Budget | E13: Prior Expenditures | H13: This Reporting Period | K13: Balance | N13: Advance Disbursements
B14: Grant Funds | C14: Match | D14: TOTAL | E14: Grant Funds | F14: Match | G14: TOTAL | H14: Grant Funds | I14: Match | J14: TOTAL | K14: Grant Funds | L14: Match | M14: TOTAL
A15: Salaries & Benefits | B15: ='INVOICE 1'!B15 -> 54221 | C15: ='INVOICE 1'!C15 -> 249371 | D15: =SUM(B15:C15) -> 303592 | E15: ='INVOICE 1'!E15+'INVOICE 1'!H15 -> 0 | F15: ='INVOICE 1'!F15+'INVOICE 1'!I15 -> 0 | G15: =SUM(E15:F15) -> 0 | H15: 0 | I15: 0 | J15: =SUM(H15:I15) -> 0 | K15: =B15-E15-H15 -> 54221 | L15: 249371 | M15: =SUM(K15:L15) -> 303592 | N15: 1st Advance [10/25/19]
A16: Services & Supplies | B16: ='INVOICE 1'!B16 -> 0 | C16: ='INVOICE 1'!C16 -> 0 | D16: 0 | E16: ='INVOICE 1'!E16+'INVOICE 1'!H16 -> 0 | F16: ='INVOICE 1'!F16+'INVOICE 1'!I16 -> 0 | G16: =SUM(E16:F16) -> 0 | H16: 0 | I16: 0 | J16: 0 | K16: 0 | L16: 0 | M16: 0 | N16: ='1st Advance Payment'!K20 -> 333333
A17: Professional Services | B17: ='INVOICE 1'!B17 -> 0 | C17: ='INVOICE 1'!C17 -> 0 | D17: 0 | E17: ='INVOICE 1'!E17+'INVOICE 1'!H17 -> 0 | F17: ='INVOICE 1'!F17+'INVOICE 1'!I17 -> 0 | G17: =SUM(E17:F17) -> 0 | H17: 0 | I17: 0 | J17: 0 | K17: 0 | L17: 0 | M17: 0
A18: NGO Subcontracts | B18: ='INVOICE 1'!B18 -> 900000 | C18: ='INVOICE 1'!C18 -> 0 | D18: 900000 | E18: ='INVOICE 1'!E18+'INVOICE 1'!H18 -> 0 | F18: ='INVOICE 1'!F18+'INVOICE 1'!I18 -> 0 | G18: 0 | H18: 0 | I18: 0 | J18: 0 | K18: 900000 | L18: 0 | M18: 900000 | N18: 2nd Advance [enter date]
A19: Equipment / Fixed Assets | B19: ='INVOICE 1'!B19 -> 0 | C19: ='INVOICE 1'!C19 -> 0 | D19: 0 | E19: ='INVOICE 1'!E19+'INVOICE 1'!H19 -> 0 | F19: ='INVOICE 1'!F19+'INVOICE 1'!I19 -> 0 | G19: 0 | H19: 0 | I19: 0 | J19: 0 | K19: 0 | L19: 0 | M19: 0 | N19: 0
A20: Data Collection | B20: ='INVOICE 1'!B20 -> 0 | C20: ='INVOICE 1'!C20 -> 0 | D20: 0 | E20: ='INVOICE 1'!E20+'INVOICE 1'!H20 -> 0 | F20: ='INVOICE 1'!F20+'INVOICE 1'!I20 -> 0 | G20: 0 | H20: 0 | I20: 0 | J20: 0 | K20: 0 | L20: 0 | M20: 0
A21: Project Evaluation | B21: ='INVOICE 1'!B21 -> 33733 | C21: ='INVOICE 1'!C21 -> 0 | D21: 33733 | E21: ='INVOICE 1'!E21+'INVOICE 1'!H21 -> 0 | F21: ='INVOICE 1'!F21+'INVOICE 1'!I21 -> 0 | G21: 0 | H21: 0 | I21: 0 | J21: 0 | K21: 33733 | L21: 0 | M21: 33733 | N21: 3rd Advance [enter date]
A22: Other | B22: ='INVOICE 1'!B22 -> 6625 | C22: ='INVOICE 1'!C22 -> 629 | D22: =SUM(B22:C22) -> 7254 | E22: ='INVOICE 1'!E22+'INVOICE 1'!H22 -> 0 | F22: ='INVOICE 1'!F22+'INVOICE 1'!I22 -> 0 | G22: 0 | H22: 0 | I22: 0 | J22: 0 | K22: 6625 | L22: 629 | M22: 7254 | N22: 0
A23: Indirect Costs | B23: ='INVOICE 1'!B23 -> 5421 | C23: ='INVOICE 1'!C23 -> 0 | D23: 5421 | E23: ='INVOICE 1'!E23+'INVOICE 1'!H23 -> 0 | F23: ='INVOICE 1'!F23+'INVOICE 1'!I23 -> 0 | G23: 0 | H23: 0 | I23: 0 | J23: 0 | K23: 5421 | L23: 0 | M23: 5421
A24: TOTAL | B24: =SUM(B15:B23) -> 1000000 | C24: =SUM(C15:C23) -> 250000 | D24: =SUM(D15:D23) -> 1250000 | E24: =SUM(E15:E23) -> 0 | F24: 0 | G24: 0 | H24: 0 | I24: =SUM(I15:I23) -> 0 | J24: 0 | K24: 1000000 | L24: 250000 | M24: 1250000 | N24: =SUM(N16+N19+N22) -> 333333
A26: Project Income | C26: Income reported to date | D26: ='INVOICE 1'!D26+'INVOICE 2'!I26 -> 0 | F26: Prior allocated income | G26: 0 | H26: This Period | I26: 0 | L26: Unallocated income balance | M26: =D26-G26 -> 0
C28: Grant funds expended to date: | D28: =SUM(E24,H24) -> 0 | G28: Grant funds claimed this period: | H28: =H24 -> 0 | M28: % total dispursed fund expended to date: | N28: =D28/N24 -> 0
C29: Match funds to date: | D29: =SUM(F24,I24) -> 0 | G29: Advance disbursments balance: | H29: =N24-D28 -> 333333 | M29: % of Total Obligated Match to date: | N29: =D29/C24 -> 0
D33: Expenditure Descriptions - Units / $ Amounts | L33: Comments
A34: Salaries & Benefits | B34: Grant Funds | C34: =H15 -> 0
B35: Match | C35: =I15 -> 0
A36: Services & Supplies | B36: Grant Funds | C36: =H16 -> 0
B37: Match | C37: =I16 -> 0
A38: Professional Services | B38: Grant Funds | C38: =H17 -> 0
B39: Match | C39: =I17 -> 0
A40: NGO Subcontracts | B40: Grant Funds | C40: =H18 -> 0
B41: Match | C41: =I18 -> 0
A42: Equipment / Fixed Assets | B42: Grant Funds | C42: =H19 -> 0
B43: Match | C43: =I19 -> 0
A44: Data Collection | B44: Grant Funds | C44: =H20 -> 0
B45: Match | C45: =I20 -> 0
A46: Project Evaluation | B46: Grant Funds | C46: =H21 -> 0
B47: Match | C47: =I21 -> 0
A48: Other | B48: Grant Funds | C48: =H22 -> 0
B49: Match | C49: =I22 -> 0
A50: Indirect Costs | B50: Grant Funds | C50: =H23 -> 0
B51: Match | C51: =I23 -> 0
A52: Project Income | C52: =I26 -> 0
A53: PERSON PREPARING REPORT | E53: AUTHORIZED FINANCIAL OFFICER | L53: BSCC Supplier Data - Internal Use Only
E54: By checking the box below, I hereby certify that I am the authorized financial officer of the herein named agency. I further certify that I have not violated any of the provisions of Section 1090 of the Government Code in incurring the expenditures reported in this invoice, nor in any other way; that Sections 1090 through 1096 of the Government Code will not be violated in any way in the expenditure of funds pursuant to this invoice; that statement of funds above is true, correct, and in accordance with program provisions in all respects; and that all expenditures submitted after the expiration date of this contract are for the purpose of substantiating obligations legally incurred during the contract period. Furthermore, by submitting this invoice, I acknowledge that it must adhere to all of the requirements in the BSCC Grant Administration Guide, including any updates to the Guide during the term of the grant agreement.
A55: KimThu Nguyen - Accountant II | L55: ='INVOICE 1'!L55:O55 -> 12077
A56: Name, Title | L56: Supplier ID
A57: 408-435-2156 | L57: ='INVOICE 1'!L57:O57 -> COUNTYOFSA-020
A58: Phone | L58: Supplier Name
A59: kimthu.nguyen@pro.scc.gov | L59: ='INVOICE 1'!L59:O59 -> 2314 N 1ST ST
A60: Email | L60: Address Line 1
A61: 2020-02-18 | L61: ='INVOICE 1'!L61:O61 -> SAN JOSE CA 95131
A62: Date | L62: Address Line 2
E64: Roseanne Rodarte, Executive Admin. Services Manager
E65: Name, Title
E66: (408)468-1658
E67: Phone
E68: 2020-02-18
E69: Date
A71: BSCC USE ONLY
A72: Date Received: | C72: 2020-02-18 | G72: Approved By: | I72: Kimberly Bushard
I73: BSCC Field Representative

Sheet INVOICE 3
A1: STATE OF CALIFORNIA | L1: Purchase Authority | N1: BSCC 5227
A2: BOARD OF STATE AND COMMUNITY CORRECTIONS | L2: Purchase Order: | N2: 2455
A3: Financial Invoice Form: BSCC 201 (Revised 04/2020)
A5: Program: | B5: ='INVOICE 1'!B5 -> Youth Reinvestment Grant | K5: Please Note: The California State Controller's Office will send all checks directly to the address listed in the "BSCC Vendor Data" section at the bottom of this invoice.
A7: Grantee: | B7: ='INVOICE 1'!B7 -> COUNTY OF SANTA CLARA | F7: Lead Public Agency: | G7: N/A
A9: Contract #: | B9: ='INVOICE 1'!B9 -> BSCC 590-19 | D9: Term: | E9: ='INVOICE 1'!E9 -> 2019-07-01 | F9: TO | G9: ='INVOICE 1'!G9 -> 2023-02-28 | L9: Invoicing Frequency | M9: Quarterly
A11: Invoice #: | B11: 3 | D11: Reporting Period: | E11: 2020-01-01 | F11: TO | G11: 2020-03-31 | H11: Due: | I11: 2020-05-15 | L11: Final Invoice (Y/N): | M11: No
A13: Line Items | B13: Budget | E13: Prior Expenditures | H13: This Reporting Period | K13: Balance | N13: Advance Disbursements
B14: Grant Funds | C14: Match | D14: TOTAL | E14: Grant Funds | F14: Match | G14: TOTAL | H14: Grant Funds | I14: Match | J14: TOTAL | K14: Grant Funds | L14: Match | M14: TOTAL
A15: Salaries & Benefits | B15: ='INVOICE 2'!B15 -> 54221 | C15: ='INVOICE 2'!C15 -> 249371 | D15: =SUM(B15:C15) -> 303592 | E15: ='INVOICE 2'!E15+'INVOICE 2'!H15 -> 0 | F15: ='INVOICE 2'!F15+'INVOICE 2'!I15 -> 0 | G15: =SUM(E15:F15) -> 0 | H15: 3240 | I15: 550 | J15: =SUM(H15:I15) -> 3790 | K15: =B15-E15-H15 -> 50981 | L15: 248821 | M15: =SUM(K15:L15) -> 299802 | N15: 1st Advance [10/25/19]
A16: Services & Supplies | B16: ='INVOICE 2'!B16 -> 0 | C16: ='INVOICE 2'!C16 -> 0 | D16: 0 | E16: ='INVOICE 2'!E16+'INVOICE 2'!H16 -> 0 | F16: ='INVOICE 2'!F16+'INVOICE 2'!I16 -> 0 | G16: =SUM(E16:F16) -> 0 | H16: 0 | I16: 0 | J16: 0 | K16: 0 | L16: 0 | M16: 0 | N16: ='1st Advance Payment'!K20 -> 333333
A17: Professional Services | B17: ='INVOICE 2'!B17 -> 0 | C17: ='INVOICE 2'!C17 -> 0 | D17: 0 | E17: ='INVOICE 2'!E17+'INVOICE 2'!H17 -> 0 | F17: ='INVOICE 2'!F17+'INVOICE 2'!I17 -> 0 | G17: =SUM(E17:F17) -> 0 | H17: 0 | I17: 0 | J17: 0 | K17: 0 | L17: 0 | M17: 0
A18: NGO Subcontracts | B18: ='INVOICE 2'!B18 -> 900000 | C18: ='INVOICE 2'!C18 -> 0 | D18: 900000 | E18: ='INVOICE 2'!E18+'INVOICE 2'!H18 -> 0 | F18: ='INVOICE 2'!F18+'INVOICE 2'!I18 -> 0 | G18: 0 | H18: 2500 | I18: 0 | J18: 2500 | K18: 897500 | L18: 0 | M18: 897500 | N18: 2nd Advance [enter date]
A19: Equipment / Fixed Assets | B19: ='INVOICE 2'!B19 -> 0 | C19: ='INVOICE 2'!C19 -> 0 | D19: 0 | E19: ='INVOICE 2'!E19+'INVOICE 2'!H19 -> 0 | F19: ='INVOICE 2'!F19+'INVOICE 2'!I19 -> 0 | G19: 0 | H19: 0 | I19: 0 | J19: 0 | K19: 0 | L19: 0 | M19: 0 | N19: 0
A20: Data Collection | B20: ='INVOICE 2'!B20 -> 0 | C20: ='INVOICE 2'!C20 -> 0 | D20: 0 | E20: ='INVOICE 2'!E20+'INVOICE 2'!H20 -> 0 | F20: ='INVOICE 2'!F20+'INVOICE 2'!I20 -> 0 | G20: 0 | H20: 0 | I20: 0 | J20: 0 | K20: 0 | L20: 0 | M20: 0
A21: Project Evaluation | B21: ='INVOICE 2'!B21 -> 33733 | C21: ='INVOICE 2'!C21 -> 0 | D21: 33733 | E21: ='INVOICE 2'!E21+'INVOICE 2'!H21 -> 0 | F21: ='INVOICE 2'!F21+'INVOICE 2'!I21 -> 0 | G21: 0 | H21: 0 | I21: 0 | J21: 0 | K21: 33733 | L21: 0 | M21: 33733 | N21: 3rd Advance [enter date]
A22: Other | B22: ='INVOICE 2'!B22 -> 6625 | C22: ='INVOICE 2'!C22 -> 629 | D22: =SUM(B22:C22) -> 7254 | E22: ='INVOICE 2'!E22+'INVOICE 2'!H22 -> 0 | F22: ='INVOICE 2'!F22+'INVOICE 2'!I22 -> 0 | G22: 0 | H22: 156 | I22: 0 | J22: 156 | K22: 6469 | L22: 629 | M22: 7098 | N22: 0
A23: Indirect Costs | B23: ='INVOICE 2'!B23 -> 5421 | C23: ='INVOICE 2'!C23 -> 0 | D23: 5421 | E23: ='INVOICE 2'!E23+'INVOICE 2'!H23 -> 0 | F23: ='INVOICE 2'!F23+'INVOICE 2'!I23 -> 0 | G23: 0 | H23: 135 | I23: 0 | J23: 135 | K23: 5286 | L23: 0 | M23: 5286
A24: TOTAL | B24: =SUM(B15:B23) -> 1000000 | C24: =SUM(C15:C23) -> 250000 | D24: =SUM(D15:D23) -> 1250000 | E24: =SUM(E15:E23) -> 0 | F24: 0 | G24: 0 | H24: 6031 | I24: =SUM(I15:I23) -> 550 | J24: 6581 | K24: 993969 | L24: 249450 | M24: 1243419 | N24: =SUM(N16+N19+N22) -> 333333
A26: Project Income | C26: Income reported to date | D26: ='INVOICE 1'!D26+'INVOICE 3'!I26 -> 0 | F26: Prior allocated income | G26: 0 | H26: This Period | I26: 0 | L26: Unallocated income balance | M26: =D26-G26 -> 0
C28: Grant funds expended to date: | D28: =SUM(E24,H24) -> 6031 | G28: Grant funds claimed this period: | H28: =H24 -> 6031 | M28: % total dispursed fund expended to date: | N28: =D28/N24 -> 0.01809301809
C29: Match funds to date: | D29: =SUM(F24,I24) -> 550 | G29: Advance disbursments balance: | H29: =N24-D28 -> 327302 | M29: % of Total Obligated Match to date: | N29: =D29/C24 -> 0.0022
D33: Expenditure Descriptions - Units / $ Amounts | L33: Comments
A34: Salaries & Benefits | B34: Grant Funds | C34: =H15 -> 3240 | D34: I project personnel (Alex Coronel*): 12h @ 46.77 + benefits = 608.13, 41h @ 50.60 + benefits = 2300.87, and 5.75h @ 53.00 + benefits = 330.71, total = 3,239.71 *Alex Coronel added as project personnnel with a budget modification. | L34: see attached document #1,2,3 for salary & beneifts breakdown, documents attached
B35: Match | C35: =I15 -> 550 | D35: Stephanie Tague - Brief Intervention Facilitation, 6hrs @ 91.67 (benefits included) = 550.02 | L35: see attached document # 4 for salary & beneifts breakdown, documents attached
A36: Services & Supplies | B36: Grant Funds | C36: =H16 -> 0
B37: Match | C37: =I16 -> 0
A38: Professional Services | B38: Grant Funds | C38: =H17 -> 0
B39: Match | C39: =I17 -> 0
A40: NGO Subcontracts | B40: Grant Funds | C40: =H18 -> 2500 | D40: NGO Subcontract Invoice - Community Agency for Resources, Advocacy and Services (CARAS), $2500 in Salary + Benefits for case management | L40: see attached document # 3
B41: Match | C41: =I18 -> 0
A42: Equipment / Fixed Assets | B42: Grant Funds | C42: =H19 -> 0
B43: Match | C43: =I19 -> 0
A44: Data Collection | B44: Grant Funds | C44: =H20 -> 0
B45: Match | C45: =I20 -> 0
A46: Project Evaluation | B46: Grant Funds | C46: =H21 -> 0
B47: Match | C47: =I21 -> 0
A48: Other | B48: Grant Funds | C48: =H22 -> 156 | D48: Travel to BSCC Orientation Meeting | L48: see attached document # 5
B49: Match | C49: =I22 -> 0
A50: Indirect Costs | B50: Grant Funds | C50: =H23 -> 135 | D50: Indirect cost fee at 9.74% | L50: see attached documents # 1, 2
B51: Match | C51: =I23 -> 0
A52: Project Income | C52: =I26 -> 0
A53: PERSON PREPARING REPORT | E53: AUTHORIZED FINANCIAL OFFICER | L53: BSCC Supplier Data - Internal Use Only
E54: By checking the box below, I hereby certify that I am the authorized financial officer of the herein named agency. I further certify that I have not violated any of the provisions of Section 1090 of the Government Code in incurring the expenditures reported in this invoice, nor in any other way; that Sections 1090 through 1096 of the Government Code will not be violated in any way in the expenditure of funds pursuant to this invoice; that statement of funds above is true, correct, and in accordance with program provisions in all respects; and that all expenditures submitted after the expiration date of this contract are for the purpose of substantiating obligations legally incurred during the contract period. Furthermore, by submitting this invoice, I acknowledge that it must adhere to all of the requirements in the BSCC Grant Administration Guide, including any updates to the Guide during the term of the grant agreement.
A55: Alex Coronel, Administrative Data Technician | L55: ='INVOICE 1'!L55:O55 -> 12077
A56: Name, Title | L56: Supplier ID
A57: (408) 453-4347 | L57: ='INVOICE 1'!L57:O57 -> COUNTYOFSA-020
A58: Phone | L58: Supplier Name
A59: acoronel@sccoe.org | L59: ='INVOICE 1'!L59:O59 -> 2314 N 1ST ST
A60: Email | L60: Address Line 1
A61: 2020-05-28 | L61: ='INVOICE 1'!L61:O61 -> SAN JOSE CA 95131
A62: Date | L62: Address Line 2
E64: ThuyTrang Nguyen - Department Fiscal Officer
E65: Name, Title
E66: 408-468-1658
E67: Phone
E68: 2020-09-11
E69: Date
A71: BSCC USE ONLY
A72: Date Received: | C72: 2020-10-13 | G72: Approved By: | I72: Kimberly Bushard
I73: BSCC Field Representative

Sheet MOD 2
M1: STATE OF CALIFORNIA
A2: MODIFICATION REQUEST - (FORM BSCC 223.1 (Revised 04/20) | M2: BOARD OF STATE AND COMMUNITY CORRECTIONS
B5: Line-Item Change | F5: Budget Modification | J5: Project Income Allocation
B6: Check this box if you are modifying narrative details within a line item (or line items) but not changing the budget. | F6: Check this box if you are modifying line-item dollar amounts by moving funds from one line-item to another. | J6: Check this box if you are allocating earned project income.
A8: Important Note: You must provide a detailed justification for all modification requests. All modifications require BSCC Field Representative approval.
A10: Grantee: | B10: COUNTY OF SANTA CLARA | I10: Grant Program: | J10: ='INVOICE 1'!B5 -> Youth Reinvestment Grant
A12: Address | B12: 2314 N 1ST ST | I12: Lead Public Agency: | J12: ='INVOICE 1'!G7 -> N/A
B14: SAN JOSE CA 95131
A16: Contract #: | B16: ='INVOICE 1'!B9 -> BSCC 590-19 | J16: Modification Request # | K16: 2
A18: Term: | B18: ='INVOICE 1'!E9 -> 2019-07-01 | C18: ='INVOICE 1'!F9 -> TO | D18: ='INVOICE 1'!G9 -> 2023-02-28 | J18: Effective on Invoice # | K18: 4
A20: Line Items | B20: Current Budget | E20: Available Budget | H20: Changes (+/-) | K20: Modified Budget
B21: Grant Funds | C21: Match | D21: TOTAL | E21: Grant Funds | F21: Match | G21: TOTAL | H21: Grant Funds | I21: Match | J21: TOTAL | K21: Grant Funds | L21: Match | M21: TOTAL
A22: Salaries & Benefits | B22: ='INVOICE 1'!B15 -> 54221 | C22: ='INVOICE 1'!C15 -> 249371 | D22: =SUM(B22:C22) -> 303592 | E22: ='INVOICE 2'!K15 -> 54221 | F22: ='INVOICE 2'!L15 -> 249371 | G22: =SUM(E22:F22) -> 303592 | I22: 0 | J22: =SUM(H22:I22) -> 0 | K22: =SUM(B22,H22) -> 54221 | L22: 249371 | M22: =SUM(K22:L22) -> 303592
A23: Services & Supplies | B23: ='INVOICE 1'!B16 -> 0 | C23: ='INVOICE 1'!C16 -> 0 | D23: 0 | E23: ='INVOICE 2'!K16 -> 0 | F23: ='INVOICE 2'!L16 -> 0 | G23: 0 | H23: 0 | I23: 0 | J23: 0 | K23: 0 | L23: 0 | M23: 0
A24: Professional Services | B24: ='INVOICE 1'!B17 -> 0 | C24: ='INVOICE 1'!C17 -> 0 | D24: 0 | E24: ='INVOICE 2'!K17 -> 0 | F24: ='INVOICE 2'!L17 -> 0 | G24: 0 | H24: 0 | I24: 0 | J24: 0 | K24: 0 | L24: 0 | M24: 0
A25: NGO Subcontracts | B25: ='INVOICE 1'!B18 -> 900000 | C25: ='INVOICE 1'!C18 -> 0 | D25: 900000 | E25: ='INVOICE 2'!K18 -> 900000 | F25: ='INVOICE 2'!L18 -> 0 | G25: 900000 | H25: 0 | I25: 0 | J25: 0 | K25: 900000 | L25: 0 | M25: 900000
A26: Equipment / Fixed Assets | B26: ='INVOICE 1'!B19 -> 0 | C26: ='INVOICE 1'!C19 -> 0 | D26: 0 | E26: ='INVOICE 2'!K19 -> 0 | F26: ='INVOICE 2'!L19 -> 0 | G26: 0 | H26: 0 | I26: 0 | J26: 0 | K26: 0 | L26: 0 | M26: 0
A27: Data Collection | B27: ='INVOICE 1'!B20 -> 0 | C27: ='INVOICE 1'!C20 -> 0 | D27: 0 | E27: ='INVOICE 2'!K20 -> 0 | F27: ='INVOICE 2'!L20 -> 0 | G27: 0 | H27: 0 | I27: 0 | J27: 0 | K27: 0 | L27: 0 | M27: 0
A28: Project Evaluation | B28: ='INVOICE 1'!B21 -> 33733 | C28: ='INVOICE 1'!C21 -> 0 | D28: 33733 | E28: ='INVOICE 2'!K21 -> 33733 | F28: ='INVOICE 2'!L21 -> 0 | G28: 33733 | H28: 0 | I28: 0 | J28: 0 | K28: 33733 | L28: 0 | M28: 33733
A29: Other | B29: ='INVOICE 1'!B22 -> 6625 | C29: ='INVOICE 1'!C22 -> 629 | D29: 7254 | E29: ='INVOICE 2'!K22 -> 6625 | F29: ='INVOICE 2'!L22 -> 629 | G29: 7254 | H29: 0 | I29: 0 | J29: 0 | K29: 6625 | L29: 629 | M29: 7254
A30: Indirect Costs | B30: ='INVOICE 1'!B23 -> 5421 | C30: ='INVOICE 1'!C23 -> 0 | D30: 5421 | E30: ='INVOICE 2'!K23 -> 5421 | F30: ='INVOICE 2'!L23 -> 0 | G30: 5421 | H30: 0 | I30: 0 | J30: 0 | K30: 5421 | L30: 0 | M30: 5421
A31: TOTAL | B31: =SUM(B22:B30) -> 1000000 | C31: 250000 | D31: 1250000 | E31: 1000000 | F31: 250000 | G31: 1250000 | H31: 0 | I31: 0 | J31: 0 | K31: 1000000 | L31: 250000 | M31: 1250000
A33: Project Income | C33: Income reported to date | D33: 0 | F33: Prior allocated income | G33: 0 | H33: Allocating | I33: 0 | L33: Unallocated income balance | M33: =D33-I33 -> 0
A35: JUSTIFICATION FOR MODIFICATION:
A36: Due to Corona Virus relief efforts, the Santa Clara County Office of Education's Safe and Healthy Schools Director, Jennifer Del Bono, has requested that we are approved to calculate her hours as match hours under the grant.The request was to identify the hours/funding that Christina Arpante was originally allocated in the budget for match dollars, to Jennifer Del Bono, as Christina is designated to COVID-19 relief. The request has been submitted to BSCC. The amount of Match funding that is being adjusted is 7.44% of the total match funding ($249,371), and 1.48% of the overall grant dollars (State + Match funding). Once the budet modification is approved via BSCC the Match hours Jennifer is contributing will be requested in the Q4 submission. Jennifer's Match Contribution: .1163 FTE @ $159,463 =$18,555
A55: PERSON PREPARING REPORT | I55: AUTHORIZED FINANCIAL OFFICER
I56: I hereby certify that I am the authorized financial officer of the herein named agency. I further certify that I have not violated any of the provisions of Section 1090 of the Government Code in incurring the expenditures reported in this invoice, nor in any other way; that Sections 1090 through 1096 of the Government Code will not be violated in any way in the expenditure of funds pursuant to this invoice; that statement of funds above is true, correct, and in accordance with program provisions in all respects; and that all expenditures submitted after the expiration date of this contract are for the purpose of substantiating obligations legally incurred during the contract period. Furthermore, by submitting this invoice, I acknowledge that it must adhere to all of the requirements in the BSCC Grant Administration Guide, including any updates to the Guide during the term of the grant agreement.
A57: Alex Coronel, Administrative Data Technician
A58: Name, Title
A59: (408) 453-4347
A60: Phone
A61: acoronel@sccoe.org
A62: Email
A63: 2020-05-28
A64: Date
I66: ThuyTrang Nguyen, Department Fiscal Officer
I67: Name, Title
I68: (408)468-1646
I69: Phone
I70: 2020-06-10
I71: Date
A73: BSCC USE ONLY
A74: Date Received: | C74: 2020-06-10 | H74: Approved By: | I74: Kimberly Bushard | L74: Date:
I75: BSCC Field Representative

Sheet INVOICE 4
A1: STATE OF CALIFORNIA | L1: Purchase Authority | N1: BSCC 5227
A2: BOARD OF STATE AND COMMUNITY CORRECTIONS | L2: Purchase Order: | N2: 2455
A3: Financial Invoice Form: BSCC 201 (Revised 04/2020)
A5: Program: | B5: ='INVOICE 1'!B5 -> Youth Reinvestment Grant | K5: Please Note: The California State Controller's Office will send all checks directly to the address listed in the "BSCC Vendor Data" section at the bottom of this invoice.
A7: Grantee: | B7: ='INVOICE 1'!B7 -> COUNTY OF SANTA CLARA | F7: Lead Public Agency: | G7: N/A
A9: Contract #: | B9: ='INVOICE 1'!B9 -> BSCC 590-19 | D9: Term: | E9: ='INVOICE 1'!E9 -> 2019-07-01 | F9: TO | G9: ='INVOICE 1'!G9 -> 2023-02-28 | L9: Invoicing Frequency | M9: Quarterly
A11: Invoice #: | B11: 4 | D11: Reporting Period: | E11: 2020-04-01 | F11: TO | G11: 2020-06-30 | H11: Due: | I11: 2020-08-14 | L11: Final Invoice (Y/N): | M11: No
A13: Line Items | B13: Budget | E13: Prior Expenditures | H13: This Reporting Period | K13: Balance | N13: Advance Disbursements
B14: Grant Funds | C14: Match | D14: TOTAL | E14: Grant Funds | F14: Match | G14: TOTAL | H14: Grant Funds | I14: Match | J14: TOTAL | K14: Grant Funds | L14: Match | M14: TOTAL
A15: Salaries & Benefits | B15: ='INVOICE 3'!B15 -> 54221 | C15: ='INVOICE 3'!C15 -> 249371 | D15: =SUM(B15:C15) -> 303592 | E15: ='INVOICE 3'!E15+'INVOICE 3'!H15 -> 3240 | F15: ='INVOICE 3'!F15+'INVOICE 3'!I15 -> 550 | G15: =SUM(E15:F15) -> 3790 | H15: 1926 | I15: =64.5*99.8 -> 6437.1 | J15: =SUM(H15:I15) -> 8363.1 | K15: =B15-E15-H15 -> 49055 | L15: 242383.9 | M15: =SUM(K15:L15) -> 291438.9 | N15: 1st Advance [10/25/19]
A16: Services & Supplies | B16: ='INVOICE 3'!B16 -> 0 | C16: ='INVOICE 3'!C16 -> 0 | D16: 0 | E16: ='INVOICE 3'!E16+'INVOICE 3'!H16 -> 0 | F16: ='INVOICE 3'!F16+'INVOICE 3'!I16 -> 0 | G16: =SUM(E16:F16) -> 0 | H16: 0 | I16: 0 | J16: 0 | K16: 0 | L16: 0 | M16: 0 | N16: ='1st Advance Payment'!K20 -> 333333
A17: Professional Services | B17: ='INVOICE 3'!B17 -> 0 | C17: ='INVOICE 3'!C17 -> 0 | D17: 0 | E17: ='INVOICE 3'!E17+'INVOICE 3'!H17 -> 0 | F17: ='INVOICE 3'!F17+'INVOICE 3'!I17 -> 0 | G17: =SUM(E17:F17) -> 0 | H17: 0 | I17: 0 | J17: 0 | K17: 0 | L17: 0 | M17: 0
A18: NGO Subcontracts | B18: ='INVOICE 3'!B18 -> 900000 | C18: ='INVOICE 3'!C18 -> 0 | D18: 900000 | E18: ='INVOICE 3'!E18+'INVOICE 3'!H18 -> 2500 | F18: ='INVOICE 3'!F18+'INVOICE 3'!I18 -> 0 | G18: 2500 | H18: 86580 | I18: 0 | J18: 86580 | K18: 810920 | L18: 0 | M18: 810920 | N18: 2nd Advance [enter date]
A19: Equipment / Fixed Assets | B19: ='INVOICE 3'!B19 -> 0 | C19: ='INVOICE 3'!C19 -> 0 | D19: 0 | E19: ='INVOICE 3'!E19+'INVOICE 3'!H19 -> 0 | F19: ='INVOICE 3'!F19+'INVOICE 3'!I19 -> 0 | G19: 0 | H19: 0 | I19: 0 | J19: 0 | K19: 0 | L19: 0 | M19: 0 | N19: 0
A20: Data Collection | B20: ='INVOICE 3'!B20 -> 0 | C20: ='INVOICE 3'!C20 -> 0 | D20: 0 | E20: ='INVOICE 3'!E20+'INVOICE 3'!H20 -> 0 | F20: ='INVOICE 3'!F20+'INVOICE 3'!I20 -> 0 | G20: 0 | H20: 0 | I20: 0 | J20: 0 | K20: 0 | L20: 0 | M20: 0
A21: Project Evaluation | B21: ='INVOICE 3'!B21 -> 33733 | C21: ='INVOICE 3'!C21 -> 0 | D21: 33733 | E21: ='INVOICE 3'!E21+'INVOICE 3'!H21 -> 0 | F21: ='INVOICE 3'!F21+'INVOICE 3'!I21 -> 0 | G21: 0 | H21: 0 | I21: 0 | J21: 0 | K21: 33733 | L21: 0 | M21: 33733 | N21: 3rd Advance [enter date]
A22: Other | B22: ='INVOICE 3'!B22 -> 6625 | C22: ='INVOICE 3'!C22 -> 629 | D22: =SUM(B22:C22) -> 7254 | E22: ='INVOICE 3'!E22+'INVOICE 3'!H22 -> 156 | F22: ='INVOICE 3'!F22+'INVOICE 3'!I22 -> 0 | G22: 156 | H22: 0 | I22: 0 | J22: 0 | K22: 6469 | L22: 629 | M22: 7098 | N22: 0
A23: Indirect Costs | B23: ='INVOICE 3'!B23 -> 5421 | C23: ='INVOICE 3'!C23 -> 0 | D23: 5421 | E23: ='INVOICE 3'!E23+'INVOICE 3'!H23 -> 135 | F23: ='INVOICE 3'!F23+'INVOICE 3'!I23 -> 0 | G23: 135 | H23: 368 | I23: 0 | J23: 368 | K23: 4918 | L23: 0 | M23: 4918
A24: TOTAL | B24: =SUM(B15:B23) -> 1000000 | C24: =SUM(C15:C23) -> 250000 | D24: =SUM(D15:D23) -> 1250000 | E24: =SUM(E15:E23) -> 6031 | F24: 550 | G24: 6581 | H24: 88874 | I24: =SUM(I15:I23) -> 6437.1 | J24: 95311.1 | K24: 905095 | L24: 243012.9 | M24: 1148107.9 | N24: =SUM(N16+N19+N22) -> 333333
A26: Project Income | C26: Income reported to date | D26: ='INVOICE 1'!D26+'INVOICE 4'!I26 -> 0 | F26: Prior allocated income | G26: 0 | H26: This Period | I26: 0 | L26: Unallocated income balance | M26: =D26-G26 -> 0
C28: Grant funds expended to date: | D28: =SUM(E24,H24) -> 94905 | G28: Grant funds claimed this period: | H28: =H24 -> 88874 | M28: % total dispursed fund expended to date: | N28: =D28/N24 -> 0.2847152847
C29: Match funds to date: | D29: =SUM(F24,I24) -> 6987.1 | G29: Advance disbursments balance: | H29: =N24-D28 -> 238428 | M29: % of Total Obligated Match to date: | N29: =D29/C24 -> 0.0279484
D33: Expenditure Descriptions - Units / $ Amounts | L33: Comments
A34: Salaries & Benefits | B34: Grant Funds | C34: =H15 -> 1926 | D34: 1 project personnel: 33.5 hours X$53/hr=$1,775.50 + benefits 8.5%= $1,926
B35: Match | C35: =I15 -> 6437.1 | D35: Jennifer Del Bono - Q3 & Q4, totalling 64.5 hours X 99.80/hr =$6,437.10 (benefits included in the hourly rate)
A36: Services & Supplies | B36: Grant Funds | C36: =H16 -> 0
B37: Match | C37: =I16 -> 0
A38: Professional Services | B38: Grant Funds | C38: =H17 -> 0
B39: Match | C39: =I17 -> 0
A40: NGO Subcontracts | B40: Grant Funds | C40: =H18 -> 86580 | D40: NGO Subcontracts: 3 partnering NGOs staff salary + benefits; ConXion ($18,734.43); Living Above the Influence ($48,800); Community Agency for Resources, Advocacy, and Services ($19,046.30)
B41: Match | C41: =I18 -> 0
A42: Equipment / Fixed Assets | B42: Grant Funds | C42: =H19 -> 0
B43: Match | C43: =I19 -> 0
A44: Data Collection | B44: Grant Funds | C44: =H20 -> 0
B45: Match | C45: =I20 -> 0
A46: Project Evaluation | B46: Grant Funds | C46: =H21 -> 0
B47: Match | C47: =I21 -> 0
A48: Other | B48: Grant Funds | C48: =H22 -> 0
B49: Match | C49: =I22 -> 0
A50: Indirect Costs | B50: Grant Funds | C50: =H23 -> 368 | D50: 9.74% of Salaries & Bendfits of March, May , and June 2020 invoices
B51: Match | C51: =I23 -> 0
A52: Project Income | C52: =I26 -> 0
A53: PERSON PREPARING REPORT | E53: AUTHORIZED FINANCIAL OFFICER | L53: BSCC Supplier Data - Internal Use Only
E54: By checking the box below, I hereby certify that I am the authorized financial officer of the herein named agency. I further certify that I have not violated any of the provisions of Section 1090 of the Government Code in incurring the expenditures reported in this invoice, nor in any other way; that Sections 1090 through 1096 of the Government Code will not be violated in any way in the expenditure of funds pursuant to this invoice; that statement of funds above is true, correct, and in accordance with program provisions in all respects; and that all expenditures submitted after the expiration date of this contract are for the purpose of substantiating obligations legally incurred during the contract period. Furthermore, by submitting this invoice, I acknowledge that it must adhere to all of the requirements in the BSCC Grant Administration Guide, including any updates to the Guide during the term of the grant agreement.
A55: Alex Coronel, Admin Data Tech | L55: ='INVOICE 1'!L55:O55 -> 12077
A56: Name, Title | L56: Supplier ID
A57: 408-453-4347 | L57: ='INVOICE 1'!L57:O57 -> COUNTYOFSA-020
A58: Phone | L58: Supplier Name
A59: acoronel@sccoe.org | L59: ='INVOICE 1'!L59:O59 -> 2314 N 1ST ST
A60: Email | L60: Address Line 1
A61: 2020-08-21 | L61: ='INVOICE 1'!L61:O61 -> SAN JOSE CA 95131
A62: Date | L62: Address Line 2
E64: ThuyTrang Nguyen - Department Fiscal Officer
E65: Name, Title
E66: (408)468-1646
E67: Phone
E68: 2020-08-21
E69: Date
A71: BSCC USE ONLY
A72: Date Received: | C72: 2020-10-13 | G72: Approved By: | I72: Eddie Escobar
I73: BSCC Field Representative

Sheet MOD 3
M1: STATE OF CALIFORNIA
A2: MODIFICATION REQUEST - (FORM BSCC 223.1 (Revised 04/20) | M2: BOARD OF STATE AND COMMUNITY CORRECTIONS
B5: Line-Item Change | F5: Budget Modification | J5: Project Income Allocation
B6: Check this box if you are modifying narrative details within a line item (or line items) but not changing the budget. | F6: Check this box if you are modifying line-item dollar amounts by moving funds from one line-item to another. | J6: Check this box if you are allocating earned project income.
A8: Important Note: You must provide a detailed justification for all modification requests. All modifications require BSCC Field Representative approval.
A10: Grantee: | B10: ='INVOICE 1'!B7 -> COUNTY OF SANTA CLARA | I10: Grant Program: | J10: ='INVOICE 1'!B5 -> Youth Reinvestment Grant
A12: Address | B12: 2314 N 1ST ST | I12: Lead Public Agency: | J12: ='INVOICE 1'!G7 -> N/A
B14: SAN JOSE CA 95131
A16: Contract #: | B16: ='INVOICE 1'!B9 -> BSCC 590-19 | J16: Modification Request # | K16: 3
A18: Term: | B18: ='INVOICE 1'!E9 -> 2019-07-01 | C18: ='INVOICE 1'!F9 -> TO | D18: ='INVOICE 1'!G9 -> 2023-02-28 | J18: Effective on Invoice # | K18: 5
A20: Line Items | B20: Current Budget | E20: Available Budget | H20: Changes (+/-) | K20: Modified Budget
B21: Grant Funds | C21: Match | D21: TOTAL | E21: Grant Funds | F21: Match | G21: TOTAL | H21: Grant Funds | I21: Match | J21: TOTAL | K21: Grant Funds | L21: Match | M21: TOTAL
A22: Salaries & Benefits | B22: ='INVOICE 1'!B15 -> 54221 | C22: ='INVOICE 1'!C15 -> 249371 | D22: =SUM(B22:C22) -> 303592 | E22: ='INVOICE 2'!K15 -> 54221 | F22: ='INVOICE 2'!L15 -> 249371 | G22: =SUM(E22:F22) -> 303592 | H22: 0 | I22: 0 | J22: =SUM(H22:I22) -> 0 | K22: =SUM(B22,H22) -> 54221 | L22: 249371 | M22: =SUM(K22:L22) -> 303592
A23: Services & Supplies | B23: ='INVOICE 1'!B16 -> 0 | C23: ='INVOICE 1'!C16 -> 0 | D23: 0 | E23: ='INVOICE 2'!K16 -> 0 | F23: ='INVOICE 2'!L16 -> 0 | G23: 0 | H23: 0 | I23: 0 | J23: 0 | K23: 0 | L23: 0 | M23: 0
A24: Professional Services | B24: ='INVOICE 1'!B17 -> 0 | C24: ='INVOICE 1'!C17 -> 0 | D24: 0 | E24: ='INVOICE 2'!K17 -> 0 | F24: ='INVOICE 2'!L17 -> 0 | G24: 0 | H24: 0 | I24: 0 | J24: 0 | K24: 0 | L24: 0 | M24: 0
A25: NGO Subcontracts | B25: ='INVOICE 1'!B18 -> 900000 | C25: ='INVOICE 1'!C18 -> 0 | D25: 900000 | E25: ='INVOICE 2'!K18 -> 900000 | F25: ='INVOICE 2'!L18 -> 0 | G25: 900000 | H25: 0 | I25: 0 | J25: 0 | K25: 900000 | L25: 0 | M25: 900000
A26: Equipment / Fixed Assets | B26: ='INVOICE 1'!B19 -> 0 | C26: ='INVOICE 1'!C19 -> 0 | D26: 0 | E26: ='INVOICE 2'!K19 -> 0 | F26: ='INVOICE 2'!L19 -> 0 | G26: 0 | H26: 0 | I26: 0 | J26: 0 | K26: 0 | L26: 0 | M26: 0
A27: Data Collection | B27: ='INVOICE 1'!B20 -> 0 | C27: ='INVOICE 1'!C20 -> 0 | D27: 0 | E27: ='INVOICE 2'!K20 -> 0 | F27: ='INVOICE 2'!L20 -> 0 | G27: 0 | H27: 0 | I27: 0 | J27: 0 | K27: 0 | L27: 0 | M27: 0
A28: Project Evaluation | B28: ='INVOICE 1'!B21 -> 33733 | C28: ='INVOICE 1'!C21 -> 0 | D28: 33733 | E28: ='INVOICE 2'!K21 -> 33733 | F28: ='INVOICE 2'!L21 -> 0 | G28: 33733 | H28: 0 | I28: 0 | J28: 0 | K28: 33733 | L28: 0 | M28: 33733
A29: Other | B29: ='INVOICE 1'!B22 -> 6625 | C29: ='INVOICE 1'!C22 -> 629 | D29: 7254 | E29: ='INVOICE 2'!K22 -> 6625 | F29: ='INVOICE 2'!L22 -> 629 | G29: 7254 | H29: 0 | I29: 0 | J29: 0 | K29: 6625 | L29: 629 | M29: 7254
A30: Indirect Costs | B30: ='INVOICE 1'!B23 -> 5421 | C30: ='INVOICE 1'!C23 -> 0 | D30: 5421 | E30: ='INVOICE 2'!K23 -> 5421 | F30: ='INVOICE 2'!L23 -> 0 | G30: 5421 | H30: 0 | I30: 0 | J30: 0 | K30: 5421 | L30: 0 | M30: 5421
A31: TOTAL | B31: =SUM(B22:B30) -> 1000000 | C31: 250000 | D31: 1250000 | E31: 1000000 | F31: 250000 | G31: 1250000 | H31: 0 | I31: 0 | J31: 0 | K31: 1000000 | L31: 250000 | M31: 1250000
A33: Project Income | C33: Income reported to date | D33: 0 | F33: Prior allocated income | G33: 0 | H33: Allocating | I33: 0 | L33: Unallocated income balance | M33: =D33-I33 -> 0
A35: JUSTIFICATION FOR MODIFICATION:
A36: Alex Coronel will be added as personnel supporting the grant with Administrative Duties. She will be paid through June 30, 2023 to support the grant yet the salary payments will not exceed $10,000 annually. Funds will be shifted from Stephanie Tague and Jennifer Del Bono (David Putney (see below)) grant funds to cover the costs (7,729+7,076=$14,805.00). Alex will support the grant process by ensuring the MOUs with the CBOs are fully executed, communicate to CBOs regarding the grant reporting requirements, schedule meetings with the oversight committee and grant partners, and support the invoice with grant reporting deadlines. Hourly rate = $53.53. Alex Coronel will be preparing the reports and invoices. || In the 2019-20 grant year, we submitted a budget modification to move the Match funds allocated to Christina Arpante under Jennifer Del Bono as Dr. Arpante was delegated to Emergency Command for COVID. At the end of Fiscal Year 20, Jennifer Del Bono's employment with the SCCOE ended, and the grant has since been moved to a new director, David Putney. All Match dollars ($18,555) initially allocated to Christina Arpante, will now be moved under David Putney (.0753% FTE @ $191,171 = $14,395.18 + benefits at 28.91%= $4,161.65 = $18,556.83). Both Budget Modification requests do not change any amounts in any line item - rather the names attached to those amounts are what is changed.
A55: PERSON PREPARING REPORT | I55: AUTHORIZED FINANCIAL OFFICER
I56: I hereby certify that I am the authorized financial officer of the herein named agency. I further certify that I have not violated any of the provisions of Section 1090 of the Government Code in incurring the expenditures reported in this invoice, nor in any other way; that Sections 1090 through 1096 of the Government Code will not be violated in any way in the expenditure of funds pursuant to this invoice; that statement of funds above is true, correct, and in accordance with program provisions in all respects; and that all expenditures submitted after the expiration date of this contract are for the purpose of substantiating obligations legally incurred during the contract period. Furthermore, by submitting this invoice, I acknowledge that it must adhere to all of the requirements in the BSCC Grant Administration Guide, including any updates to the Guide during the term of the grant agreement.
A57: Alex Coronel
A58: Name, Title
A59: 408-453-4347
A60: Phone
A61: acoronel@sccoe.org
A62: Email
A63: 2020-09-14
A64: Date
I66: ThuyTrang Nguyen, Department Fiscal Officer
I67: Name, Title
I68: (408) 468-1646
I69: Phone
I70: 2020-09-16
I71: Date
A73: BSCC USE ONLY
A74: Date Received: | C74: 2020-09-17 | H74: Approved By: | I74: Kimberly Bushard | L74: Date: | M74: 2020-12-08
I75: BSCC Field Representative

Sheet INVOICE 5
A1: STATE OF CALIFORNIA | L1: Purchase Authority | N1: BSCC 5227
A2: BOARD OF STATE AND COMMUNITY CORRECTIONS | L2: Purchase Order: | N2: 2455
A3: Financial Invoice Form: BSCC 201 (Revised 04/2020)
A5: Program: | B5: ='INVOICE 1'!B5 -> Youth Reinvestment Grant | K5: Please Note: The California State Controller's Office will send all checks directly to the address listed in the "BSCC Vendor Data" section at the bottom of this invoice.
A7: Grantee: | B7: ='INVOICE 1'!B7 -> COUNTY OF SANTA CLARA | F7: Lead Public Agency: | G7: N/A
A9: Contract #: | B9: ='INVOICE 1'!B9 -> BSCC 590-19 | D9: Term: | E9: ='INVOICE 1'!E9 -> 2019-07-01 | F9: TO | G9: ='INVOICE 1'!G9 -> 2023-02-28 | L9: Invoicing Frequency | M9: Quarterly
A11: Invoice #: | B11: 5 | D11: Reporting Period: | E11: 2020-07-01 | F11: TO | G11: 2020-09-30 | H11: Due: | I11: 2020-11-16 | L11: Final Invoice (Y/N): | M11: No
A13: Line Items | B13: Budget | E13: Prior Expenditures | H13: This Reporting Period | K13: Balance | N13: Advance Disbursements
B14: Grant Funds | C14: Match | D14: TOTAL | E14: Grant Funds | F14: Match | G14: TOTAL | H14: Grant Funds | I14: Match | J14: TOTAL | K14: Grant Funds | L14: Match | M14: TOTAL
A15: Salaries & Benefits | B15: ='INVOICE 4'!B15 -> 54221 | C15: ='INVOICE 4'!C15 -> 249371 | D15: =SUM(B15:C15) -> 303592 | E15: ='INVOICE 4'!E15+'INVOICE 4'!H15 -> 5166 | F15: ='INVOICE 4'!F15+'INVOICE 4'!I15 -> 6987.1 | G15: =SUM(E15:F15) -> 12153.1 | H15: 2410 | I15: 0 | J15: =SUM(H15:I15) -> 2410 | K15: =B15-E15-H15 -> 46645 | L15: 242383.9 | M15: =SUM(K15:L15) -> 289028.9 | N15: 1st Advance [10/25/19]
A16: Services & Supplies | B16: ='INVOICE 4'!B16 -> 0 | C16: ='INVOICE 4'!C16 -> 0 | D16: 0 | E16: ='INVOICE 4'!E16+'INVOICE 4'!H16 -> 0 | F16: ='INVOICE 4'!F16+'INVOICE 4'!I16 -> 0 | G16: =SUM(E16:F16) -> 0 | H16: 0 | I16: 0 | J16: 0 | K16: 0 | L16: 0 | M16: 0 | N16: ='1st Advance Payment'!K20 -> 333333
A17: Professional Services | B17: ='INVOICE 4'!B17 -> 0 | C17: ='INVOICE 4'!C17 -> 0 | D17: 0 | E17: ='INVOICE 4'!E17+'INVOICE 4'!H17 -> 0 | F17: ='INVOICE 4'!F17+'INVOICE 4'!I17 -> 0 | G17: =SUM(E17:F17) -> 0 | H17: 0 | I17: 0 | J17: 0 | K17: 0 | L17: 0 | M17: 0
A18: NGO Subcontracts | B18: ='INVOICE 4'!B18 -> 900000 | C18: ='INVOICE 4'!C18 -> 0 | D18: 900000 | E18: ='INVOICE 4'!E18+'INVOICE 4'!H18 -> 89080 | F18: ='INVOICE 4'!F18+'INVOICE 4'!I18 -> 0 | G18: 89080 | H18: 0 | I18: 0 | J18: 0 | K18: 810920 | L18: 0 | M18: 810920 | N18: 2nd Advance [enter date]
A19: Equipment / Fixed Assets | B19: ='INVOICE 4'!B19 -> 0 | C19: ='INVOICE 4'!C19 -> 0 | D19: 0 | E19: ='INVOICE 4'!E19+'INVOICE 4'!H19 -> 0 | F19: ='INVOICE 4'!F19+'INVOICE 4'!I19 -> 0 | G19: 0 | H19: 0 | I19: 0 | J19: 0 | K19: 0 | L19: 0 | M19: 0 | N19: 0
A20: Data Collection | B20: ='INVOICE 4'!B20 -> 0 | C20: ='INVOICE 4'!C20 -> 0 | D20: 0 | E20: ='INVOICE 4'!E20+'INVOICE 4'!H20 -> 0 | F20: ='INVOICE 4'!F20+'INVOICE 4'!I20 -> 0 | G20: 0 | H20: 0 | I20: 0 | J20: 0 | K20: 0 | L20: 0 | M20: 0
A21: Project Evaluation | B21: ='INVOICE 4'!B21 -> 33733 | C21: ='INVOICE 4'!C21 -> 0 | D21: 33733 | E21: ='INVOICE 4'!E21+'INVOICE 4'!H21 -> 0 | F21: ='INVOICE 4'!F21+'INVOICE 4'!I21 -> 0 | G21: 0 | H21: 0 | I21: 0 | J21: 0 | K21: 33733 | L21: 0 | M21: 33733 | N21: 3rd Advance [enter date]
A22: Other | B22: ='INVOICE 4'!B22 -> 6625 | C22: ='INVOICE 4'!C22 -> 629 | D22: =SUM(B22:C22) -> 7254 | E22: ='INVOICE 4'!E22+'INVOICE 4'!H22 -> 156 | F22: ='INVOICE 4'!F22+'INVOICE 4'!I22 -> 0 | G22: 156 | H22: 0 | I22: 0 | J22: 0 | K22: 6469 | L22: 629 | M22: 7098 | N22: 0
A23: Indirect Costs | B23: ='INVOICE 4'!B23 -> 5421 | C23: ='INVOICE 4'!C23 -> 0 | D23: 5421 | E23: ='INVOICE 4'!E23+'INVOICE 4'!H23 -> 503 | F23: ='INVOICE 4'!F23+'INVOICE 4'!I23 -> 0 | G23: 503 | H23: 241 | I23: 0 | J23: 241 | K23: 4677 | L23: 0 | M23: 4677
A24: TOTAL | B24: =SUM(B15:B23) -> 1000000 | C24: =SUM(C15:C23) -> 250000 | D24: =SUM(D15:D23) -> 1250000 | E24: =SUM(E15:E23) -> 94905 | F24: 6987.1 | G24: 101892.1 | H24: 2651 | I24: =SUM(I15:I23) -> 0 | J24: 2651 | K24: 902444 | L24: 243012.9 | M24: 1145456.9 | N24: =SUM(N16+N19+N22) -> 333333
A26: Project Income | C26: Income reported to date | D26: ='INVOICE 1'!D26+'INVOICE 5'!I26 -> 0 | F26: Prior allocated income | G26: 0 | H26: This Period | I26: 0 | L26: Unallocated income balance | M26: =D26-G26 -> 0
C28: Grant funds expended to date: | D28: =SUM(E24,H24) -> 97556 | G28: Grant funds claimed this period: | H28: =H24 -> 2651 | M28: % total dispursed fund expended to date: | N28: =D28/N24 -> 0.2926682927
C29: Match funds to date: | D29: =SUM(F24,I24) -> 6987.1 | G29: Advance disbursments balance: | H29: =N24-D28 -> 235777 | M29: % of Total Obligated Match to date: | N29: =D29/C24 -> 0.0279484
D33: Expenditure Descriptions - Units / $ Amounts | L33: Comments
A34: Salaries & Benefits | B34: Grant Funds | C34: =H15 -> 2410 | D34: Alex Coronel: 5.5hrs @ $53/hr + benefits = $316.26, 30.5hrs @ $50.48/hr + benefits = $1670.40, 7.5hrs @ 51.99 + benefits = $423.04
B35: Match | C35: =I15 -> 0
A36: Services & Supplies | B36: Grant Funds | C36: =H16 -> 0
B37: Match | C37: =I16 -> 0
A38: Professional Services | B38: Grant Funds | C38: =H17 -> 0
B39: Match | C39: =I17 -> 0
A40: NGO Subcontracts | B40: Grant Funds | C40: =H18 -> 0
B41: Match | C41: =I18 -> 0
A42: Equipment / Fixed Assets | B42: Grant Funds | C42: =H19 -> 0
B43: Match | C43: =I19 -> 0
A44: Data Collection | B44: Grant Funds | C44: =H20 -> 0
B45: Match | C45: =I20 -> 0
A46: Project Evaluation | B46: Grant Funds | C46: =H21 -> 0
B47: Match | C47: =I21 -> 0
A48: Other | B48: Grant Funds | C48: =H22 -> 0
B49: Match | C49: =I22 -> 0
A50: Indirect Costs | B50: Grant Funds | C50: =H23 -> 241 | D50: 10% of Salaries and Benefits (2409.70*.10=240.97)
B51: Match | C51: =I23 -> 0
A52: Project Income | C52: =I26 -> 0
A53: PERSON PREPARING REPORT | E53: AUTHORIZED FINANCIAL OFFICER | L53: BSCC Supplier Data - Internal Use Only
E54: By checking the box below, I hereby certify that I am the authorized financial officer of the herein named agency. I further certify that I have not violated any of the provisions of Section 1090 of the Government Code in incurring the expenditures reported in this invoice, nor in any other way; that Sections 1090 through 1096 of the Government Code will not be violated in any way in the expenditure of funds pursuant to this invoice; that statement of funds above is true, correct, and in accordance with program provisions in all respects; and that all expenditures submitted after the expiration date of this contract are for the purpose of substantiating obligations legally incurred during the contract period. Furthermore, by submitting this invoice, I acknowledge that it must adhere to all of the requirements in the BSCC Grant Administration Guide, including any updates to the Guide during the term of the grant agreement.
A55: Alex Coronel, Admin Data Tech | L55: ='INVOICE 1'!L55:O55 -> 12077
A56: Name, Title | L56: Supplier ID
A57: 408-453-4347 | L57: ='INVOICE 1'!L57:O57 -> COUNTYOFSA-020
A58: Phone | L58: Supplier Name
A59: acoronel@sccoe.org | L59: ='INVOICE 1'!L59:O59 -> 2314 N 1ST ST
A60: Email | L60: Address Line 1
A61: 2020-11-05 | L61: ='INVOICE 1'!L61:O61 -> SAN JOSE CA 95131
A62: Date | L62: Address Line 2
E64: ThuyTrang Nguyen - Department Fiscal Officer
E65: Name, Title
E66: (408)468-1646
E67: Phone
E68: 2020-11-13
E69: Date
A71: BSCC USE ONLY
A72: Date Received: | C72: 11/131/20 | G72: Approved By: | I72: Eddie Escobar
I73: BSCC Field Representative

Sheet INVOICE 6
A1: STATE OF CALIFORNIA | L1: Purchase Authority | N1: BSCC 5227
A2: BOARD OF STATE AND COMMUNITY CORRECTIONS | L2: Purchase Order: | N2: 2455
A3: Financial Invoice Form: BSCC 201 (Revised 04/2020)
A5: Program: | B5: ='INVOICE 1'!B5 -> Youth Reinvestment Grant | K5: Please Note: The California State Controller's Office will send all checks directly to the address listed in the "BSCC Vendor Data" section at the bottom of this invoice.
A7: Grantee: | B7: ='INVOICE 1'!B7 -> COUNTY OF SANTA CLARA | F7: Lead Public Agency: | G7: N/A
A9: Contract #: | B9: ='INVOICE 1'!B9 -> BSCC 590-19 | D9: Term: | E9: ='INVOICE 1'!E9 -> 2019-07-01 | F9: TO | G9: ='INVOICE 1'!G9 -> 2023-02-28 | L9: Invoicing Frequency | M9: Quarterly
A11: Invoice #: | B11: 6 | D11: Reporting Period: | E11: 2020-10-01 | F11: TO | G11: 2020-12-31 | H11: Due: | I11: 2021-02-15 | L11: Final Invoice (Y/N): | M11: No
A13: Line Items | B13: Budget | E13: Prior Expenditures | H13: This Reporting Period | K13: Balance | N13: Advance Disbursements
B14: Grant Funds | C14: Match | D14: TOTAL | E14: Grant Funds | F14: Match | G14: TOTAL | H14: Grant Funds | I14: Match | J14: TOTAL | K14: Grant Funds | L14: Match | M14: TOTAL
A15: Salaries & Benefits | B15: ='INVOICE 5'!B15 -> 54221 | C15: ='INVOICE 5'!C15 -> 249371 | D15: =SUM(B15:C15) -> 303592 | E15: ='INVOICE 5'!E15+'INVOICE 5'!H15 -> 7576 | F15: ='INVOICE 5'!F15+'INVOICE 5'!I15 -> 6987.1 | G15: =SUM(E15:F15) -> 14563.1 | H15: 2416 | I15: 1327.84 | J15: =SUM(H15:I15) -> 3743.84 | K15: =B15-E15-H15 -> 44229 | L15: 241056.06 | M15: =SUM(K15:L15) -> 285285.06 | N15: 1st Advance [10/25/19]
A16: Services & Supplies | B16: ='INVOICE 5'!B16 -> 0 | C16: ='INVOICE 5'!C16 -> 0 | D16: 0 | E16: ='INVOICE 5'!E16+'INVOICE 5'!H16 -> 0 | F16: ='INVOICE 5'!F16+'INVOICE 5'!I16 -> 0 | G16: =SUM(E16:F16) -> 0 | H16: 0 | I16: 0 | J16: 0 | K16: 0 | L16: 0 | M16: 0 | N16: ='1st Advance Payment'!K20 -> 333333
A17: Professional Services | B17: ='INVOICE 5'!B17 -> 0 | C17: ='INVOICE 5'!C17 -> 0 | D17: 0 | E17: ='INVOICE 5'!E17+'INVOICE 5'!H17 -> 0 | F17: ='INVOICE 5'!F17+'INVOICE 5'!I17 -> 0 | G17: =SUM(E17:F17) -> 0 | H17: 0 | I17: 0 | J17: 0 | K17: 0 | L17: 0 | M17: 0
A18: NGO Subcontracts | B18: ='INVOICE 5'!B18 -> 900000 | C18: ='INVOICE 5'!C18 -> 0 | D18: 900000 | E18: ='INVOICE 5'!E18+'INVOICE 5'!H18 -> 89080 | F18: ='INVOICE 5'!F18+'INVOICE 5'!I18 -> 0 | G18: 89080 | H18: 70637 | I18: 0 | J18: 70637 | K18: 740283 | L18: 0 | M18: 740283 | N18: 2nd Advance [enter date]
A19: Equipment / Fixed Assets | B19: ='INVOICE 5'!B19 -> 0 | C19: ='INVOICE 5'!C19 -> 0 | D19: 0 | E19: ='INVOICE 5'!E19+'INVOICE 5'!H19 -> 0 | F19: ='INVOICE 5'!F19+'INVOICE 5'!I19 -> 0 | G19: 0 | H19: 0 | I19: 0 | J19: 0 | K19: 0 | L19: 0 | M19: 0 | N19: 0
A20: Data Collection | B20: ='INVOICE 5'!B20 -> 0 | C20: ='INVOICE 5'!C20 -> 0 | D20: 0 | E20: ='INVOICE 5'!E20+'INVOICE 5'!H20 -> 0 | F20: ='INVOICE 5'!F20+'INVOICE 5'!I20 -> 0 | G20: 0 | H20: 0 | I20: 0 | J20: 0 | K20: 0 | L20: 0 | M20: 0
A21: Project Evaluation | B21: ='INVOICE 5'!B21 -> 33733 | C21: ='INVOICE 5'!C21 -> 0 | D21: 33733 | E21: ='INVOICE 5'!E21+'INVOICE 5'!H21 -> 0 | F21: ='INVOICE 5'!F21+'INVOICE 5'!I21 -> 0 | G21: 0 | H21: 0 | I21: 0 | J21: 0 | K21: 33733 | L21: 0 | M21: 33733 | N21: 3rd Advance [enter date]
A22: Other | B22: ='INVOICE 5'!B22 -> 6625 | C22: ='INVOICE 5'!C22 -> 629 | D22: =SUM(B22:C22) -> 7254 | E22: ='INVOICE 5'!E22+'INVOICE 5'!H22 -> 156 | F22: ='INVOICE 5'!F22+'INVOICE 5'!I22 -> 0 | G22: 156 | H22: 0 | I22: 0 | J22: 0 | K22: 6469 | L22: 629 | M22: 7098 | N22: 0
A23: Indirect Costs | B23: ='INVOICE 5'!B23 -> 5421 | C23: ='INVOICE 5'!C23 -> 0 | D23: 5421 | E23: ='INVOICE 5'!E23+'INVOICE 5'!H23 -> 744 | F23: ='INVOICE 5'!F23+'INVOICE 5'!I23 -> 0 | G23: 744 | H23: 242 | I23: 0 | J23: 242 | K23: 4435 | L23: 0 | M23: 4435
A24: TOTAL | B24: =SUM(B15:B23) -> 1000000 | C24: =SUM(C15:C23) -> 250000 | D24: =SUM(D15:D23) -> 1250000 | E24: =SUM(E15:E23) -> 97556 | F24: 6987.1 | G24: 104543.1 | H24: 73295 | I24: =SUM(I15:I23) -> 1327.84 | J24: 74622.84 | K24: 829149 | L24: 241685.06 | M24: 1070834.06 | N24: =SUM(N16+N19+N22) -> 333333
A26: Project Income | C26: Income reported to date | D26: ='INVOICE 1'!D26+'INVOICE 6'!I26 -> 0 | F26: Prior allocated income | G26: 0 | H26: This Period | I26: 0 | L26: Unallocated income balance | M26: =D26-G26 -> 0
C28: Grant funds expended to date: | D28: =SUM(E24,H24) -> 170851 | G28: Grant funds claimed this period: | H28: =H24 -> 73295 | M28: % total dispursed fund expended to date: | N28: =D28/N24 -> 0.5125535126
C29: Match funds to date: | D29: =SUM(F24,I24) -> 8314.94 | G29: Advance disbursments balance: | H29: =N24-D28 -> 162482 | M29: % of Total Obligated Match to date: | N29: =D29/C24 -> 0.03325976
D33: Expenditure Descriptions - Units / $ Amounts | L33: Comments
A34: Salaries & Benefits | B34: Grant Funds | C34: =H15 -> 2416 | D34: Grant Staff: Alex Coronel; 17h @ $51.99 + benefits = $959.70, 30.50h @ $2.52 + benefits = $83.46, 9.5h @ $54.59 + benefits = $563.12, 24.50h @ $2.60 + benefits = $69.18, 12.5h @ $54.59 + benefits = $740.95 | $959.70 + $83.46 + $563.12 + $69.18 + $740.95= $2416.40 | L34: Smaller hourly amounts are to correct Q1 invoice in which hourly was paid at a lower, incorrect rate
B35: Match | C35: =I15 -> 1327.84 | D35: Grant Staff: David Putney; 11.25 hrs @ 118.03 (salary + benefits) = $1327.84
A36: Services & Supplies | B36: Grant Funds | C36: =H16 -> 0
B37: Match | C37: =I16 -> 0
A38: Professional Services | B38: Grant Funds | C38: =H17 -> 0
B39: Match | C39: =I17 -> 0
A40: NGO Subcontracts | B40: Grant Funds | C40: =H18 -> 70637 | D40: NOG Subcontracts: Community Agency for Resources, Advocacy, and Services (CARAS) staff salary + benefits = $22,414.62, Living Above the Influence (LATI) staff salary + benefits = $39,205, ConXion to Community staff salary + beneftis = $9,017.41
B41: Match | C41: =I18 -> 0
A42: Equipment / Fixed Assets | B42: Grant Funds | C42: =H19 -> 0
B43: Match | C43: =I19 -> 0
A44: Data Collection | B44: Grant Funds | C44: =H20 -> 0
B45: Match | C45: =I20 -> 0
A46: Project Evaluation | B46: Grant Funds | C46: =H21 -> 0
B47: Match | C47: =I21 -> 0
A48: Other | B48: Grant Funds | C48: =H22 -> 0
B49: Match | C49: =I22 -> 0
A50: Indirect Costs | B50: Grant Funds | C50: =H23 -> 242 | D50: 10% of Salaries and Benefits (2416.40*.10=241.65)
B51: Match | C51: =I23 -> 0
A52: Project Income | C52: =I26 -> 0
A53: PERSON PREPARING REPORT | E53: AUTHORIZED FINANCIAL OFFICER | L53: BSCC Supplier Data - Internal Use Only
E54: By checking the box below, I hereby certify that I am the authorized financial officer of the herein named agency. I further certify that I have not violated any of the provisions of Section 1090 of the Government Code in incurring the expenditures reported in this invoice, nor in any other way; that Sections 1090 through 1096 of the Government Code will not be violated in any way in the expenditure of funds pursuant to this invoice; that statement of funds above is true, correct, and in accordance with program provisions in all respects; and that all expenditures submitted after the expiration date of this contract are for the purpose of substantiating obligations legally incurred during the contract period. Furthermore, by submitting this invoice, I acknowledge that it must adhere to all of the requirements in the BSCC Grant Administration Guide, including any updates to the Guide during the term of the grant agreement.
A55: Alex Coronel, Administrative Data Tech | L55: ='INVOICE 1'!L55:O55 -> 12077
A56: Name, Title | L56: Supplier ID
A57: 408-453-4347 | L57: ='INVOICE 1'!L57:O57 -> COUNTYOFSA-020
A58: Phone | L58: Supplier Name
A59: acoronel@sccoe.org | L59: ='INVOICE 1'!L59:O59 -> 2314 N 1ST ST
A60: Email | L60: Address Line 1
A61: 2021-02-01 | L61: ='INVOICE 1'!L61:O61 -> SAN JOSE CA 95131
A62: Date | L62: Address Line 2
E64: ThuyTrang Nguyen _ Department Fiscal Officer
E65: Name, Title
E66: 408-468-1646
E67: Phone
E68: 2021-02-11
E69: Date
A71: BSCC USE ONLY
A72: Date Received: | C72: 2021-02-11 | G72: Approved By: | I72: Eddie Escobar
I73: BSCC Field Representative

Sheet INVOICE 7
A1: STATE OF CALIFORNIA | L1: Purchase Authority | N1: BSCC 5227
A2: BOARD OF STATE AND COMMUNITY CORRECTIONS | L2: Purchase Order: | N2: 2455
A3: Financial Invoice Form: BSCC 201 (Revised 04/2020)
A5: Program: | B5: ='INVOICE 1'!B5 -> Youth Reinvestment Grant | K5: Please Note: The California State Controller's Office will send all checks directly to the address listed in the "BSCC Vendor Data" section at the bottom of this invoice.
A7: Grantee: | B7: ='INVOICE 1'!B7 -> COUNTY OF SANTA CLARA | F7: Lead Public Agency: | G7: N/A
A9: Contract #: | B9: ='INVOICE 1'!B9 -> BSCC 590-19 | D9: Term: | E9: ='INVOICE 1'!E9 -> 2019-07-01 | F9: TO | G9: ='INVOICE 1'!G9 -> 2023-02-28 | L9: Invoicing Frequency | M9: Quarterly
A11: Invoice #: | B11: 7 | D11: Reporting Period: | E11: 2021-01-01 | F11: TO | G11: 2021-03-31 | H11: Due: | I11: 2021-05-17 | L11: Final Invoice (Y/N): | M11: No
A13: Line Items | B13: Budget | E13: Prior Expenditures | H13: This Reporting Period | K13: Balance | N13: Advance Disbursements
B14: Grant Funds | C14: Match | D14: TOTAL | E14: Grant Funds | F14: Match | G14: TOTAL | H14: Grant Funds | I14: Match | J14: TOTAL | K14: Grant Funds | L14: Match | M14: TOTAL
A15: Salaries & Benefits | B15: ='INVOICE 6'!B15 -> 54221 | C15: ='INVOICE 6'!C15 -> 249371 | D15: =SUM(B15:C15) -> 303592 | E15: ='INVOICE 6'!E15+'INVOICE 6'!H15 -> 9992 | F15: ='INVOICE 6'!F15+'INVOICE 6'!I15 -> 8314.94 | G15: =SUM(E15:F15) -> 18306.94 | H15: 2212 | I15: 7549 | J15: =SUM(H15:I15) -> 9761 | K15: =B15-E15-H15 -> 42017 | L15: 233507.06 | M15: =SUM(K15:L15) -> 275524.06 | N15: 1st Advance [10/25/19]
A16: Services & Supplies | B16: ='INVOICE 6'!B16 -> 0 | C16: ='INVOICE 6'!C16 -> 0 | D16: 0 | E16: ='INVOICE 6'!E16+'INVOICE 6'!H16 -> 0 | F16: ='INVOICE 6'!F16+'INVOICE 6'!I16 -> 0 | G16: =SUM(E16:F16) -> 0 | H16: 0 | I16: 0 | J16: 0 | K16: 0 | L16: 0 | M16: 0 | N16: ='1st Advance Payment'!K20 -> 333333
A17: Professional Services | B17: ='INVOICE 6'!B17 -> 0 | C17: ='INVOICE 6'!C17 -> 0 | D17: 0 | E17: ='INVOICE 6'!E17+'INVOICE 6'!H17 -> 0 | F17: ='INVOICE 6'!F17+'INVOICE 6'!I17 -> 0 | G17: =SUM(E17:F17) -> 0 | H17: 0 | I17: 0 | J17: 0 | K17: 0 | L17: 0 | M17: 0
A18: NGO Subcontracts | B18: ='INVOICE 6'!B18 -> 900000 | C18: ='INVOICE 6'!C18 -> 0 | D18: 900000 | E18: ='INVOICE 6'!E18+'INVOICE 6'!H18 -> 159717 | F18: ='INVOICE 6'!F18+'INVOICE 6'!I18 -> 0 | G18: 159717 | H18: 43426 | I18: 0 | J18: 43426 | K18: 696857 | L18: 0 | M18: 696857 | N18: 2nd Advance [enter date]
A19: Equipment / Fixed Assets | B19: ='INVOICE 6'!B19 -> 0 | C19: ='INVOICE 6'!C19 -> 0 | D19: 0 | E19: ='INVOICE 6'!E19+'INVOICE 6'!H19 -> 0 | F19: ='INVOICE 6'!F19+'INVOICE 6'!I19 -> 0 | G19: 0 | H19: 0 | I19: 0 | J19: 0 | K19: 0 | L19: 0 | M19: 0 | N19: 0
A20: Data Collection | B20: ='INVOICE 6'!B20 -> 0 | C20: ='INVOICE 6'!C20 -> 0 | D20: 0 | E20: ='INVOICE 6'!E20+'INVOICE 6'!H20 -> 0 | F20: ='INVOICE 6'!F20+'INVOICE 6'!I20 -> 0 | G20: 0 | H20: 0 | I20: 0 | J20: 0 | K20: 0 | L20: 0 | M20: 0
A21: Project Evaluation | B21: ='INVOICE 6'!B21 -> 33733 | C21: ='INVOICE 6'!C21 -> 0 | D21: 33733 | E21: ='INVOICE 6'!E21+'INVOICE 6'!H21 -> 0 | F21: ='INVOICE 6'!F21+'INVOICE 6'!I21 -> 0 | G21: 0 | H21: 0 | I21: 0 | J21: 0 | K21: 33733 | L21: 0 | M21: 33733 | N21: 3rd Advance [enter date]
A22: Other | B22: ='INVOICE 6'!B22 -> 6625 | C22: ='INVOICE 6'!C22 -> 629 | D22: =SUM(B22:C22) -> 7254 | E22: ='INVOICE 6'!E22+'INVOICE 6'!H22 -> 156 | F22: ='INVOICE 6'!F22+'INVOICE 6'!I22 -> 0 | G22: 156 | H22: 0 | I22: 0 | J22: 0 | K22: 6469 | L22: 629 | M22: 7098 | N22: 0
A23: Indirect Costs | B23: ='INVOICE 6'!B23 -> 5421 | C23: ='INVOICE 6'!C23 -> 0 | D23: 5421 | E23: ='INVOICE 6'!E23+'INVOICE 6'!H23 -> 986 | F23: ='INVOICE 6'!F23+'INVOICE 6'!I23 -> 0 | G23: 986 | H23: 221 | I23: 0 | J23: 221 | K23: 4214 | L23: 0 | M23: 4214
A24: TOTAL | B24: =SUM(B15:B23) -> 1000000 | C24: =SUM(C15:C23) -> 250000 | D24: =SUM(D15:D23) -> 1250000 | E24: =SUM(E15:E23) -> 170851 | F24: 8314.94 | G24: 179165.94 | H24: 45859 | I24: =SUM(I15:I23) -> 7549 | J24: 53408 | K24: 783290 | L24: 234136.06 | M24: 1017426.06 | N24: =SUM(N16+N19+N22) -> 333333
A26: Project Income | C26: Income reported to date | D26: ='INVOICE 1'!D26+'INVOICE 7'!I26 -> 0 | F26: Prior allocated income | G26: 0 | H26: This Period | I26: 0 | L26: Unallocated income balance | M26: =D26-G26 -> 0
C28: Grant funds expended to date: | D28: =SUM(E24,H24) -> 216710 | G28: Grant funds claimed this period: | H28: =H24 -> 45859 | M28: % total dispursed fund expended to date: | N28: =D28/N24 -> 0.6501306501
C29: Match funds to date: | D29: =SUM(F24,I24) -> 15863.94 | G29: Advance disbursments balance: | H29: =N24-D28 -> 116623 | M29: % of Total Obligated Match to date: | N29: =D29/C24 -> 0.06345576
D33: Expenditure Descriptions - Units / $ Amounts | L33: Comments
A34: Salaries & Benefits | B34: Grant Funds | C34: =H15 -> 2212 | D34: Grant Staff: Alex Coronel; 30.5h @ $554.59 + benefits = $1807.88, 6.50h @ $57.31 + benefits = $404.49 | $1807.88 + $404.49 = $2212.37
B35: Match | C35: =I15 -> 7549 | D35: Project Director: David Putney- 5.50 Hrs @$118.03 (salary+benefits)=$649.17. Project Director/Asst. Superintendent: Anisha Munshi -49.25 Hrs @140.10 (salary + benefits)= $6,899.93. Total Match =$649.17+6,899.93= $7,549.09
A36: Services & Supplies | B36: Grant Funds | C36: =H16 -> 0
B37: Match | C37: =I16 -> 0
A38: Professional Services | B38: Grant Funds | C38: =H17 -> 0
B39: Match | C39: =I17 -> 0
A40: NGO Subcontracts | B40: Grant Funds | C40: =H18 -> 43426 | D40: NOG Subcontracts: Community Agency for Resources, Advocacy, and Services (CARAS) staff salary + benefits = $28,330.55, Living Above the Influence (LATI) staff salary + benefits = $11,778.00, ConXion to Community staff salary + benefits = $3,317.40
B41: Match | C41: =I18 -> 0
A42: Equipment / Fixed Assets | B42: Grant Funds | C42: =H19 -> 0
B43: Match | C43: =I19 -> 0
A44: Data Collection | B44: Grant Funds | C44: =H20 -> 0
B45: Match | C45: =I20 -> 0
A46: Project Evaluation | B46: Grant Funds | C46: =H21 -> 0
B47: Match | C47: =I21 -> 0
A48: Other | B48: Grant Funds | C48: =H22 -> 0
B49: Match | C49: =I22 -> 0
A50: Indirect Costs | B50: Grant Funds | C50: =H23 -> 221 | D50: 10% of Salaries and Benefits (2212.37*.10=221.24)
B51: Match | C51: =I23 -> 0
A52: Project Income | C52: =I26 -> 0
A53: PERSON PREPARING REPORT | E53: AUTHORIZED FINANCIAL OFFICER | L53: BSCC Supplier Data - Internal Use Only
E54: By checking the box below, I hereby certify that I am the authorized financial officer of the herein named agency. I further certify that I have not violated any of the provisions of Section 1090 of the Government Code in incurring the expenditures reported in this invoice, nor in any other way; that Sections 1090 through 1096 of the Government Code will not be violated in any way in the expenditure of funds pursuant to this invoice; that statement of funds above is true, correct, and in accordance with program provisions in all respects; and that all expenditures submitted after the expiration date of this contract are for the purpose of substantiating obligations legally incurred during the contract period. Furthermore, by submitting this invoice, I acknowledge that it must adhere to all of the requirements in the BSCC Grant Administration Guide, including any updates to the Guide during the term of the grant agreement.
A55: Alex Coronel, Administrative Data Technician | L55: ='INVOICE 1'!L55:O55 -> 12077
A56: Name, Title | L56: Supplier ID
A57: 408-453-4347 | L57: ='INVOICE 1'!L57:O57 -> COUNTYOFSA-020
A58: Phone | L58: Supplier Name
A59: acoronel@sccoe.org | L59: ='INVOICE 1'!L59:O59 -> 2314 N 1ST ST
A60: Email | L60: Address Line 1
A61: 2021-05-04 | L61: ='INVOICE 1'!L61:O61 -> SAN JOSE CA 95131
A62: Date | L62: Address Line 2
E64: ThuyTrang Nguyen _ Department Fiscal Officer
E65: Name, Title
E66: 408-468-1646
E67: Phone
E68: 2021-05-04
E69: Date
A71: BSCC USE ONLY
A72: Date Received: | C72: 2021-05-14 | G72: Approved By: | I72: Eddie Escobar
I73: BSCC Field Representative

Sheet INVOICE 8
A1: STATE OF CALIFORNIA | L1: Purchase Authority | N1: BSCC 5227
A2: BOARD OF STATE AND COMMUNITY CORRECTIONS | L2: Purchase Order: | N2: 2455
A3: Financial Invoice Form: BSCC 201 (Revised 04/2020)
A5: Program: | B5: ='INVOICE 1'!B5 -> Youth Reinvestment Grant | K5: Please Note: The California State Controller's Office will send all checks directly to the address listed in the "BSCC Vendor Data" section at the bottom of this invoice.
A7: Grantee: | B7: ='INVOICE 1'!B7 -> COUNTY OF SANTA CLARA | F7: Lead Public Agency: | G7: N/A
A9: Contract #: | B9: ='INVOICE 1'!B9 -> BSCC 590-19 | D9: Term: | E9: ='INVOICE 1'!E9 -> 2019-07-01 | F9: TO | G9: ='INVOICE 1'!G9 -> 2023-02-28 | L9: Invoicing Frequency | M9: Quarterly
A11: Invoice #: | B11: 8 | D11: Reporting Period: | E11: 2021-04-01 | F11: TO | G11: 2021-06-30 | H11: Due: | I11: 2021-08-16 | L11: Final Invoice (Y/N): | M11: No
A13: Line Items | B13: Budget | E13: Prior Expenditures | H13: This Reporting Period | K13: Balance | N13: Advance Disbursements
B14: Grant Funds | C14: Match | D14: TOTAL | E14: Grant Funds | F14: Match | G14: TOTAL | H14: Grant Funds | I14: Match | J14: TOTAL | K14: Grant Funds | L14: Match | M14: TOTAL
A15: Salaries & Benefits | B15: ='INVOICE 7'!B15 -> 54221 | C15: ='INVOICE 7'!C15 -> 249371 | D15: =SUM(B15:C15) -> 303592 | E15: ='INVOICE 7'!E15+'INVOICE 7'!H15 -> 12204 | F15: ='INVOICE 7'!F15+'INVOICE 7'!I15 -> 15863.94 | G15: =SUM(E15:F15) -> 28067.94 | H15: 2763 | I15: 12282 | J15: =SUM(H15:I15) -> 15045 | K15: =B15-E15-H15 -> 39254 | L15: 221225.06 | M15: =SUM(K15:L15) -> 260479.06 | N15: 1st Advance [10/25/19]
A16: Services & Supplies | B16: ='INVOICE 7'!B16 -> 0 | C16: ='INVOICE 7'!C16 -> 0 | D16: 0 | E16: ='INVOICE 7'!E16+'INVOICE 7'!H16 -> 0 | F16: ='INVOICE 7'!F16+'INVOICE 7'!I16 -> 0 | G16: =SUM(E16:F16) -> 0 | H16: 0 | I16: 0 | J16: 0 | K16: 0 | L16: 0 | M16: 0 | N16: ='1st Advance Payment'!K20 -> 333333
A17: Professional Services | B17: ='INVOICE 7'!B17 -> 0 | C17: ='INVOICE 7'!C17 -> 0 | D17: 0 | E17: ='INVOICE 7'!E17+'INVOICE 7'!H17 -> 0 | F17: ='INVOICE 7'!F17+'INVOICE 7'!I17 -> 0 | G17: =SUM(E17:F17) -> 0 | H17: 0 | I17: 0 | J17: 0 | K17: 0 | L17: 0 | M17: 0
A18: NGO Subcontracts | B18: ='INVOICE 7'!B18 -> 900000 | C18: ='INVOICE 7'!C18 -> 0 | D18: 900000 | E18: ='INVOICE 7'!E18+'INVOICE 7'!H18 -> 203143 | F18: ='INVOICE 7'!F18+'INVOICE 7'!I18 -> 0 | G18: 203143 | H18: 44492 | I18: 0 | J18: 44492 | K18: 652365 | L18: 0 | M18: 652365 | N18: 2nd Advance [enter date]
A19: Equipment / Fixed Assets | B19: ='INVOICE 7'!B19 -> 0 | C19: ='INVOICE 7'!C19 -> 0 | D19: 0 | E19: ='INVOICE 7'!E19+'INVOICE 7'!H19 -> 0 | F19: ='INVOICE 7'!F19+'INVOICE 7'!I19 -> 0 | G19: 0 | H19: 0 | I19: 0 | J19: 0 | K19: 0 | L19: 0 | M19: 0 | N19: 0
A20: Data Collection | B20: ='INVOICE 7'!B20 -> 0 | C20: ='INVOICE 7'!C20 -> 0 | D20: 0 | E20: ='INVOICE 7'!E20+'INVOICE 7'!H20 -> 0 | F20: ='INVOICE 7'!F20+'INVOICE 7'!I20 -> 0 | G20: 0 | H20: 0 | I20: 0 | J20: 0 | K20: 0 | L20: 0 | M20: 0
A21: Project Evaluation | B21: ='INVOICE 7'!B21 -> 33733 | C21: ='INVOICE 7'!C21 -> 0 | D21: 33733 | E21: ='INVOICE 7'!E21+'INVOICE 7'!H21 -> 0 | F21: ='INVOICE 7'!F21+'INVOICE 7'!I21 -> 0 | G21: 0 | H21: 0 | I21: 0 | J21: 0 | K21: 33733 | L21: 0 | M21: 33733 | N21: 3rd Advance [enter date]
A22: Other | B22: ='INVOICE 7'!B22 -> 6625 | C22: ='INVOICE 7'!C22 -> 629 | D22: =SUM(B22:C22) -> 7254 | E22: ='INVOICE 7'!E22+'INVOICE 7'!H22 -> 156 | F22: ='INVOICE 7'!F22+'INVOICE 7'!I22 -> 0 | G22: 156 | H22: 0 | I22: 0 | J22: 0 | K22: 6469 | L22: 629 | M22: 7098 | N22: 0
A23: Indirect Costs | B23: ='INVOICE 7'!B23 -> 5421 | C23: ='INVOICE 7'!C23 -> 0 | D23: 5421 | E23: ='INVOICE 7'!E23+'INVOICE 7'!H23 -> 1207 | F23: ='INVOICE 7'!F23+'INVOICE 7'!I23 -> 0 | G23: 1207 | H23: 276 | I23: 0 | J23: 276 | K23: 3938 | L23: 0 | M23: 3938
A24: TOTAL | B24: =SUM(B15:B23) -> 1000000 | C24: =SUM(C15:C23) -> 250000 | D24: =SUM(D15:D23) -> 1250000 | E24: =SUM(E15:E23) -> 216710 | F24: 15863.94 | G24: 232573.94 | H24: 47531 | I24: =SUM(I15:I23) -> 12282 | J24: 59813 | K24: 735759 | L24: 221854.06 | M24: 957613.06 | N24: =SUM(N16+N19+N22) -> 333333
A26: Project Income | C26: Income reported to date | D26: ='INVOICE 1'!D26+'INVOICE 8'!I26 -> 0 | F26: Prior allocated income | G26: 0 | H26: This Period | I26: 0 | L26: Unallocated income balance | M26: =D26-G26 -> 0
C28: Grant funds expended to date: | D28: =SUM(E24,H24) -> 264241 | G28: Grant funds claimed this period: | H28: =H24 -> 47531 | M28: % total dispursed fund expended to date: | N28: =D28/N24 -> 0.7927237927
C29: Match funds to date: | D29: =SUM(F24,I24) -> 28145.94 | G29: Advance disbursments balance: | H29: =N24-D28 -> 69092 | M29: % of Total Obligated Match to date: | N29: =D29/C24 -> 0.11258376
D33: Expenditure Descriptions - Units / $ Amounts | L33: Comments
A34: Salaries & Benefits | B34: Grant Funds | C34: =H15 -> 2763 | D34: Grant Staff: Alex Coronel (Admin Data Tech) 11h @ $57.31 + benefits = $684.65, 29h @ $65.98 + benefits = $2,078.11 | $684.65 + $2,078.11 = $2,762.76
B35: Match | C35: =I15 -> 12282 | D35: David Putney (Project Director) Salary + Benefits = 118.03/hr, 86.25hrs @ 118.03=$10,180.09, Anisha Munshi (Asst. Superintendent, Project Manager) Salary + Benefits = $140.10/hr, 15hrs @ $140.10=$2,101.50 ---- $10,180.09 (DPutney) + $2,101.50 (AMunshi) = $12,281.59
A36: Services & Supplies | B36: Grant Funds | C36: =H16 -> 0
B37: Match | C37: =I16 -> 0
A38: Professional Services | B38: Grant Funds | C38: =H17 -> 0
B39: Match | C39: =I17 -> 0
A40: NGO Subcontracts | B40: Grant Funds | C40: =H18 -> 44492 | D40: Community Agency for Resources, Advocacy, and Services (CARAS): Richard Duran (Project Accountant) salary + benefits = $4,968.00, Leanna Rivera (Case Manager) salary + benefits = $4,572.37, Reymundo Armendariz (Project Director) salary + benefits = $9,254.00, Jesus Ibanez (Project Coordinator) salary + benefits = $18,631.48; CARAS Total: $4,968 + $4,572.37 + $9,254.00 + $18,631.48 = $37,425.85 --- Living Above the Influence (LATI): Dori Prado (Project Coordinator) salary + benefits = $7,066.00 --- $37,425.85 (CARAS) + $7,066.00 (LATI) = $44,491.85
B41: Match | C41: =I18 -> 0
A42: Equipment / Fixed Assets | B42: Grant Funds | C42: =H19 -> 0
B43: Match | C43: =I19 -> 0
A44: Data Collection | B44: Grant Funds | C44: =H20 -> 0
B45: Match | C45: =I20 -> 0
A46: Project Evaluation | B46: Grant Funds | C46: =H21 -> 0
B47: Match | C47: =I21 -> 0
A48: Other | B48: Grant Funds | C48: =H22 -> 0
B49: Match | C49: =I22 -> 0
A50: Indirect Costs | B50: Grant Funds | C50: =H23 -> 276 | D50: 10% of Q4 Salaries and Benefits (2762.76*.10=276.28)
B51: Match | C51: =I23 -> 0
A52: Project Income | C52: =I26 -> 0
A53: PERSON PREPARING REPORT | E53: AUTHORIZED FINANCIAL OFFICER | L53: BSCC Supplier Data - Internal Use Only
E54: By checking the box below, I hereby certify that I am the authorized financial officer of the herein named agency. I further certify that I have not violated any of the provisions of Section 1090 of the Government Code in incurring the expenditures reported in this invoice, nor in any other way; that Sections 1090 through 1096 of the Government Code will not be violated in any way in the expenditure of funds pursuant to this invoice; that statement of funds above is true, correct, and in accordance with program provisions in all respects; and that all expenditures submitted after the expiration date of this contract are for the purpose of substantiating obligations legally incurred during the contract period. Furthermore, by submitting this invoice, I acknowledge that it must adhere to all of the requirements in the BSCC Grant Administration Guide, including any updates to the Guide during the term of the grant agreement.
A55: Alex Coronel, Administrative Data Technician | L55: ='INVOICE 1'!L55:O55 -> 12077
A56: Name, Title | L56: Supplier ID
A57: 408-453-4347 | L57: ='INVOICE 1'!L57:O57 -> COUNTYOFSA-020
A58: Phone | L58: Supplier Name
A59: acoronel@sccoe.org | L59: ='INVOICE 1'!L59:O59 -> 2314 N 1ST ST
A60: Email | L60: Address Line 1
A61: 2021-08-12 | L61: ='INVOICE 1'!L61:O61 -> SAN JOSE CA 95131
A62: Date | L62: Address Line 2
E64: ThuyTrang Nguyen - Department Fiscal Officer
E65: Name, Title
E66: 408-468-1646
E67: Phone
E68: 2021-08-12
E69: Date
A71: BSCC USE ONLY
A72: Date Received: | C72: 2021-08-12 | G72: Approved By: | I72: Eddie Escobar
I73: BSCC Field Representative

Sheet MOD 4
M1: STATE OF CALIFORNIA
A2: MODIFICATION REQUEST - (FORM BSCC 223.1 (Revised 04/20) | M2: BOARD OF STATE AND COMMUNITY CORRECTIONS
B5: Line-Item Change | F5: Budget Modification | J5: Project Income Allocation
B6: Check this box if you are modifying narrative details within a line item (or line items) but not changing the budget. | F6: Check this box if you are modifying line-item dollar amounts by moving funds from one line-item to another. | J6: Check this box if you are allocating earned project income.
A8: Important Note: You must provide a detailed justification for all modification requests. All modifications require BSCC Field Representative approval.
A10: Grantee: | B10: ='INVOICE 1'!B7 -> COUNTY OF SANTA CLARA | I10: Grant Program: | J10: ='INVOICE 1'!B5 -> Youth Reinvestment Grant
A12: Address | I12: Lead Public Agency: | J12: ='INVOICE 1'!G7 -> N/A
A16: Contract #: | B16: ='INVOICE 1'!B9 -> BSCC 590-19 | J16: Modification Request # | K16: 4
A18: Term: | B18: ='INVOICE 1'!E9 -> 2019-07-01 | C18: ='INVOICE 1'!F9 -> TO | D18: ='INVOICE 1'!G9 -> 2023-02-28 | J18: Effective on Invoice # | K18: 9
A20: Line Items | B20: Current Budget | E20: Available Budget | H20: Changes (+/-) | K20: Modified Budget
B21: Grant Funds | C21: Match | D21: TOTAL | E21: Grant Funds | F21: Match | G21: TOTAL | H21: Grant Funds | I21: Match | J21: TOTAL | K21: Grant Funds | L21: Match | M21: TOTAL
A22: Salaries & Benefits | B22: ='INVOICE 1'!B15 -> 54221 | C22: ='INVOICE 1'!C15 -> 249371 | D22: =SUM(B22:C22) -> 303592 | E22: ='INVOICE 2'!K15 -> 54221 | F22: ='INVOICE 2'!L15 -> 249371 | G22: =SUM(E22:F22) -> 303592 | H22: 0 | I22: 0 | J22: =SUM(H22:I22) -> 0 | K22: =SUM(B22,H22) -> 54221 | L22: 249371 | M22: =SUM(K22:L22) -> 303592
A23: Services & Supplies | B23: ='INVOICE 1'!B16 -> 0 | C23: ='INVOICE 1'!C16 -> 0 | D23: 0 | E23: ='INVOICE 2'!K16 -> 0 | F23: ='INVOICE 2'!L16 -> 0 | G23: 0 | H23: 0 | I23: 0 | J23: 0 | K23: 0 | L23: 0 | M23: 0
A24: Professional Services | B24: ='INVOICE 1'!B17 -> 0 | C24: ='INVOICE 1'!C17 -> 0 | D24: 0 | E24: ='INVOICE 2'!K17 -> 0 | F24: ='INVOICE 2'!L17 -> 0 | G24: 0 | H24: 0 | I24: 0 | J24: 0 | K24: 0 | L24: 0 | M24: 0
A25: NGO Subcontracts | B25: ='INVOICE 1'!B18 -> 900000 | C25: ='INVOICE 1'!C18 -> 0 | D25: 900000 | E25: ='INVOICE 2'!K18 -> 900000 | F25: ='INVOICE 2'!L18 -> 0 | G25: 900000 | H25: 0 | I25: 0 | J25: 0 | K25: 900000 | L25: 0 | M25: 900000
A26: Equipment / Fixed Assets | B26: ='INVOICE 1'!B19 -> 0 | C26: ='INVOICE 1'!C19 -> 0 | D26: 0 | E26: ='INVOICE 2'!K19 -> 0 | F26: ='INVOICE 2'!L19 -> 0 | G26: 0 | H26: 0 | I26: 0 | J26: 0 | K26: 0 | L26: 0 | M26: 0
A27: Data Collection | B27: ='INVOICE 1'!B20 -> 0 | C27: ='INVOICE 1'!C20 -> 0 | D27: 0 | E27: ='INVOICE 2'!K20 -> 0 | F27: ='INVOICE 2'!L20 -> 0 | G27: 0 | H27: 0 | I27: 0 | J27: 0 | K27: 0 | L27: 0 | M27: 0
A28: Project Evaluation | B28: ='INVOICE 1'!B21 -> 33733 | C28: ='INVOICE 1'!C21 -> 0 | D28: 33733 | E28: ='INVOICE 2'!K21 -> 33733 | F28: ='INVOICE 2'!L21 -> 0 | G28: 33733 | H28: 0 | I28: 0 | J28: 0 | K28: 33733 | L28: 0 | M28: 33733
A29: Other | B29: ='INVOICE 1'!B22 -> 6625 | C29: ='INVOICE 1'!C22 -> 629 | D29: 7254 | E29: ='INVOICE 2'!K22 -> 6625 | F29: ='INVOICE 2'!L22 -> 629 | G29: 7254 | H29: 0 | I29: 0 | J29: 0 | K29: 6625 | L29: 629 | M29: 7254
A30: Indirect Costs | B30: ='INVOICE 1'!B23 -> 5421 | C30: ='INVOICE 1'!C23 -> 0 | D30: 5421 | E30: ='INVOICE 2'!K23 -> 5421 | F30: ='INVOICE 2'!L23 -> 0 | G30: 5421 | H30: 0 | I30: 0 | J30: 0 | K30: 5421 | L30: 0 | M30: 5421
A31: TOTAL | B31: =SUM(B22:B30) -> 1000000 | C31: 250000 | D31: 1250000 | E31: 1000000 | F31: 250000 | G31: 1250000 | H31: 0 | I31: 0 | J31: 0 | K31: 1000000 | L31: 250000 | M31: 1250000
A33: Project Income | C33: Income reported to date | D33: 0 | F33: Prior allocated income | G33: 0 | H33: Allocating | I33: 0 | L33: Unallocated income balance | M33: =D33-I33 -> 0
A35: JUSTIFICATION FOR MODIFICATION:
A36: One of our Community Business Organizations, ConXion, has left the grant due to limited staff capacity to ensure proper use of funding and project implementation. Our other two CBO’s, CARAS and LATI, have both submitted a project proposal to absorb the funding once allocated to ConXion. The intention would be to split ConXion’s funding between both LATI and CARAS to fulfill their attached project proposals. The total amount allocated overall will not be adjusted - rather the amounts within the CBOs will be shifted to support expansion of the other two programs with funding previously allocated to ConXion. This Budget Modification is requested for FY22 as the two additional CBOs provided program proposals for the funding for this year.
A55: PERSON PREPARING REPORT | I55: AUTHORIZED FINANCIAL OFFICER
I56: I hereby certify that I am the authorized financial officer of the herein named agency. I further certify that I have not violated any of the provisions of Section 1090 of the Government Code in incurring the expenditures reported in this invoice, nor in any other way; that Sections 1090 through 1096 of the Government Code will not be violated in any way in the expenditure of funds pursuant to this invoice; that statement of funds above is true, correct, and in accordance with program provisions in all respects; and that all expenditures submitted after the expiration date of this contract are for the purpose of substantiating obligations legally incurred during the contract period. Furthermore, by submitting this invoice, I acknowledge that it must adhere to all of the requirements in the BSCC Grant Administration Guide, including any updates to the Guide during the term of the grant agreement.
A57: Alex Coronel, Admin Data Tech
A58: Name, Title
A59: 408-453-4347
A60: Phone
A61: acoronel@sccoe.org
A62: Email
A63: 2021-10-01
A64: Date
I66: Thuy Trang Nguyen - Department Fiscal Officer
I67: Name, Title
I68: (408)468-1646
I69: Phone
I70: 2021-10-01
I71: Date
A73: BSCC USE ONLY
A74: Date Received: | C74: 2021-10-01 | H74: Approved By: | L74: Date:
I75: BSCC Field Representative

Sheet INVOICE 9
A1: STATE OF CALIFORNIA | L1: Purchase Authority | N1: BSCC 5227
A2: BOARD OF STATE AND COMMUNITY CORRECTIONS | L2: Purchase Order: | N2: 2455
A3: Financial Invoice Form: BSCC 201 (Revised 04/2020)
A5: Program: | B5: ='INVOICE 1'!B5 -> Youth Reinvestment Grant | K5: Please Note: The California State Controller's Office will send all checks directly to the address listed in the "BSCC Vendor Data" section at the bottom of this invoice.
A7: Grantee: | B7: ='INVOICE 1'!B7 -> COUNTY OF SANTA CLARA | F7: Lead Public Agency: | G7: N/A
A9: Contract #: | B9: ='INVOICE 1'!B9 -> BSCC 590-19 | D9: Term: | E9: ='INVOICE 1'!E9 -> 2019-07-01 | F9: TO | G9: ='INVOICE 1'!G9 -> 2023-02-28 | L9: Invoicing Frequency | M9: Quarterly
A11: Invoice #: | B11: 9 | D11: Reporting Period: | E11: 2021-07-01 | F11: TO | G11: 2021-09-30 | H11: Due: | I11: 2021-11-15 | L11: Final Invoice (Y/N): | M11: No
A13: Line Items | B13: Budget | E13: Prior Expenditures | H13: This Reporting Period | K13: Balance | N13: Advance Disbursements
B14: Grant Funds | C14: Match | D14: TOTAL | E14: Grant Funds | F14: Match | G14: TOTAL | H14: Grant Funds | I14: Match | J14: TOTAL | K14: Grant Funds | L14: Match | M14: TOTAL
A15: Salaries & Benefits | B15: ='INVOICE 8'!B15 -> 54221 | C15: ='INVOICE 8'!C15 -> 249371 | D15: =SUM(B15:C15) -> 303592 | E15: ='INVOICE 8'!E15+'INVOICE 8'!H15 -> 14967 | F15: ='INVOICE 8'!F15+'INVOICE 8'!I15 -> 28145.94 | G15: =SUM(E15:F15) -> 43112.94 | H15: 0 | I15: 0 | J15: =SUM(H15:I15) -> 0 | K15: =B15-E15-H15 -> 39254 | L15: 221225.06 | M15: =SUM(K15:L15) -> 260479.06 | N15: 1st Advance [10/25/19]
A16: Services & Supplies | B16: ='INVOICE 8'!B16 -> 0 | C16: ='INVOICE 8'!C16 -> 0 | D16: 0 | E16: ='INVOICE 8'!E16+'INVOICE 8'!H16 -> 0 | F16: ='INVOICE 8'!F16+'INVOICE 8'!I16 -> 0 | G16: =SUM(E16:F16) -> 0 | H16: 0 | I16: 0 | J16: 0 | K16: 0 | L16: 0 | M16: 0 | N16: ='1st Advance Payment'!K20 -> 333333
A17: Professional Services | B17: ='INVOICE 8'!B17 -> 0 | C17: ='INVOICE 8'!C17 -> 0 | D17: 0 | E17: ='INVOICE 8'!E17+'INVOICE 8'!H17 -> 0 | F17: ='INVOICE 8'!F17+'INVOICE 8'!I17 -> 0 | G17: =SUM(E17:F17) -> 0 | H17: 0 | I17: 0 | J17: 0 | K17: 0 | L17: 0 | M17: 0
A18: NGO Subcontracts | B18: ='INVOICE 8'!B18 -> 900000 | C18: ='INVOICE 8'!C18 -> 0 | D18: 900000 | E18: ='INVOICE 8'!E18+'INVOICE 8'!H18 -> 247635 | F18: ='INVOICE 8'!F18+'INVOICE 8'!I18 -> 0 | G18: 247635 | H18: 0 | I18: 0 | J18: 0 | K18: 652365 | L18: 0 | M18: 652365 | N18: 2nd Advance [enter date]
A19: Equipment / Fixed Assets | B19: ='INVOICE 8'!B19 -> 0 | C19: ='INVOICE 8'!C19 -> 0 | D19: 0 | E19: ='INVOICE 8'!E19+'INVOICE 8'!H19 -> 0 | F19: ='INVOICE 8'!F19+'INVOICE 8'!I19 -> 0 | G19: 0 | H19: 0 | I19: 0 | J19: 0 | K19: 0 | L19: 0 | M19: 0 | N19: 0
A20: Data Collection | B20: ='INVOICE 8'!B20 -> 0 | C20: ='INVOICE 8'!C20 -> 0 | D20: 0 | E20: ='INVOICE 8'!E20+'INVOICE 8'!H20 -> 0 | F20: ='INVOICE 8'!F20+'INVOICE 8'!I20 -> 0 | G20: 0 | H20: 0 | I20: 0 | J20: 0 | K20: 0 | L20: 0 | M20: 0
A21: Project Evaluation | B21: ='INVOICE 8'!B21 -> 33733 | C21: ='INVOICE 8'!C21 -> 0 | D21: 33733 | E21: ='INVOICE 8'!E21+'INVOICE 8'!H21 -> 0 | F21: ='INVOICE 8'!F21+'INVOICE 8'!I21 -> 0 | G21: 0 | H21: 0 | I21: 0 | J21: 0 | K21: 33733 | L21: 0 | M21: 33733 | N21: 3rd Advance [enter date]
A22: Other | B22: ='INVOICE 8'!B22 -> 6625 | C22: ='INVOICE 8'!C22 -> 629 | D22: =SUM(B22:C22) -> 7254 | E22: ='INVOICE 8'!E22+'INVOICE 8'!H22 -> 156 | F22: ='INVOICE 8'!F22+'INVOICE 8'!I22 -> 0 | G22: 156 | H22: 0 | I22: 0 | J22: 0 | K22: 6469 | L22: 629 | M22: 7098 | N22: 0
A23: Indirect Costs | B23: ='INVOICE 8'!B23 -> 5421 | C23: ='INVOICE 8'!C23 -> 0 | D23: 5421 | E23: ='INVOICE 8'!E23+'INVOICE 8'!H23 -> 1483 | F23: ='INVOICE 8'!F23+'INVOICE 8'!I23 -> 0 | G23: 1483 | H23: 0 | I23: 0 | J23: 0 | K23: 3938 | L23: 0 | M23: 3938
A24: TOTAL | B24: =SUM(B15:B23) -> 1000000 | C24: =SUM(C15:C23) -> 250000 | D24: =SUM(D15:D23) -> 1250000 | E24: =SUM(E15:E23) -> 264241 | F24: 28145.94 | G24: 292386.94 | H24: 0 | I24: =SUM(I15:I23) -> 0 | J24: 0 | K24: 735759 | L24: 221854.06 | M24: 957613.06 | N24: =SUM(N16+N19+N22) -> 333333
A26: Project Income | C26: Income reported to date | D26: ='INVOICE 1'!D26+'INVOICE 9'!I26 -> 0 | F26: Prior allocated income | G26: 0 | H26: This Period | I26: 0 | L26: Unallocated income balance | M26: =D26-G26 -> 0
C28: Grant funds expended to date: | D28: =SUM(E24,H24) -> 264241 | G28: Grant funds claimed this period: | H28: =H24 -> 0 | M28: % total dispursed fund expended to date: | N28: =D28/N24 -> 0.7927237927
C29: Match funds to date: | D29: =SUM(F24,I24) -> 28145.94 | G29: Advance disbursments balance: | H29: =N24-D28 -> 69092 | M29: % of Total Obligated Match to date: | N29: =D29/C24 -> 0.11258376
D33: Expenditure Descriptions - Units / $ Amounts | L33: Comments
A34: Salaries & Benefits | B34: Grant Funds | C34: =H15 -> 0
B35: Match | C35: =I15 -> 0
A36: Services & Supplies | B36: Grant Funds | C36: =H16 -> 0
B37: Match | C37: =I16 -> 0
A38: Professional Services | B38: Grant Funds | C38: =H17 -> 0
B39: Match | C39: =I17 -> 0
A40: NGO Subcontracts | B40: Grant Funds | C40: =H18 -> 0
B41: Match | C41: =I18 -> 0
A42: Equipment / Fixed Assets | B42: Grant Funds | C42: =H19 -> 0
B43: Match | C43: =I19 -> 0
A44: Data Collection | B44: Grant Funds | C44: =H20 -> 0
B45: Match | C45: =I20 -> 0
A46: Project Evaluation | B46: Grant Funds | C46: =H21 -> 0
B47: Match | C47: =I21 -> 0
A48: Other | B48: Grant Funds | C48: =H22 -> 0
B49: Match | C49: =I22 -> 0
A50: Indirect Costs | B50: Grant Funds | C50: =H23 -> 0
B51: Match | C51: =I23 -> 0
A52: Project Income | C52: =I26 -> 0
A53: PERSON PREPARING REPORT | E53: AUTHORIZED FINANCIAL OFFICER | L53: BSCC Supplier Data - Internal Use Only
E54: By checking the box below, I hereby certify that I am the authorized financial officer of the herein named agency. I further certify that I have not violated any of the provisions of Section 1090 of the Government Code in incurring the expenditures reported in this invoice, nor in any other way; that Sections 1090 through 1096 of the Government Code will not be violated in any way in the expenditure of funds pursuant to this invoice; that statement of funds above is true, correct, and in accordance with program provisions in all respects; and that all expenditures submitted after the expiration date of this contract are for the purpose of substantiating obligations legally incurred during the contract period. Furthermore, by submitting this invoice, I acknowledge that it must adhere to all of the requirements in the BSCC Grant Administration Guide, including any updates to the Guide during the term of the grant agreement.
L55: ='INVOICE 1'!L55:O55 -> 12077
A56: Name, Title | L56: Supplier ID
L57: ='INVOICE 1'!L57:O57 -> COUNTYOFSA-020
A58: Phone | L58: Supplier Name
L59: ='INVOICE 1'!L59:O59 -> 2314 N 1ST ST
A60: Email | L60: Address Line 1
L61: ='INVOICE 1'!L61:O61 -> SAN JOSE CA 95131
A62: Date | L62: Address Line 2
E65: Name, Title
E67: Phone
E69: Date
A71: BSCC USE ONLY
A72: Date Received: | G72: Approved By:
I73: BSCC Field Representative

Sheet INVOICE 10
A1: STATE OF CALIFORNIA | L1: Purchase Authority | N1: BSCC 5227
A2: BOARD OF STATE AND COMMUNITY CORRECTIONS | L2: Purchase Order: | N2: 2455
A3: Financial Invoice Form: BSCC 201 (Revised 04/2020)
A5: Program: | B5: ='INVOICE 1'!B5 -> Youth Reinvestment Grant | K5: Please Note: The California State Controller's Office will send all checks directly to the address listed in the "BSCC Vendor Data" section at the bottom of this invoice.
A7: Grantee: | B7: ='INVOICE 1'!B7 -> COUNTY OF SANTA CLARA | F7: Lead Public Agency: | G7: N/A
A9: Contract #: | B9: ='INVOICE 1'!B9 -> BSCC 590-19 | D9: Term: | E9: ='INVOICE 1'!E9 -> 2019-07-01 | F9: TO | G9: ='INVOICE 1'!G9 -> 2023-02-28 | L9: Invoicing Frequency | M9: Quarterly
A11: Invoice #: | B11: 10 | D11: Reporting Period: | E11: 2021-10-01 | F11: TO | G11: 2021-12-31 | H11: Due: | I11: 2022-02-14 | L11: Final Invoice (Y/N): | M11: No
A13: Line Items | B13: Budget | E13: Prior Expenditures | H13: This Reporting Period | K13: Balance | N13: Advance Disbursements
B14: Grant Funds | C14: Match | D14: TOTAL | E14: Grant Funds | F14: Match | G14: TOTAL | H14: Grant Funds | I14: Match | J14: TOTAL | K14: Grant Funds | L14: Match | M14: TOTAL
A15: Salaries & Benefits | B15: ='INVOICE 9'!B15 -> 54221 | C15: ='INVOICE 9'!C15 -> 249371 | D15: =SUM(B15:C15) -> 303592 | E15: ='INVOICE 9'!E15+'INVOICE 9'!H15 -> 14967 | F15: ='INVOICE 9'!F15+'INVOICE 9'!I15 -> 28145.94 | G15: =SUM(E15:F15) -> 43112.94 | H15: 0 | I15: 0 | J15: =SUM(H15:I15) -> 0 | K15: =B15-E15-H15 -> 39254 | L15: 221225.06 | M15: =SUM(K15:L15) -> 260479.06 | N15: 1st Advance [10/25/19]
A16: Services & Supplies | B16: ='INVOICE 9'!B16 -> 0 | C16: ='INVOICE 9'!C16 -> 0 | D16: 0 | E16: ='INVOICE 9'!E16+'INVOICE 9'!H16 -> 0 | F16: ='INVOICE 9'!F16+'INVOICE 9'!I16 -> 0 | G16: =SUM(E16:F16) -> 0 | H16: 0 | I16: 0 | J16: 0 | K16: 0 | L16: 0 | M16: 0 | N16: ='1st Advance Payment'!K20 -> 333333
A17: Professional Services | B17: ='INVOICE 9'!B17 -> 0 | C17: ='INVOICE 9'!C17 -> 0 | D17: 0 | E17: ='INVOICE 9'!E17+'INVOICE 9'!H17 -> 0 | F17: ='INVOICE 9'!F17+'INVOICE 9'!I17 -> 0 | G17: =SUM(E17:F17) -> 0 | H17: 0 | I17: 0 | J17: 0 | K17: 0 | L17: 0 | M17: 0
A18: NGO Subcontracts | B18: ='INVOICE 9'!B18 -> 900000 | C18: ='INVOICE 9'!C18 -> 0 | D18: 900000 | E18: ='INVOICE 9'!E18+'INVOICE 9'!H18 -> 247635 | F18: ='INVOICE 9'!F18+'INVOICE 9'!I18 -> 0 | G18: 247635 | H18: 0 | I18: 0 | J18: 0 | K18: 652365 | L18: 0 | M18: 652365 | N18: 2nd Advance [enter date]
A19: Equipment / Fixed Assets | B19: ='INVOICE 9'!B19 -> 0 | C19: ='INVOICE 9'!C19 -> 0 | D19: 0 | E19: ='INVOICE 9'!E19+'INVOICE 9'!H19 -> 0 | F19: ='INVOICE 9'!F19+'INVOICE 9'!I19 -> 0 | G19: 0 | H19: 0 | I19: 0 | J19: 0 | K19: 0 | L19: 0 | M19: 0 | N19: 0
A20: Data Collection | B20: ='INVOICE 9'!B20 -> 0 | C20: ='INVOICE 9'!C20 -> 0 | D20: 0 | E20: ='INVOICE 9'!E20+'INVOICE 9'!H20 -> 0 | F20: ='INVOICE 9'!F20+'INVOICE 9'!I20 -> 0 | G20: 0 | H20: 0 | I20: 0 | J20: 0 | K20: 0 | L20: 0 | M20: 0
A21: Project Evaluation | B21: ='INVOICE 9'!B21 -> 33733 | C21: ='INVOICE 9'!C21 -> 0 | D21: 33733 | E21: ='INVOICE 9'!E21+'INVOICE 9'!H21 -> 0 | F21: ='INVOICE 9'!F21+'INVOICE 9'!I21 -> 0 | G21: 0 | H21: 0 | I21: 0 | J21: 0 | K21: 33733 | L21: 0 | M21: 33733 | N21: 3rd Advance [enter date]
A22: Other | B22: ='INVOICE 9'!B22 -> 6625 | C22: ='INVOICE 9'!C22 -> 629 | D22: =SUM(B22:C22) -> 7254 | E22: ='INVOICE 9'!E22+'INVOICE 9'!H22 -> 156 | F22: ='INVOICE 9'!F22+'INVOICE 9'!I22 -> 0 | G22: 156 | H22: 0 | I22: 0 | J22: 0 | K22: 6469 | L22: 629 | M22: 7098 | N22: 0
A23: Indirect Costs | B23: ='INVOICE 9'!B23 -> 5421 | C23: ='INVOICE 9'!C23 -> 0 | D23: 5421 | E23: ='INVOICE 9'!E23+'INVOICE 9'!H23 -> 1483 | F23: ='INVOICE 9'!F23+'INVOICE 9'!I23 -> 0 | G23: 1483 | H23: 0 | I23: 0 | J23: 0 | K23: 3938 | L23: 0 | M23: 3938
A24: TOTAL | B24: =SUM(B15:B23) -> 1000000 | C24: =SUM(C15:C23) -> 250000 | D24: =SUM(D15:D23) -> 1250000 | E24: =SUM(E15:E23) -> 264241 | F24: 28145.94 | G24: 292386.94 | H24: 0 | I24: =SUM(I15:I23) -> 0 | J24: 0 | K24: 735759 | L24: 221854.06 | M24: 957613.06 | N24: =SUM(N16+N19+N22) -> 333333
A26: Project Income | C26: Income reported to date | D26: ='INVOICE 1'!D26+'INVOICE 10'!I26 -> 0 | F26: Prior allocated income | G26: 0 | H26: This Period | I26: 0 | L26: Unallocated income balance | M26: =D26-G26 -> 0
C28: Grant funds expended to date: | D28: =SUM(E24,H24) -> 264241 | G28: Grant funds claimed this period: | H28: =H24 -> 0 | M28: % total dispursed fund expended to date: | N28: =D28/N24 -> 0.7927237927
C29: Match funds to date: | D29: =SUM(F24,I24) -> 28145.94 | G29: Advance disbursments balance: | H29: =N24-D28 -> 69092 | M29: % of Total Obligated Match to date: | N29: =D29/C24 -> 0.11258376
D33: Expenditure Descriptions - Units / $ Amounts | L33: Comments
A34: Salaries & Benefits | B34: Grant Funds | C34: =H15 -> 0
B35: Match | C35: =I15 -> 0
A36: Services & Supplies | B36: Grant Funds | C36: =H16 -> 0
B37: Match | C37: =I16 -> 0
A38: Professional Services | B38: Grant Funds | C38: =H17 -> 0
B39: Match | C39: =I17 -> 0
A40: NGO Subcontracts | B40: Grant Funds | C40: =H18 -> 0
B41: Match | C41: =I18 -> 0
A42: Equipment / Fixed Assets | B42: Grant Funds | C42: =H19 -> 0
B43: Match | C43: =I19 -> 0
A44: Data Collection | B44: Grant Funds | C44: =H20 -> 0
B45: Match | C45: =I20 -> 0
A46: Project Evaluation | B46: Grant Funds | C46: =H21 -> 0
B47: Match | C47: =I21 -> 0
A48: Other | B48: Grant Funds | C48: =H22 -> 0
B49: Match | C49: =I22 -> 0
A50: Indirect Costs | B50: Grant Funds | C50: =H23 -> 0
B51: Match | C51: =I23 -> 0
A52: Project Income | C52: =I26 -> 0
A53: PERSON PREPARING REPORT | E53: AUTHORIZED FINANCIAL OFFICER | L53: BSCC Supplier Data - Internal Use Only
E54: By checking the box below, I hereby certify that I am the authorized financial officer of the herein named agency. I further certify that I have not violated any of the provisions of Section 1090 of the Government Code in incurring the expenditures reported in this invoice, nor in any other way; that Sections 1090 through 1096 of the Government Code will not be violated in any way in the expenditure of funds pursuant to this invoice; that statement of funds above is true, correct, and in accordance with program provisions in all respects; and that all expenditures submitted after the expiration date of this contract are for the purpose of substantiating obligations legally incurred during the contract period. Furthermore, by submitting this invoice, I acknowledge that it must adhere to all of the requirements in the BSCC Grant Administration Guide, including any updates to the Guide during the term of the grant agreement.
L55: ='INVOICE 1'!L55:O55 -> 12077
A56: Name, Title | L56: Supplier ID
L57: ='INVOICE 1'!L57:O57 -> COUNTYOFSA-020
A58: Phone | L58: Supplier Name
L59: ='INVOICE 1'!L59:O59 -> 2314 N 1ST ST
A60: Email | L60: Address Line 1
L61: ='INVOICE 1'!L61:O61 -> SAN JOSE CA 95131
A62: Date | L62: Address Line 2
E65: Name, Title
E67: Phone
E69: Date
A71: BSCC USE ONLY
A72: Date Received: | G72: Approved By:
I73: BSCC Field Representative

Sheet INVOICE 11
A1: STATE OF CALIFORNIA | L1: Purchase Authority | N1: BSCC 5227
A2: BOARD OF STATE AND COMMUNITY CORRECTIONS | L2: Purchase Order: | N2: 2455
A3: Financial Invoice Form: BSCC 201 (Revised 04/2020)
A5: Program: | B5: ='INVOICE 1'!B5 -> Youth Reinvestment Grant | K5: Please Note: The California State Controller's Office will send all checks directly to the address listed in the "BSCC Vendor Data" section at the bottom of this invoice.
A7: Grantee: | B7: ='INVOICE 1'!B7 -> COUNTY OF SANTA CLARA | F7: Lead Public Agency: | G7: N/A
A9: Contract #: | B9: ='INVOICE 1'!B9 -> BSCC 590-19 | D9: Term: | E9: ='INVOICE 1'!E9 -> 2019-07-01 | F9: TO | G9: ='INVOICE 1'!G9 -> 2023-02-28 | L9: Invoicing Frequency | M9: Quarterly
A11: Invoice #: | B11: 11 | D11: Reporting Period: | E11: 2022-01-01 | F11: TO | G11: 2022-03-31 | H11: Due: | I11: 2022-05-16 | L11: Final Invoice (Y/N): | M11: No
A13: Line Items | B13: Budget | E13: Prior Expenditures | H13: This Reporting Period | K13: Balance | N13: Advance Disbursements
B14: Grant Funds | C14: Match | D14: TOTAL | E14: Grant Funds | F14: Match | G14: TOTAL | H14: Grant Funds | I14: Match | J14: TOTAL | K14: Grant Funds | L14: Match | M14: TOTAL
A15: Salaries & Benefits | B15: ='INVOICE 10'!B15 -> 54221 | C15: ='INVOICE 10'!C15 -> 249371 | D15: =SUM(B15:C15) -> 303592 | E15: ='INVOICE 10'!E15+'INVOICE 10'!H15 -> 14967 | F15: ='INVOICE 10'!F15+'INVOICE 10'!I15 -> 28145.94 | G15: =SUM(E15:F15) -> 43112.94 | H15: 0 | I15: 0 | J15: =SUM(H15:I15) -> 0 | K15: =B15-E15-H15 -> 39254 | L15: 221225.06 | M15: =SUM(K15:L15) -> 260479.06 | N15: 1st Advance [10/25/19]
A16: Services & Supplies | B16: ='INVOICE 10'!B16 -> 0 | C16: ='INVOICE 10'!C16 -> 0 | D16: 0 | E16: ='INVOICE 10'!E16+'INVOICE 10'!H16 -> 0 | F16: ='INVOICE 10'!F16+'INVOICE 10'!I16 -> 0 | G16: =SUM(E16:F16) -> 0 | H16: 0 | I16: 0 | J16: 0 | K16: 0 | L16: 0 | M16: 0 | N16: ='1st Advance Payment'!K20 -> 333333
A17: Professional Services | B17: ='INVOICE 10'!B17 -> 0 | C17: ='INVOICE 10'!C17 -> 0 | D17: 0 | E17: ='INVOICE 10'!E17+'INVOICE 10'!H17 -> 0 | F17: ='INVOICE 10'!F17+'INVOICE 10'!I17 -> 0 | G17: =SUM(E17:F17) -> 0 | H17: 0 | I17: 0 | J17: 0 | K17: 0 | L17: 0 | M17: 0
A18: NGO Subcontracts | B18: ='INVOICE 10'!B18 -> 900000 | C18: ='INVOICE 10'!C18 -> 0 | D18: 900000 | E18: ='INVOICE 10'!E18+'INVOICE 10'!H18 -> 247635 | F18: ='INVOICE 10'!F18+'INVOICE 10'!I18 -> 0 | G18: 247635 | H18: 0 | I18: 0 | J18: 0 | K18: 652365 | L18: 0 | M18: 652365 | N18: 2nd Advance [enter date]
A19: Equipment / Fixed Assets | B19: ='INVOICE 10'!B19 -> 0 | C19: ='INVOICE 10'!C19 -> 0 | D19: 0 | E19: ='INVOICE 10'!E19+'INVOICE 10'!H19 -> 0 | F19: ='INVOICE 10'!F19+'INVOICE 10'!I19 -> 0 | G19: 0 | H19: 0 | I19: 0 | J19: 0 | K19: 0 | L19: 0 | M19: 0 | N19: 0
A20: Data Collection | B20: ='INVOICE 10'!B20 -> 0 | C20: ='INVOICE 10'!C20 -> 0 | D20: 0 | E20: ='INVOICE 10'!E20+'INVOICE 10'!H20 -> 0 | F20: ='INVOICE 10'!F20+'INVOICE 10'!I20 -> 0 | G20: 0 | H20: 0 | I20: 0 | J20: 0 | K20: 0 | L20: 0 | M20: 0
A21: Project Evaluation | B21: ='INVOICE 10'!B21 -> 33733 | C21: ='INVOICE 10'!C21 -> 0 | D21: 33733 | E21: ='INVOICE 10'!E21+'INVOICE 10'!H21 -> 0 | F21: ='INVOICE 10'!F21+'INVOICE 10'!I21 -> 0 | G21: 0 | H21: 0 | I21: 0 | J21: 0 | K21: 33733 | L21: 0 | M21: 33733 | N21: 3rd Advance [enter date]
A22: Other | B22: ='INVOICE 10'!B22 -> 6625 | C22: ='INVOICE 10'!C22 -> 629 | D22: =SUM(B22:C22) -> 7254 | E22: ='INVOICE 10'!E22+'INVOICE 10'!H22 -> 156 | F22: ='INVOICE 10'!F22+'INVOICE 10'!I22 -> 0 | G22: 156 | H22: 0 | I22: 0 | J22: 0 | K22: 6469 | L22: 629 | M22: 7098 | N22: 0
A23: Indirect Costs | B23: ='INVOICE 10'!B23 -> 5421 | C23: ='INVOICE 10'!C23 -> 0 | D23: 5421 | E23: ='INVOICE 10'!E23+'INVOICE 10'!H23 -> 1483 | F23: ='INVOICE 10'!F23+'INVOICE 10'!I23 -> 0 | G23: 1483 | H23: 0 | I23: 0 | J23: 0 | K23: 3938 | L23: 0 | M23: 3938
A24: TOTAL | B24: =SUM(B15:B23) -> 1000000 | C24: =SUM(C15:C23) -> 250000 | D24: =SUM(D15:D23) -> 1250000 | E24: =SUM(E15:E23) -> 264241 | F24: 28145.94 | G24: 292386.94 | H24: 0 | I24: =SUM(I15:I23) -> 0 | J24: 0 | K24: 735759 | L24: 221854.06 | M24: 957613.06 | N24: =SUM(N16+N19+N22) -> 333333
A26: Project Income | C26: Income reported to date | D26: ='INVOICE 1'!D26+'INVOICE 11'!I26 -> 0 | F26: Prior allocated income | G26: 0 | H26: This Period | I26: 0 | L26: Unallocated income balance | M26: =D26-G26 -> 0
C28: Grant funds expended to date: | D28: =SUM(E24,H24) -> 264241 | G28: Grant funds claimed this period: | H28: =H24 -> 0 | M28: % total dispursed fund expended to date: | N28: =D28/N24 -> 0.7927237927
C29: Match funds to date: | D29: =SUM(F24,I24) -> 28145.94 | G29: Advance disbursments balance: | H29: =N24-D28 -> 69092 | M29: % of Total Obligated Match to date: | N29: =D29/C24 -> 0.11258376
D33: Expenditure Descriptions - Units / $ Amounts | L33: Comments
A34: Salaries & Benefits | B34: Grant Funds | C34: =H15 -> 0
B35: Match | C35: =I15 -> 0
A36: Services & Supplies | B36: Grant Funds | C36: =H16 -> 0
B37: Match | C37: =I16 -> 0
A38: Professional Services | B38: Grant Funds | C38: =H17 -> 0
B39: Match | C39: =I17 -> 0
A40: NGO Subcontracts | B40: Grant Funds | C40: =H18 -> 0
B41: Match | C41: =I18 -> 0
A42: Equipment / Fixed Assets | B42: Grant Funds | C42: =H19 -> 0
B43: Match | C43: =I19 -> 0
A44: Data Collection | B44: Grant Funds | C44: =H20 -> 0
B45: Match | C45: =I20 -> 0
A46: Project Evaluation | B46: Grant Funds | C46: =H21 -> 0
B47: Match | C47: =I21 -> 0
A48: Other | B48: Grant Funds | C48: =H22 -> 0
B49: Match | C49: =I22 -> 0
A50: Indirect Costs | B50: Grant Funds | C50: =H23 -> 0
B51: Match | C51: =I23 -> 0
A52: Project Income | C52: =I26 -> 0
A53: PERSON PREPARING REPORT | E53: AUTHORIZED FINANCIAL OFFICER | L53: BSCC Supplier Data - Internal Use Only
E54: By checking the box below, I hereby certify that I am the authorized financial officer of the herein named agency. I further certify that I have not violated any of the provisions of Section 1090 of the Government Code in incurring the expenditures reported in this invoice, nor in any other way; that Sections 1090 through 1096 of the Government Code will not be violated in any way in the expenditure of funds pursuant to this invoice; that statement of funds above is true, correct, and in accordance with program provisions in all respects; and that all expenditures submitted after the expiration date of this contract are for the purpose of substantiating obligations legally incurred during the contract period. Furthermore, by submitting this invoice, I acknowledge that it must adhere to all of the requirements in the BSCC Grant Administration Guide, including any updates to the Guide during the term of the grant agreement.
L55: ='INVOICE 1'!L55:O55 -> 12077
A56: Name, Title | L56: Supplier ID
L57: ='INVOICE 1'!L57:O57 -> COUNTYOFSA-020
A58: Phone | L58: Supplier Name
L59: ='INVOICE 1'!L59:O59 -> 2314 N 1ST ST
A60: Email | L60: Address Line 1
L61: ='INVOICE 1'!L61:O61 -> SAN JOSE CA 95131
A62: Date | L62: Address Line 2
E65: Name, Title
E67: Phone
E69: Date
A71: BSCC USE ONLY
A72: Date Received: | G72: Approved By:
I73: BSCC Field Representative

Sheet INVOICE 12
A1: STATE OF CALIFORNIA | L1: Purchase Authority | N1: BSCC 5227
A2: BOARD OF STATE AND COMMUNITY CORRECTIONS | L2: Purchase Order: | N2: 2455
A3: Financial Invoice Form: BSCC 201 (Revised 04/2020)
A5: Program: | B5: ='INVOICE 1'!B5 -> Youth Reinvestment Grant | K5: Please Note: The California State Controller's Office will send all checks directly to the address listed in the "BSCC Vendor Data" section at the bottom of this invoice.
A7: Grantee: | B7: ='INVOICE 1'!B7 -> COUNTY OF SANTA CLARA | F7: Lead Public Agency: | G7: N/A
A9: Contract #: | B9: ='INVOICE 1'!B9 -> BSCC 590-19 | D9: Term: | E9: ='INVOICE 1'!E9 -> 2019-07-01 | F9: TO | G9: ='INVOICE 1'!G9 -> 2023-02-28 | L9: Invoicing Frequency | M9: Quarterly
A11: Invoice #: | B11: 12 | D11: Reporting Period: | E11: 2022-04-01 | F11: TO | G11: 2022-06-30 | H11: Due: | I11: 2022-08-15 | L11: Final Invoice (Y/N): | M11: No
A13: Line Items | B13: Budget | E13: Prior Expenditures | H13: This Reporting Period | K13: Balance | N13: Advance Disbursements
B14: Grant Funds | C14: Match | D14: TOTAL | E14: Grant Funds | F14: Match | G14: TOTAL | H14: Grant Funds | I14: Match | J14: TOTAL | K14: Grant Funds | L14: Match | M14: TOTAL
A15: Salaries & Benefits | B15: ='INVOICE 11'!B15 -> 54221 | C15: ='INVOICE 11'!C15 -> 249371 | D15: =SUM(B15:C15) -> 303592 | E15: ='INVOICE 11'!E15+'INVOICE 11'!H15 -> 14967 | F15: ='INVOICE 11'!F15+'INVOICE 11'!I15 -> 28145.94 | G15: =SUM(E15:F15) -> 43112.94 | H15: 0 | I15: 0 | J15: =SUM(H15:I15) -> 0 | K15: =B15-E15-H15 -> 39254 | L15: 221225.06 | M15: =SUM(K15:L15) -> 260479.06 | N15: 1st Advance [10/25/19]
A16: Services & Supplies | B16: ='INVOICE 11'!B16 -> 0 | C16: ='INVOICE 11'!C16 -> 0 | D16: 0 | E16: ='INVOICE 11'!E16+'INVOICE 11'!H16 -> 0 | F16: ='INVOICE 11'!F16+'INVOICE 11'!I16 -> 0 | G16: =SUM(E16:F16) -> 0 | H16: 0 | I16: 0 | J16: 0 | K16: 0 | L16: 0 | M16: 0 | N16: ='1st Advance Payment'!K20 -> 333333
A17: Professional Services | B17: ='INVOICE 11'!B17 -> 0 | C17: ='INVOICE 11'!C17 -> 0 | D17: 0 | E17: ='INVOICE 11'!E17+'INVOICE 11'!H17 -> 0 | F17: ='INVOICE 11'!F17+'INVOICE 11'!I17 -> 0 | G17: =SUM(E17:F17) -> 0 | H17: 0 | I17: 0 | J17: 0 | K17: 0 | L17: 0 | M17: 0
A18: NGO Subcontracts | B18: ='INVOICE 11'!B18 -> 900000 | C18: ='INVOICE 11'!C18 -> 0 | D18: 900000 | E18: ='INVOICE 11'!E18+'INVOICE 11'!H18 -> 247635 | F18: ='INVOICE 11'!F18+'INVOICE 11'!I18 -> 0 | G18: 247635 | H18: 0 | I18: 0 | J18: 0 | K18: 652365 | L18: 0 | M18: 652365 | N18: 2nd Advance [enter date]
A19: Equipment / Fixed Assets | B19: ='INVOICE 11'!B19 -> 0 | C19: ='INVOICE 11'!C19 -> 0 | D19: 0 | E19: ='INVOICE 11'!E19+'INVOICE 11'!H19 -> 0 | F19: ='INVOICE 11'!F19+'INVOICE 11'!I19 -> 0 | G19: 0 | H19: 0 | I19: 0 | J19: 0 | K19: 0 | L19: 0 | M19: 0 | N19: 0
A20: Data Collection | B20: ='INVOICE 11'!B20 -> 0 | C20: ='INVOICE 11'!C20 -> 0 | D20: 0 | E20: ='INVOICE 11'!E20+'INVOICE 11'!H20 -> 0 | F20: ='INVOICE 11'!F20+'INVOICE 11'!I20 -> 0 | G20: 0 | H20: 0 | I20: 0 | J20: 0 | K20: 0 | L20: 0 | M20: 0
A21: Project Evaluation | B21: ='INVOICE 11'!B21 -> 33733 | C21: ='INVOICE 11'!C21 -> 0 | D21: 33733 | E21: ='INVOICE 11'!E21+'INVOICE 11'!H21 -> 0 | F21: ='INVOICE 11'!F21+'INVOICE 11'!I21 -> 0 | G21: 0 | H21: 0 | I21: 0 | J21: 0 | K21: 33733 | L21: 0 | M21: 33733 | N21: 3rd Advance [enter date]
A22: Other | B22: ='INVOICE 11'!B22 -> 6625 | C22: ='INVOICE 11'!C22 -> 629 | D22: =SUM(B22:C22) -> 7254 | E22: ='INVOICE 11'!E22+'INVOICE 11'!H22 -> 156 | F22: ='INVOICE 11'!F22+'INVOICE 11'!I22 -> 0 | G22: 156 | H22: 0 | I22: 0 | J22: 0 | K22: 6469 | L22: 629 | M22: 7098 | N22: 0
A23: Indirect Costs | B23: ='INVOICE 11'!B23 -> 5421 | C23: ='INVOICE 11'!C23 -> 0 | D23: 5421 | E23: ='INVOICE 11'!E23+'INVOICE 11'!H23 -> 1483 | F23: ='INVOICE 11'!F23+'INVOICE 11'!I23 -> 0 | G23: 1483 | H23: 0 | I23: 0 | J23: 0 | K23: 3938 | L23: 0 | M23: 3938
A24: TOTAL | B24: =SUM(B15:B23) -> 1000000 | C24: =SUM(C15:C23) -> 250000 | D24: =SUM(D15:D23) -> 1250000 | E24: =SUM(E15:E23) -> 264241 | F24: 28145.94 | G24: 292386.94 | H24: 0 | I24: =SUM(I15:I23) -> 0 | J24: 0 | K24: 735759 | L24: 221854.06 | M24: 957613.06 | N24: =SUM(N16+N19+N22) -> 333333
A26: Project Income | C26: Income reported to date | D26: ='INVOICE 1'!D26+'INVOICE 12'!I26 -> 0 | F26: Prior allocated income | G26: 0 | H26: This Period | I26: 0 | L26: Unallocated income balance | M26: =D26-G26 -> 0
C28: Grant funds expended to date: | D28: =SUM(E24,H24) -> 264241 | G28: Grant funds claimed this period: | H28: =H24 -> 0 | M28: % total dispursed fund expended to date: | N28: =D28/N24 -> 0.7927237927
C29: Match funds to date: | D29: =SUM(F24,I24) -> 28145.94 | G29: Advance disbursments balance: | H29: =N24-D28 -> 69092 | M29: % of Total Obligated Match to date: | N29: =D29/C24 -> 0.11258376
D33: Expenditure Descriptions - Units / $ Amounts | L33: Comments
A34: Salaries & Benefits | B34: Grant Funds | C34: =H15 -> 0
B35: Match | C35: =I15 -> 0
A36: Services & Supplies | B36: Grant Funds | C36: =H16 -> 0
B37: Match | C37: =I16 -> 0
A38: Professional Services | B38: Grant Funds | C38: =H17 -> 0
B39: Match | C39: =I17 -> 0
A40: NGO Subcontracts | B40: Grant Funds | C40: =H18 -> 0
B41: Match | C41: =I18 -> 0
A42: Equipment / Fixed Assets | B42: Grant Funds | C42: =H19 -> 0
B43: Match | C43: =I19 -> 0
A44: Data Collection | B44: Grant Funds | C44: =H20 -> 0
B45: Match | C45: =I20 -> 0
A46: Project Evaluation | B46: Grant Funds | C46: =H21 -> 0
B47: Match | C47: =I21 -> 0
A48: Other | B48: Grant Funds | C48: =H22 -> 0
B49: Match | C49: =I22 -> 0
A50: Indirect Costs | B50: Grant Funds | C50: =H23 -> 0
B51: Match | C51: =I23 -> 0
A52: Project Income | C52: =I26 -> 0
A53: PERSON PREPARING REPORT | E53: AUTHORIZED FINANCIAL OFFICER | L53: BSCC Supplier Data - Internal Use Only
E54: By checking the box below, I hereby certify that I am the authorized financial officer of the herein named agency. I further certify that I have not violated any of the provisions of Section 1090 of the Government Code in incurring the expenditures reported in this invoice, nor in any other way; that Sections 1090 through 1096 of the Government Code will not be violated in any way in the expenditure of funds pursuant to this invoice; that statement of funds above is true, correct, and in accordance with program provisions in all respects; and that all expenditures submitted after the expiration date of this contract are for the purpose of substantiating obligations legally incurred during the contract period. Furthermore, by submitting this invoice, I acknowledge that it must adhere to all of the requirements in the BSCC Grant Administration Guide, including any updates to the Guide during the term of the grant agreement.
L55: ='INVOICE 1'!L55:O55 -> 12077
A56: Name, Title | L56: Supplier ID
L57: ='INVOICE 1'!L57:O57 -> COUNTYOFSA-020
A58: Phone | L58: Supplier Name
L59: ='INVOICE 1'!L59:O59 -> 2314 N 1ST ST
A60: Email | L60: Address Line 1
L61: ='INVOICE 1'!L61:O61 -> SAN JOSE CA 95131
A62: Date | L62: Address Line 2
E65: Name, Title
E67: Phone
E69: Date
A71: BSCC USE ONLY
A72: Date Received: | G72: Approved By:
I73: BSCC Field Representative

Sheet INVOICE 13
A1: STATE OF CALIFORNIA | L1: Purchase Authority | N1: BSCC 5227
A2: BOARD OF STATE AND COMMUNITY CORRECTIONS | L2: Purchase Order: | N2: 2455
A3: Financial Invoice Form: BSCC 201 (Revised 04/2020)
A5: Program: | B5: ='INVOICE 1'!B5 -> Youth Reinvestment Grant | K5: Please Note: The California State Controller's Office will send all checks directly to the address listed in the "BSCC Vendor Data" section at the bottom of this invoice.
A7: Grantee: | B7: ='INVOICE 1'!B7 -> COUNTY OF SANTA CLARA | F7: Lead Public Agency: | G7: N/A
A9: Contract #: | B9: ='INVOICE 1'!B9 -> BSCC 590-19 | D9: Term: | E9: ='INVOICE 1'!E9 -> 2019-07-01 | F9: TO | G9: ='INVOICE 1'!G9 -> 2023-02-28 | L9: Invoicing Frequency | M9: Quarterly
A11: Invoice #: | B11: 13 | D11: Reporting Period: | E11: 2022-07-01 | F11: TO | G11: 2022-09-30 | H11: Due: | I11: 2022-11-14 | L11: Final Invoice (Y/N): | M11: No
A13: Line Items | B13: Budget | E13: Prior Expenditures | H13: This Reporting Period | K13: Balance | N13: Advance Disbursements
B14: Grant Funds | C14: Match | D14: TOTAL | E14: Grant Funds | F14: Match | G14: TOTAL | H14: Grant Funds | I14: Match | J14: TOTAL | K14: Grant Funds | L14: Match | M14: TOTAL
A15: Salaries & Benefits | B15: ='INVOICE 12'!B15 -> 54221 | C15: ='INVOICE 12'!C15 -> 249371 | D15: =SUM(B15:C15) -> 303592 | E15: ='INVOICE 12'!E15+'INVOICE 12'!H15 -> 14967 | F15: ='INVOICE 12'!F15+'INVOICE 12'!I15 -> 28145.94 | G15: =SUM(E15:F15) -> 43112.94 | H15: 0 | I15: 0 | J15: =SUM(H15:I15) -> 0 | K15: =B15-E15-H15 -> 39254 | L15: 221225.06 | M15: =SUM(K15:L15) -> 260479.06 | N15: 1st Advance [10/25/19]
A16: Services & Supplies | B16: ='INVOICE 12'!B16 -> 0 | C16: ='INVOICE 12'!C16 -> 0 | D16: 0 | E16: ='INVOICE 12'!E16+'INVOICE 12'!H16 -> 0 | F16: ='INVOICE 12'!F16+'INVOICE 12'!I16 -> 0 | G16: =SUM(E16:F16) -> 0 | H16: 0 | I16: 0 | J16: 0 | K16: 0 | L16: 0 | M16: 0 | N16: ='1st Advance Payment'!K20 -> 333333
A17: Professional Services | B17: ='INVOICE 12'!B17 -> 0 | C17: ='INVOICE 12'!C17 -> 0 | D17: 0 | E17: ='INVOICE 12'!E17+'INVOICE 12'!H17 -> 0 | F17: ='INVOICE 12'!F17+'INVOICE 12'!I17 -> 0 | G17: =SUM(E17:F17) -> 0 | H17: 0 | I17: 0 | J17: 0 | K17: 0 | L17: 0 | M17: 0
A18: NGO Subcontracts | B18: ='INVOICE 12'!B18 -> 900000 | C18: ='INVOICE 12'!C18 -> 0 | D18: 900000 | E18: ='INVOICE 12'!E18+'INVOICE 12'!H18 -> 247635 | F18: ='INVOICE 12'!F18+'INVOICE 12'!I18 -> 0 | G18: 247635 | H18: 0 | I18: 0 | J18: 0 | K18: 652365 | L18: 0 | M18: 652365 | N18: 2nd Advance [enter date]
A19: Equipment / Fixed Assets | B19: ='INVOICE 12'!B19 -> 0 | C19: ='INVOICE 12'!C19 -> 0 | D19: 0 | E19: ='INVOICE 12'!E19+'INVOICE 12'!H19 -> 0 | F19: ='INVOICE 12'!F19+'INVOICE 12'!I19 -> 0 | G19: 0 | H19: 0 | I19: 0 | J19: 0 | K19: 0 | L19: 0 | M19: 0 | N19: 0
A20: Data Collection | B20: ='INVOICE 12'!B20 -> 0 | C20: ='INVOICE 12'!C20 -> 0 | D20: 0 | E20: ='INVOICE 12'!E20+'INVOICE 12'!H20 -> 0 | F20: ='INVOICE 12'!F20+'INVOICE 12'!I20 -> 0 | G20: 0 | H20: 0 | I20: 0 | J20: 0 | K20: 0 | L20: 0 | M20: 0
A21: Project Evaluation | B21: ='INVOICE 12'!B21 -> 33733 | C21: ='INVOICE 12'!C21 -> 0 | D21: 33733 | E21: ='INVOICE 12'!E21+'INVOICE 12'!H21 -> 0 | F21: ='INVOICE 12'!F21+'INVOICE 12'!I21 -> 0 | G21: 0 | H21: 0 | I21: 0 | J21: 0 | K21: 33733 | L21: 0 | M21: 33733 | N21: 3rd Advance [enter date]
A22: Other | B22: ='INVOICE 12'!B22 -> 6625 | C22: ='INVOICE 12'!C22 -> 629 | D22: =SUM(B22:C22) -> 7254 | E22: ='INVOICE 12'!E22+'INVOICE 12'!H22 -> 156 | F22: ='INVOICE 12'!F22+'INVOICE 12'!I22 -> 0 | G22: 156 | H22: 0 | I22: 0 | J22: 0 | K22: 6469 | L22: 629 | M22: 7098 | N22: 0
A23: Indirect Costs | B23: ='INVOICE 12'!B23 -> 5421 | C23: ='INVOICE 12'!C23 -> 0 | D23: 5421 | E23: ='INVOICE 12'!E23+'INVOICE 12'!H23 -> 1483 | F23: ='INVOICE 12'!F23+'INVOICE 12'!I23 -> 0 | G23: 1483 | H23: 0 | I23: 0 | J23: 0 | K23: 3938 | L23: 0 | M23: 3938
A24: TOTAL | B24: =SUM(B15:B23) -> 1000000 | C24: =SUM(C15:C23) -> 250000 | D24: =SUM(D15:D23) -> 1250000 | E24: =SUM(E15:E23) -> 264241 | F24: 28145.94 | G24: 292386.94 | H24: 0 | I24: =SUM(I15:I23) -> 0 | J24: 0 | K24: 735759 | L24: 221854.06 | M24: 957613.06 | N24: =SUM(N16+N19+N22) -> 333333
A26: Project Income | C26: Income reported to date | D26: ='INVOICE 1'!D26+'INVOICE 13'!I26 -> 0 | F26: Prior allocated income | G26: 0 | H26: This Period | I26: 0 | L26: Unallocated income balance | M26: =D26-G26 -> 0
C28: Grant funds expended to date: | D28: =SUM(E24,H24) -> 264241 | G28: Grant funds claimed this period: | H28: =H24 -> 0 | M28: % total dispursed fund expended to date: | N28: =D28/N24 -> 0.7927237927
C29: Match funds to date: | D29: =SUM(F24,I24) -> 28145.94 | G29: Advance disbursments balance: | H29: =N24-D28 -> 69092 | M29: % of Total Obligated Match to date: | N29: =D29/C24 -> 0.11258376
D33: Expenditure Descriptions - Units / $ Amounts | L33: Comments
A34: Salaries & Benefits | B34: Grant Funds | C34: =H15 -> 0
B35: Match | C35: =I15 -> 0
A36: Services & Supplies | B36: Grant Funds | C36: =H16 -> 0
B37: Match | C37: =I16 -> 0
A38: Professional Services | B38: Grant Funds | C38: =H17 -> 0
B39: Match | C39: =I17 -> 0
A40: NGO Subcontracts | B40: Grant Funds | C40: =H18 -> 0
B41: Match | C41: =I18 -> 0
A42: Equipment / Fixed Assets | B42: Grant Funds | C42: =H19 -> 0
B43: Match | C43: =I19 -> 0
A44: Data Collection | B44: Grant Funds | C44: =H20 -> 0
B45: Match | C45: =I20 -> 0
A46: Project Evaluation | B46: Grant Funds | C46: =H21 -> 0
B47: Match | C47: =I21 -> 0
A48: Other | B48: Grant Funds | C48: =H22 -> 0
B49: Match | C49: =I22 -> 0
A50: Indirect Costs | B50: Grant Funds | C50: =H23 -> 0
B51: Match | C51: =I23 -> 0
A52: Project Income | C52: =I26 -> 0
A53: PERSON PREPARING REPORT | E53: AUTHORIZED FINANCIAL OFFICER | L53: BSCC Supplier Data - Internal Use Only
E54: By checking the box below, I hereby certify that I am the authorized financial officer of the herein named agency. I further certify that I have not violated any of the provisions of Section 1090 of the Government Code in incurring the expenditures reported in this invoice, nor in any other way; that Sections 1090 through 1096 of the Government Code will not be violated in any way in the expenditure of funds pursuant to this invoice; that statement of funds above is true, correct, and in accordance with program provisions in all respects; and that all expenditures submitted after the expiration date of this contract are for the purpose of substantiating obligations legally incurred during the contract period. Furthermore, by submitting this invoice, I acknowledge that it must adhere to all of the requirements in the BSCC Grant Administration Guide, including any updates to the Guide during the term of the grant agreement.
L55: ='INVOICE 1'!L55:O55 -> 12077
A56: Name, Title | L56: Supplier ID
L57: ='INVOICE 1'!L57:O57 -> COUNTYOFSA-020
A58: Phone | L58: Supplier Name
L59: ='INVOICE 1'!L59:O59 -> 2314 N 1ST ST
A60: Email | L60: Address Line 1
L61: ='INVOICE 1'!L61:O61 -> SAN JOSE CA 95131
A62: Date | L62: Address Line 2
E65: Name, Title
E67: Phone
E69: Date
A71: BSCC USE ONLY
A72: Date Received: | G72: Approved By:
I73: BSCC Field Representative

Sheet INVOICE 14
A1: STATE OF CALIFORNIA | L1: Purchase Authority | N1: BSCC 5227
A2: BOARD OF STATE AND COMMUNITY CORRECTIONS | L2: Purchase Order: | N2: 2455
A3: Financial Invoice Form: BSCC 201 (Revised 04/2020)
A5: Program: | B5: ='INVOICE 1'!B5 -> Youth Reinvestment Grant | K5: Please Note: The California State Controller's Office will send all checks directly to the address listed in the "BSCC Vendor Data" section at the bottom of this invoice.
A7: Grantee: | B7: ='INVOICE 1'!B7 -> COUNTY OF SANTA CLARA | F7: Lead Public Agency: | G7: N/A
A9: Contract #: | B9: ='INVOICE 1'!B9 -> BSCC 590-19 | D9: Term: | E9: ='INVOICE 1'!E9 -> 2019-07-01 | F9: TO | G9: ='INVOICE 1'!G9 -> 2023-02-28 | L9: Invoicing Frequency | M9: Quarterly
A11: Invoice #: | B11: 14 | D11: Reporting Period: | E11: 2022-10-01 | F11: TO | G11: 2022-12-31 | H11: Due: | I11: 2023-02-14 | L11: Final Invoice (Y/N): | M11: No
A13: Line Items | B13: Budget | E13: Prior Expenditures | H13: This Reporting Period | K13: Balance | N13: Advance Disbursements
B14: Grant Funds | C14: Match | D14: TOTAL | E14: Grant Funds | F14: Match | G14: TOTAL | H14: Grant Funds | I14: Match | J14: TOTAL | K14: Grant Funds | L14: Match | M14: TOTAL
A15: Salaries & Benefits | B15: ='INVOICE 13'!B15 -> 54221 | C15: ='INVOICE 13'!C15 -> 249371 | D15: =SUM(B15:C15) -> 303592 | E15: ='INVOICE 13'!E15+'INVOICE 13'!H15 -> 14967 | F15: ='INVOICE 13'!F15+'INVOICE 13'!I15 -> 28145.94 | G15: =SUM(E15:F15) -> 43112.94 | H15: 0 | I15: 0 | J15: =SUM(H15:I15) -> 0 | K15: =B15-E15-H15 -> 39254 | L15: 221225.06 | M15: =SUM(K15:L15) -> 260479.06 | N15: 1st Advance [10/25/19]
A16: Services & Supplies | B16: ='INVOICE 13'!B16 -> 0 | C16: ='INVOICE 13'!C16 -> 0 | D16: 0 | E16: ='INVOICE 13'!E16+'INVOICE 13'!H16 -> 0 | F16: ='INVOICE 13'!F16+'INVOICE 13'!I16 -> 0 | G16: =SUM(E16:F16) -> 0 | H16: 0 | I16: 0 | J16: 0 | K16: 0 | L16: 0 | M16: 0 | N16: ='1st Advance Payment'!K20 -> 333333
A17: Professional Services | B17: ='INVOICE 13'!B17 -> 0 | C17: ='INVOICE 13'!C17 -> 0 | D17: 0 | E17: ='INVOICE 13'!E17+'INVOICE 13'!H17 -> 0 | F17: ='INVOICE 13'!F17+'INVOICE 13'!I17 -> 0 | G17: =SUM(E17:F17) -> 0 | H17: 0 | I17: 0 | J17: 0 | K17: 0 | L17: 0 | M17: 0
A18: NGO Subcontracts | B18: ='INVOICE 13'!B18 -> 900000 | C18: ='INVOICE 13'!C18 -> 0 | D18: 900000 | E18: ='INVOICE 13'!E18+'INVOICE 13'!H18 -> 247635 | F18: ='INVOICE 13'!F18+'INVOICE 13'!I18 -> 0 | G18: 247635 | H18: 0 | I18: 0 | J18: 0 | K18: 652365 | L18: 0 | M18: 652365 | N18: 2nd Advance [enter date]
A19: Equipment / Fixed Assets | B19: ='INVOICE 13'!B19 -> 0 | C19: ='INVOICE 13'!C19 -> 0 | D19: 0 | E19: ='INVOICE 13'!E19+'INVOICE 13'!H19 -> 0 | F19: ='INVOICE 13'!F19+'INVOICE 13'!I19 -> 0 | G19: 0 | H19: 0 | I19: 0 | J19: 0 | K19: 0 | L19: 0 | M19: 0 | N19: 0
A20: Data Collection | B20: ='INVOICE 13'!B20 -> 0 | C20: ='INVOICE 13'!C20 -> 0 | D20: 0 | E20: ='INVOICE 13'!E20+'INVOICE 13'!H20 -> 0 | F20: ='INVOICE 13'!F20+'INVOICE 13'!I20 -> 0 | G20: 0 | H20: 0 | I20: 0 | J20: 0 | K20: 0 | L20: 0 | M20: 0
A21: Project Evaluation | B21: ='INVOICE 13'!B21 -> 33733 | C21: ='INVOICE 13'!C21 -> 0 | D21: 33733 | E21: ='INVOICE 13'!E21+'INVOICE 13'!H21 -> 0 | F21: ='INVOICE 13'!F21+'INVOICE 13'!I21 -> 0 | G21: 0 | H21: 0 | I21: 0 | J21: 0 | K21: 33733 | L21: 0 | M21: 33733 | N21: 3rd Advance [enter date]
A22: Other | B22: ='INVOICE 13'!B22 -> 6625 | C22: ='INVOICE 13'!C22 -> 629 | D22: =SUM(B22:C22) -> 7254 | E22: ='INVOICE 13'!E22+'INVOICE 13'!H22 -> 156 | F22: ='INVOICE 13'!F22+'INVOICE 13'!I22 -> 0 | G22: 156 | H22: 0 | I22: 0 | J22: 0 | K22: 6469 | L22: 629 | M22: 7098 | N22: 0
A23: Indirect Costs | B23: ='INVOICE 13'!B23 -> 5421 | C23: ='INVOICE 13'!C23 -> 0 | D23: 5421 | E23: ='INVOICE 13'!E23+'INVOICE 13'!H23 -> 1483 | F23: ='INVOICE 13'!F23+'INVOICE 13'!I23 -> 0 | G23: 1483 | H23: 0 | I23: 0 | J23: 0 | K23: 3938 | L23: 0 | M23: 3938
A24: TOTAL | B24: =SUM(B15:B23) -> 1000000 | C24: =SUM(C15:C23) -> 250000 | D24: =SUM(D15:D23) -> 1250000 | E24: =SUM(E15:E23) -> 264241 | F24: 28145.94 | G24: 292386.94 | H24: 0 | I24: =SUM(I15:I23) -> 0 | J24: 0 | K24: 735759 | L24: 221854.06 | M24: 957613.06 | N24: =SUM(N16+N19+N22) -> 333333
A26: Project Income | C26: Income reported to date | D26: ='INVOICE 1'!D26+'INVOICE 14'!I26 -> 0 | F26: Prior allocated income | G26: 0 | H26: This Period | I26: 0 | L26: Unallocated income balance | M26: =D26-G26 -> 0
C28: Grant funds expended to date: | D28: =SUM(E24,H24) -> 264241 | G28: Grant funds claimed this period: | H28: =H24 -> 0 | M28: % total dispursed fund expended to date: | N28: =D28/N24 -> 0.7927237927
C29: Match funds to date: | D29: =SUM(F24,I24) -> 28145.94 | G29: Advance disbursments balance: | H29: =N24-D28 -> 69092 | M29: % of Total Obligated Match to date: | N29: =D29/C24 -> 0.11258376
D33: Expenditure Descriptions - Units / $ Amounts | L33: Comments
A34: Salaries & Benefits | B34: Grant Funds | C34: =H15 -> 0
B35: Match | C35: =I15 -> 0
A36: Services & Supplies | B36: Grant Funds | C36: =H16 -> 0
B37: Match | C37: =I16 -> 0
A38: Professional Services | B38: Grant Funds | C38: =H17 -> 0
B39: Match | C39: =I17 -> 0
A40: NGO Subcontracts | B40: Grant Funds | C40: =H18 -> 0
B41: Match | C41: =I18 -> 0
A42: Equipment / Fixed Assets | B42: Grant Funds | C42: =H19 -> 0
B43: Match | C43: =I19 -> 0
A44: Data Collection | B44: Grant Funds | C44: =H20 -> 0
B45: Match | C45: =I20 -> 0
A46: Project Evaluation | B46: Grant Funds | C46: =H21 -> 0
B47: Match | C47: =I21 -> 0
A48: Other | B48: Grant Funds | C48: =H22 -> 0
B49: Match | C49: =I22 -> 0
A50: Indirect Costs | B50: Grant Funds | C50: =H23 -> 0
B51: Match | C51: =I23 -> 0
A52: Project Income | C52: =I26 -> 0
A53: PERSON PREPARING REPORT | E53: AUTHORIZED FINANCIAL OFFICER | L53: BSCC Supplier Data - Internal Use Only
E54: By checking the box below, I hereby certify that I am the authorized financial officer of the herein named agency. I further certify that I have not violated any of the provisions of Section 1090 of the Government Code in incurring the expenditures reported in this invoice, nor in any other way; that Sections 1090 through 1096 of the Government Code will not be violated in any way in the expenditure of funds pursuant to this invoice; that statement of funds above is true, correct, and in accordance with program provisions in all respects; and that all expenditures submitted after the expiration date of this contract are for the purpose of substantiating obligations legally incurred during the contract period. Furthermore, by submitting this invoice, I acknowledge that it must adhere to all of the requirements in the BSCC Grant Administration Guide, including any updates to the Guide during the term of the grant agreement.
L55: ='INVOICE 1'!L55:O55 -> 12077
A56: Name, Title | L56: Supplier ID
L57: ='INVOICE 1'!L57:O57 -> COUNTYOFSA-020
A58: Phone | L58: Supplier Name
L59: ='INVOICE 1'!L59:O59 -> 2314 N 1ST ST
A60: Email | L60: Address Line 1
L61: ='INVOICE 1'!L61:O61 -> SAN JOSE CA 95131
A62: Date | L62: Address Line 2
E65: Name, Title
E67: Phone
E69: Date
A71: BSCC USE ONLY
A72: Date Received: | G72: Approved By:
I73: BSCC Field Representative

Sheet INVOICE 15
A1: STATE OF CALIFORNIA | L1: Purchase Authority | N1: BSCC 5227
A2: BOARD OF STATE AND COMMUNITY CORRECTIONS | L2: Purchase Order: | N2: 2455
A3: Financial Invoice Form: BSCC 201 (Revised 04/2020)
A5: Program: | B5: ='INVOICE 1'!B5 -> Youth Reinvestment Grant | K5: Please Note: The California State Controller's Office will send all checks directly to the address listed in the "BSCC Vendor Data" section at the bottom of this invoice.
A7: Grantee: | B7: ='INVOICE 1'!B7 -> COUNTY OF SANTA CLARA | F7: Lead Public Agency: | G7: N/A
A9: Contract #: | B9: ='INVOICE 1'!B9 -> BSCC 590-19 | D9: Term: | E9: ='INVOICE 1'!E9 -> 2019-07-01 | F9: TO | G9: ='INVOICE 1'!G9 -> 2023-02-28 | L9: Invoicing Frequency | M9: Quarterly
A11: Invoice #: | B11: 15 | D11: Reporting Period: | E11: 2023-01-01 | F11: TO | G11: 2023-02-28 | H11: Due: | I11: 2023-04-14 | L11: Final Invoice (Y/N): | M11: No
A13: Line Items | B13: Budget | E13: Prior Expenditures | H13: This Reporting Period | K13: Balance | N13: Advance Disbursements
B14: Grant Funds | C14: Match | D14: TOTAL | E14: Grant Funds | F14: Match | G14: TOTAL | H14: Grant Funds | I14: Match | J14: TOTAL | K14: Grant Funds | L14: Match | M14: TOTAL
A15: Salaries & Benefits | B15: ='INVOICE 14'!B15 -> 54221 | C15: ='INVOICE 14'!C15 -> 249371 | D15: =SUM(B15:C15) -> 303592 | E15: ='INVOICE 14'!E15+'INVOICE 14'!H15 -> 14967 | F15: ='INVOICE 14'!F15+'INVOICE 14'!I15 -> 28145.94 | G15: =SUM(E15:F15) -> 43112.94 | H15: 0 | I15: 0 | J15: =SUM(H15:I15) -> 0 | K15: =B15-E15-H15 -> 39254 | L15: 221225.06 | M15: =SUM(K15:L15) -> 260479.06 | N15: 1st Advance [10/25/19]
A16: Services & Supplies | B16: ='INVOICE 14'!B16 -> 0 | C16: ='INVOICE 14'!C16 -> 0 | D16: 0 | E16: ='INVOICE 14'!E16+'INVOICE 14'!H16 -> 0 | F16: ='INVOICE 14'!F16+'INVOICE 14'!I16 -> 0 | G16: =SUM(E16:F16) -> 0 | H16: 0 | I16: 0 | J16: 0 | K16: 0 | L16: 0 | M16: 0 | N16: ='1st Advance Payment'!K20 -> 333333
A17: Professional Services | B17: ='INVOICE 14'!B17 -> 0 | C17: ='INVOICE 14'!C17 -> 0 | D17: 0 | E17: ='INVOICE 14'!E17+'INVOICE 14'!H17 -> 0 | F17: ='INVOICE 14'!F17+'INVOICE 14'!I17 -> 0 | G17: =SUM(E17:F17) -> 0 | H17: 0 | I17: 0 | J17: 0 | K17: 0 | L17: 0 | M17: 0
A18: NGO Subcontracts | B18: ='INVOICE 14'!B18 -> 900000 | C18: ='INVOICE 14'!C18 -> 0 | D18: 900000 | E18: ='INVOICE 14'!E18+'INVOICE 14'!H18 -> 247635 | F18: ='INVOICE 14'!F18+'INVOICE 14'!I18 -> 0 | G18: 247635 | H18: 0 | I18: 0 | J18: 0 | K18: 652365 | L18: 0 | M18: 652365 | N18: 2nd Advance [enter date]
A19: Equipment / Fixed Assets | B19: ='INVOICE 14'!B19 -> 0 | C19: ='INVOICE 14'!C19 -> 0 | D19: 0 | E19: ='INVOICE 14'!E19+'INVOICE 14'!H19 -> 0 | F19: ='INVOICE 14'!F19+'INVOICE 14'!I19 -> 0 | G19: 0 | H19: 0 | I19: 0 | J19: 0 | K19: 0 | L19: 0 | M19: 0 | N19: 0
A20: Data Collection | B20: ='INVOICE 14'!B20 -> 0 | C20: ='INVOICE 14'!C20 -> 0 | D20: 0 | E20: ='INVOICE 14'!E20+'INVOICE 14'!H20 -> 0 | F20: ='INVOICE 14'!F20+'INVOICE 14'!I20 -> 0 | G20: 0 | H20: 0 | I20: 0 | J20: 0 | K20: 0 | L20: 0 | M20: 0
A21: Project Evaluation | B21: ='INVOICE 14'!B21 -> 33733 | C21: ='INVOICE 14'!C21 -> 0 | D21: 33733 | E21: ='INVOICE 14'!E21+'INVOICE 14'!H21 -> 0 | F21: ='INVOICE 14'!F21+'INVOICE 14'!I21 -> 0 | G21: 0 | H21: 0 | I21: 0 | J21: 0 | K21: 33733 | L21: 0 | M21: 33733 | N21: 3rd Advance [enter date]
A22: Other | B22: ='INVOICE 14'!B22 -> 6625 | C22: ='INVOICE 14'!C22 -> 629 | D22: =SUM(B22:C22) -> 7254 | E22: ='INVOICE 14'!E22+'INVOICE 14'!H22 -> 156 | F22: ='INVOICE 14'!F22+'INVOICE 14'!I22 -> 0 | G22: 156 | H22: 0 | I22: 0 | J22: 0 | K22: 6469 | L22: 629 | M22: 7098 | N22: 0
A23: Indirect Costs | B23: ='INVOICE 14'!B23 -> 5421 | C23: ='INVOICE 14'!C23 -> 0 | D23: 5421 | E23: ='INVOICE 14'!E23+'INVOICE 14'!H23 -> 1483 | F23: ='INVOICE 14'!F23+'INVOICE 14'!I23 -> 0 | G23: 1483 | H23: 0 | I23: 0 | J23: 0 | K23: 3938 | L23: 0 | M23: 3938
A24: TOTAL | B24: =SUM(B15:B23) -> 1000000 | C24: =SUM(C15:C23) -> 250000 | D24: =SUM(D15:D23) -> 1250000 | E24: =SUM(E15:E23) -> 264241 | F24: 28145.94 | G24: 292386.94 | H24: 0 | I24: =SUM(I15:I23) -> 0 | J24: 0 | K24: 735759 | L24: 221854.06 | M24: 957613.06 | N24: =SUM(N16+N19+N22) -> 333333
A26: Project Income | C26: Income reported to date | D26: ='INVOICE 1'!D26+'INVOICE 15'!I26 -> 0 | F26: Prior allocated income | G26: 0 | H26: This Period | I26: 0 | L26: Unallocated income balance | M26: =D26-G26 -> 0
C28: Grant funds expended to date: | D28: =SUM(E24,H24) -> 264241 | G28: Grant funds claimed this period: | H28: =H24 -> 0 | M28: % total dispursed fund expended to date: | N28: =D28/N24 -> 0.7927237927
C29: Match funds to date: | D29: =SUM(F24,I24) -> 28145.94 | G29: Advance disbursments balance: | H29: =N24-D28 -> 69092 | M29: % of Total Obligated Match to date: | N29: =D29/C24 -> 0.11258376
D33: Expenditure Descriptions - Units / $ Amounts | L33: Comments
A34: Salaries & Benefits | B34: Grant Funds | C34: =H15 -> 0
B35: Match | C35: =I15 -> 0
A36: Services & Supplies | B36: Grant Funds | C36: =H16 -> 0
B37: Match | C37: =I16 -> 0
A38: Professional Services | B38: Grant Funds | C38: =H17 -> 0
B39: Match | C39: =I17 -> 0
A40: NGO Subcontracts | B40: Grant Funds | C40: =H18 -> 0
B41: Match | C41: =I18 -> 0
A42: Equipment / Fixed Assets | B42: Grant Funds | C42: =H19 -> 0
B43: Match | C43: =I19 -> 0
A44: Data Collection | B44: Grant Funds | C44: =H20 -> 0
B45: Match | C45: =I20 -> 0
A46: Project Evaluation | B46: Grant Funds | C46: =H21 -> 0
B47: Match | C47: =I21 -> 0
A48: Other | B48: Grant Funds | C48: =H22 -> 0
B49: Match | C49: =I22 -> 0
A50: Indirect Costs | B50: Grant Funds | C50: =H23 -> 0
B51: Match | C51: =I23 -> 0
A52: Project Income | C52: =I26 -> 0
A53: PERSON PREPARING REPORT | E53: AUTHORIZED FINANCIAL OFFICER | L53: BSCC Supplier Data - Internal Use Only
E54: By checking the box below, I hereby certify that I am the authorized financial officer of the herein named agency. I further certify that I have not violated any of the provisions of Section 1090 of the Government Code in incurring the expenditures reported in this invoice, nor in any other way; that Sections 1090 through 1096 of the Government Code will not be violated in any way in the expenditure of funds pursuant to this invoice; that statement of funds above is true, correct, and in accordance with program provisions in all respects; and that all expenditures submitted after the expiration date of this contract are for the purpose of substantiating obligations legally incurred during the contract period. Furthermore, by submitting this invoice, I acknowledge that it must adhere to all of the requirements in the BSCC Grant Administration Guide, including any updates to the Guide during the term of the grant agreement.
L55: ='INVOICE 1'!L55:O55 -> 12077
A56: Name, Title | L56: Supplier ID
L57: ='INVOICE 1'!L57:O57 -> COUNTYOFSA-020
A58: Phone | L58: Supplier Name
L59: ='INVOICE 1'!L59:O59 -> 2314 N 1ST ST
A60: Email | L60: Address Line 1
L61: ='INVOICE 1'!L61:O61 -> SAN JOSE CA 95131
A62: Date | L62: Address Line 2
E65: Name, Title
E67: Phone
E69: Date
A71: BSCC USE ONLY
A72: Date Received: | G72: Approved By:
I73: BSCC Field Representative

Sheet 2nd Advance Payment
A1: STATE OF CALIFORNIA | J1: Purchase Authority | L1: BSCC 5227
A2: BOARD OF STATE AND COMMUNITY CORRECTIONS | J2: Purchase Order: | L2: 2455
A3: Advance Payment Invoice: BSCC 201A (Revised 06/2020)
B6: Program: | C6: ='INVOICE 1'!B5 -> Youth Reinvestment Grant | H6: Grantee: | I6: ='INVOICE 1'!B7 -> COUNTY OF SANTA CLARA
B8: Contract #: | C8: ='INVOICE 1'!B9 -> BSCC 590-19 | H8: Address | I8: ='1st Advance Payment'!J8 -> 2314 N 1st St.
J9: Address Line 1
B10: Term: | C10: ='INVOICE 1'!E9 -> 2019-07-01 | D10: TO | E10: ='INVOICE 1'!G9 -> 2023-02-28 | I10: ='1st Advance Payment'!J10 -> San Jose, CA 95131
J11: Address Line 2
B13: Advance Payment # | D13: 2 YRG 2019 | G13: Please Note: The California State Controller's Office will send all checks directly to the address listed in the "BSCC Vendor Data" section at the bottom of this invoice.
B15: Effective Invoice #
A18: Advance Payment Invoice
J19: Total Grant Award: | K19: 1000000
J20: Advance Total: | K20: 333333
J21: Grant Award Balance: | K21: =K19-'1st Advance Payment'!K20:L20-'2nd Advance Payment'!K20:L20 -> 333334
B25: PERSON PREPARING REPORT | G25: AUTHORIZED FINANCIAL OFFICER
G26: I hereby certify that I am the authorized financial officer of the herein named agency. I further certify that I have not violated any of the provisions of Section 1090 of the Government Code in incurring the expenditures reported in this invoice, nor in any other way; that Sections 1090 through 1096 of the Government Code will not be violated in any way in the expenditure of funds pursuant to this invoice; that statement of funds above is true, correct, and in accordance with program provisions in all respects; and that all expenditures submitted after the expiration date of this contract are for the purpose of substantiating obligations legally incurred during the contract period. Furthermore, by submitting this invoice, I acknowledge that it must adhere to all of the requirements in the BSCC Grant Administration Guide, including any updates to the Guide during the term of the grant agreement.
B27: Name, Title
B29: Phone
B31: Email
B33: Date
G36: Name, Title
G38: Phone
G40: Email
G42: Date
G44: Signature
F48: BSCC USE ONLY
B50: Approved By: | J50: BSCC Supplier Data
C51: BSCC Field Representative | I51: ='1st Advance Payment'!I32:K32 -> COUNTYOFSA-020
J52: Supplier Name
B53: Date: | I53: ='1st Advance Payment'!I34:K34 -> 12077
J54: Supplier Number

Sheet 3rd Advance Payment
A1: STATE OF CALIFORNIA | J1: Purchase Authority | L1: BSCC 5227
A2: BOARD OF STATE AND COMMUNITY CORRECTIONS | J2: Purchase Order: | L2: 2455
A3: Advance Payment Invoice: BSCC 201A (Revised 06/2020)
B6: Program: | C6: ='INVOICE 1'!B5 -> Youth Reinvestment Grant | H6: Grantee: | I6: ='INVOICE 1'!B7 -> COUNTY OF SANTA CLARA
B8: Contract #: | C8: ='INVOICE 1'!B9 -> BSCC 590-19 | H8: Address | I8: ='2nd Advance Payment'!I8 -> 2314 N 1st St.
J9: Address Line 1
B10: Term: | C10: ='INVOICE 1'!E9 -> 2019-07-01 | D10: TO | E10: ='INVOICE 1'!G9 -> 2023-02-28 | I10: ='2nd Advance Payment'!I10 -> San Jose, CA 95131
J11: Address Line 2
B13: Advance Payment # | G13: Please Note: The California State Controller's Office will send all checks directly to the address listed in the "BSCC Vendor Data" section at the bottom of this invoice.
B15: Effective Invoice #
A18: Advance Payment Invoice
J19: Total Grant Award: | K19: 1000000
J20: Advance Total: | K20: 333334
J21: Grant Award Balance: | K21: ='1st Advance Payment'!K19:L19-'1st Advance Payment'!K20:L20-'2nd Advance Payment'!K20:L20-'3rd Advance Payment'!K20:L20 -> 0
B25: PERSON PREPARING REPORT | G25: AUTHORIZED FINANCIAL OFFICER
G26: I hereby certify that I am the authorized financial officer of the herein named agency. I further certify that I have not violated any of the provisions of Section 1090 of the Government Code in incurring the expenditures reported in this invoice, nor in any other way; that Sections 1090 through 1096 of the Government Code will not be violated in any way in the expenditure of funds pursuant to this invoice; that statement of funds above is true, correct, and in accordance with program provisions in all respects; and that all expenditures submitted after the expiration date of this contract are for the purpose of substantiating obligations legally incurred during the contract period. Furthermore, by submitting this invoice, I acknowledge that it must adhere to all of the requirements in the BSCC Grant Administration Guide, including any updates to the Guide during the term of the grant agreement.
B27: Name, Title
B29: Phone
B31: Email
B33: Date
G36: Name, Title
G38: Phone
G40: Email
G42: Date
G44: Signature
F48: BSCC USE ONLY
B50: Approved By: | J50: BSCC Supplier Data
C51: BSCC Field Representative
J52: Supplier Name
B53: Date:
J54: Supplier Number

Sheet MODIFICATION REQUEST
M1: STATE OF CALIFORNIA
A2: MODIFICATION REQUEST - (FORM BSCC 223.1 (Revised 04/20) | M2: BOARD OF STATE AND COMMUNITY CORRECTIONS
B5: Line-Item Change | F5: Budget Modification | J5: Project Income Allocation
B6: Check this box if you are modifying narrative details within a line item (or line items) but not changing the budget. | F6: Check this box if you are modifying line-item dollar amounts by moving funds from one line-item to another. | J6: Check this box if you are allocating earned project income.
A8: Important Note: You must provide a detailed justification for all modification requests. All modifications require BSCC Field Representative approval.
A10: Grantee: | B10: ='INVOICE 1'!B7 -> COUNTY OF SANTA CLARA | I10: Grant Program: | J10: ='INVOICE 1'!B5 -> Youth Reinvestment Grant
A12: Address | I12: Lead Public Agency: | J12: ='INVOICE 1'!G7 -> N/A
A16: Contract #: | B16: ='INVOICE 1'!B9 -> BSCC 590-19 | J16: Modification Request # | K16: 4
A18: Term: | B18: ='INVOICE 1'!E9 -> 2019-07-01 | C18: ='INVOICE 1'!F9 -> TO | D18: ='INVOICE 1'!G9 -> 2023-02-28 | J18: Effective on Invoice # | K18: 4
A20: Line Items | B20: Current Budget | E20: Available Budget | H20: Changes (+/-) | K20: Modified Budget
B21: Grant Funds | C21: Match | D21: TOTAL | E21: Grant Funds | F21: Match | G21: TOTAL | H21: Grant Funds | I21: Match | J21: TOTAL | K21: Grant Funds | L21: Match | M21: TOTAL
A22: Salaries & Benefits | B22: ='INVOICE 1'!B15 -> 54221 | C22: ='INVOICE 1'!C15 -> 249371 | D22: =SUM(B22:C22) -> 303592 | E22: ='INVOICE 2'!K15 -> 54221 | F22: ='INVOICE 2'!L15 -> 249371 | G22: =SUM(E22:F22) -> 303592 | H22: 0 | I22: 0 | J22: =SUM(H22:I22) -> 0 | K22: =SUM(B22,H22) -> 54221 | L22: =SUM(C22,I22) -> 249371 | M22: =SUM(K22:L22) -> 303592
A23: Services & Supplies | B23: ='INVOICE 1'!B16 -> 0 | C23: ='INVOICE 1'!C16 -> 0 | D23: 0 | E23: ='INVOICE 2'!K16 -> 0 | F23: ='INVOICE 2'!L16 -> 0 | G23: 0 | H23: 0 | I23: 0 | J23: 0 | K23: 0 | L23: 0 | M23: 0
A24: Professional Services | B24: ='INVOICE 1'!B17 -> 0 | C24: ='INVOICE 1'!C17 -> 0 | D24: 0 | E24: ='INVOICE 2'!K17 -> 0 | F24: ='INVOICE 2'!L17 -> 0 | G24: 0 | H24: 0 | I24: 0 | J24: 0 | K24: 0 | L24: 0 | M24: 0
A25: NGO Subcontracts | B25: ='INVOICE 1'!B18 -> 900000 | C25: ='INVOICE 1'!C18 -> 0 | D25: 900000 | E25: ='INVOICE 2'!K18 -> 900000 | F25: ='INVOICE 2'!L18 -> 0 | G25: 900000 | H25: 0 | I25: 0 | J25: 0 | K25: 900000 | L25: 0 | M25: 900000
A26: Equipment / Fixed Assets | B26: ='INVOICE 1'!B19 -> 0 | C26: ='INVOICE 1'!C19 -> 0 | D26: 0 | E26: ='INVOICE 2'!K19 -> 0 | F26: ='INVOICE 2'!L19 -> 0 | G26: 0 | H26: 0 | I26: 0 | J26: 0 | K26: 0 | L26: 0 | M26: 0
A27: Data Collection | B27: ='INVOICE 1'!B20 -> 0 | C27: ='INVOICE 1'!C20 -> 0 | D27: 0 | E27: ='INVOICE 2'!K20 -> 0 | F27: ='INVOICE 2'!L20 -> 0 | G27: 0 | H27: 0 | I27: 0 | J27: 0 | K27: 0 | L27: 0 | M27: 0
A28: Project Evaluation | B28: ='INVOICE 1'!B21 -> 33733 | C28: ='INVOICE 1'!C21 -> 0 | D28: 33733 | E28: ='INVOICE 2'!K21 -> 33733 | F28: ='INVOICE 2'!L21 -> 0 | G28: 33733 | H28: 0 | I28: 0 | J28: 0 | K28: 33733 | L28: 0 | M28: 33733
A29: Other | B29: ='INVOICE 1'!B22 -> 6625 | C29: ='INVOICE 1'!C22 -> 629 | D29: 7254 | E29: ='INVOICE 2'!K22 -> 6625 | F29: ='INVOICE 2'!L22 -> 629 | G29: 7254 | H29: 0 | I29: 0 | J29: 0 | K29: 6625 | L29: 629 | M29: 7254
A30: Indirect Costs | B30: ='INVOICE 1'!B23 -> 5421 | C30: ='INVOICE 1'!C23 -> 0 | D30: 5421 | E30: ='INVOICE 2'!K23 -> 5421 | F30: ='INVOICE 2'!L23 -> 0 | G30: 5421 | H30: 0 | I30: 0 | J30: 0 | K30: 5421 | L30: 0 | M30: 5421
A31: TOTAL | B31: =SUM(B22:B30) -> 1000000 | C31: 250000 | D31: 1250000 | E31: 1000000 | F31: 250000 | G31: 1250000 | H31: 0 | I31: 0 | J31: 0 | K31: 1000000 | L31: 250000 | M31: 1250000
A33: Project Income | C33: Income reported to date | D33: 0 | F33: Prior allocated income | G33: 0 | H33: Allocating | I33: 0 | L33: Unallocated income balance | M33: =D33-I33 -> 0
A35: JUSTIFICATION FOR MODIFICATION:
A36: One of our Community Business Organizations, ConXion, has left the grant due to limited staff capacity to ensure proper use of funding and project implementation. Our other two CBO’s, CARAS and LATI, have both submitted a project proposal to absorb the funding once allocated to ConXion. The intention would be to split ConXion’s funding between both LATI and CARAS to fulfill their attached project proposals. The total amount allocated overall will not be adjusted - rather the amounts within the CBOs will be shifted to support expansion of the other two programs with funding previously allocated to ConXion. This Budget Modification is requested for FY22 as the two additional CBOs provided program proposals for the funding for this year.
A55: PERSON PREPARING REPORT | I55: AUTHORIZED FINANCIAL OFFICER
I56: I hereby certify that I am the authorized financial officer of the herein named agency. I further certify that I have not violated any of the provisions of Section 1090 of the Government Code in incurring the expenditures reported in this invoice, nor in any other way; that Sections 1090 through 1096 of the Government Code will not be violated in any way in the expenditure of funds pursuant to this invoice; that statement of funds above is true, correct, and in accordance with program provisions in all respects; and that all expenditures submitted after the expiration date of this contract are for the purpose of substantiating obligations legally incurred during the contract period. Furthermore, by submitting this invoice, I acknowledge that it must adhere to all of the requirements in the BSCC Grant Administration Guide, including any updates to the Guide during the term of the grant agreement.
A57: Alex Coronel, Admin Data Tech
A58: Name, Title
A59: 408-453-4347
A60: Phone
A61: acoronel@sccoe.org
A62: Email
A63: 2021-10-01
A64: Date
I66: Thuy Trang Nguyen - Department Fiscal Officer
I67: Name, Title
I68: (408)468-1646
I69: Phone
I70: 2021-10-01
I71: Date
A73: BSCC USE ONLY
A74: Date Received: | C74: 2021-10-01 | H74: Approved By: | L74: Date:
I75: BSCC Field Representative

Sheet PROJECT BUDGET NARRATIVE
A2: Youth Reinvestment Grant - Project Budget and Budget Narrative
A3: Name of County or City: | D3: County of Santa Clara (Probation Dept.)
A4: Program Term: July 1, 2019 - February 28, 2023
A5: Budget Line Item | F5: Grant Funds | G5: Match Funds | H5: Total
A6: 1. Salaries and Benefits | F6: =F25 -> 54221 | G6: =G25 -> 249371 | H6: =H25 -> 303592
A7: 2. Services and Supplies | F7: =F57 -> 0 | G7: =G57 -> 0 | H7: =H57 -> 0
A8: 3. Professional Services | F8: =F68 -> 0 | G8: =G68 -> 0 | H8: =H68 -> 0
A9: 4. Non-Governmental Organization (NGO) Subcontracts | F9: =F83 -> 900000 | G9: =G83 -> 0 | H9: =H83 -> 900000
A10: 5. Equipment/Fixed Assets | F10: =F102 -> 0 | G10: =G102 -> 0 | H10: =H102 -> 0
A11: 6. Data Collection | F11: =F113 -> 0 | G11: =G113 -> 0 | H11: =H113 -> 0
A12: 7. Project Evaluation | F12: =F124 -> 33733 | G12: =G124 -> 0 | H12: =H124 -> 33733
A13: 8. Other (Travel, Training, etc.) | F13: =F138 -> 6625 | G13: =G138 -> 629 | H13: =H138 -> 7254
A14: 9. Indirect Costs | F14: =F150 -> 5421 | G14: =G150 -> 0 | H14: =H150 -> 5421
A15: TOTAL | F15: =SUM(F6:F14) -> 1000000 | G15: =SUM(G6:G14) -> 250000 | H15: =SUM(F15:G15) -> 1250000
A16: Required match: | B16: 10%: no less than: | C16: =F15*10% -> 100000 | D16: 25%: no less than: | E16: =F15*25% -> 250000
A18: 1. Salaries and Benefits
A19: Name and Title | C19: (% FTE or Hourly Rate) & Benefits | F19: Grant Funds | G19: Match Funds | H19: Total
A20: Jennifer Del Bono, Director | C20: Year 1: .037FTE @ $159,463 =$5,900 + benefits @ 29.91%: $1,765 Year 2: .037FTE @ $160,919 =$5,954 + benefits @ 30.08%: $1,775 Year 3: .037FTE @ $160,919 =$5,900 + benefits @ 30.08%: $1,775 Year 4: .037FTE @ $159,463 =$3,969 + benefits @ 30.08%: $1,183 | F20: 28276 | G20: 0 | H20: =SUM(F20:G20) -> 28276
A21: Stephanie Tague, Coordinator | C21: Year 1: .037FTE @ $146,172 = $5,408 + benefits @ 28.26%: $1,667 Year 2: .037FTE @ $146,172 = $5,408 + benefits @ 28.26%: $1,667 Year 3: .037FTE @ $146,172 = $5,408 + benefits @ 28.26%: $1,667 Year 4: .037FTE @ $146,172 = $3,606 + benefits @ 28.26%: $1,112 | F21: 25945 | G21: 0 | H21: 25945
A22: Rhonda Beasley, Coordinator | C22: Year 1: .1385 FTE @ $146,172 = $20,239 + benefits @ 28.27%: $6,242 Year 2: .1385 FTE @ $146,172 = $20,239 + benefits @ 28.27%: $6,242 Year 3: .1385 FTE @ $146,172 = $20,239 + benefits @ 28.27%: $6,242 Year 4: .1385 FTE @ $146,172 = $13,497 + benefits @ 28.27%: $6,242 | F22: 0 | G22: 97102 | H22: 97102
A23: Stephanie Tague, Coordinator | C23: Year 1: .01385 FTE @ $146,172 = $20,245 + benefits @ 28.27%: $6,243 Year 2: .01385 FTE @ $146,172 = $20,245 + benefits @ 28.27%: $6,243 Year 3: .01385 FTE @ $146,172 = $20,245 + benefits @ 28.27%: $6,243 Year 4: .01385 FTE @ $146,172 = $9,651 + benefits @ 28.27%: $2,976 | F23: 0 | G23: 83963 | H23: 83963
A24: Christina Arpante, Coordinator | C24: Year 1: .0.960 FTE @ $147,872 = $14,196 + benefits @ 28.48%: $4,360 Year 2: .0.960 FTE @ $147,872 = $14,196 + benefits @ 28.48%: $4,360 Year 3: .0.960 FTE @ $147,872 = $14,196 + benefits @ 28.48%: $4,360 Year 4: .0.960 FTE @ $147,872 = $9,671 + benefits @ 28.48%: $2,970 | F24: 0 | G24: 68306 | H24: 68306
A25: TOTAL | F25: =SUM(F20:F24) -> 54221 | G25: =SUM(G20:G24) -> 249371 | H25: 303592
A27: Salaries and Benefits
A28: Santa Clara County Office of Education staff members will direct the project as well as provide necessary training and technical support to the CBOs. Jennifer Del Bono will oversee the project. Stephanie Tague will provide facilitation as well as consultation to the CBOs regarding integration of systems to support students. She will also provide advisemnent on the in-take process and case-management processes of the CBOs. Matching dollars will involve training and technical assistance provided by Stephanie Tague, Rhonda Beasley, and Christina Arpante on Multi tiered Systems of Support, Positive Behavior Interventions and Support, Youth Mental Health First Aide, Trauma-Informed Care, Function of Behavior,and Social - Emotional Learning.
A33: MOD 1 APPROVAL DATE: 11/15/2019
A34: Alex Coronel will be added as personnel supporting the grant with administrative duties. She will be paid through June 30th, 2020 to support the grant yet the payments will not exceed $10,000. Funds will be shifted from Stephanie Tague and Jennifer Del Bono grant funds to cover the costs. Alex will support the grant process by ensuring the MOUs with the CBOs are fully executed, communicate to CBOs regarding the grant reporting requirements, schedule meetings with the oversight committee and grant partners, and support the invoice and grant reporting deadlines. Hourly rate = $54.24. Alex Coronel will be preparing the reports and invoices. `
A35: MOD 2 APPROVAL DATE:
A36: Due to Corona Virus relief efforts, the Santa Clara County Office of Education's Safe and Healthy Schools Director, Jennifer Del Bono, has requested that we are approved to calculate her hours as match hours under the grant.The request was to identify the hours/funding that Christina Arpante was originally allocated in the budget for match dollars, to Jennifer Del Bono, as Christina is designated to COVID-19 relief. The request has been submitted to BSCC. The amount of Match funding that is being adjusted is 7.44% of the total match funding ($249,371), and 1.48% of the overall grant dollars (State + Match funding). Once the budet modification is approved via BSCC the Match hours Jennifer is contributing will be requested in the Q4 submission. Jennifer's Match Contribution: .1163 FTE @ $159,463 =$18,555
A41: MOD 3 APPROVAL DATE: 12/8/20
A42: Alex Coronel will be added as personnel supporting the grant with Administrative Duties. She will be paid through June 30, 2023 to support the grant yet the salary payments will not exceed $10,000 annually. Funds will be shifted from Stephanie Tague and Jennifer Del Bono (David Putney (see below)) grant funds to cover the costs (7,729+7,076=$14,805.00). Alex will support the grant process by ensuring the MOUs with the CBOs are fully executed, communicate to CBOs regarding the grant reporting requirements, schedule meetings with the oversight committee and grant partners, and support the invoice with grant reporting deadlines. Hourly rate = $53.53. Alex Coronel will be preparing the reports and invoices. || In the 2019-20 grant year, we submitted a budget modification to move the Match funds allocated to Christina Arpante under Jennifer Del Bono as Dr. Arpante was delegated to Emergency Command for COVID. At the end of Fiscal Year 20, Jennifer Del Bono's employment with the SCCOE ended, and the grant has since been moved to a new director, David Putney. All Match dollars ($18,555) initially allocated to Christina Arpante, will now be moved under David Putney (.0753% FTE @ $191,171 = $14,395.18 + benefits at 28.91%= $4,161.65 = $18,556.83). Both Budget Modification requests do not change any amounts in any line item - rather the names attached to those amounts are what is changed.
A51: MOD X APPROVAL DATE:
A54: 2. Services and Supplies
A55: Description of Services or Supplies | C55: Calculation for Expenditure | F55: Grant Funds | G55: Match Funds | H55: Total
F56: 0 | G56: 0 | H56: =SUM(F56:G56) -> 0
A57: TOTAL | F57: =SUM(F56:F56) -> 0 | G57: =SUM(G56:G56) -> 0 | H57: 0
A59: Services and Supplies Narrative:
A60: N/A
A62: MOD X APPROVAL DATE:
A65: 3. Professional Services
A66: Description of Professional Service(s) | C66: Calculation for Expenditure | F66: Grant Funds | G66: Match Funds | H66: Total
F67: 0 | G67: 0 | H67: =SUM(F67:G67) -> 0
A68: TOTAL | F68: =SUM(F67:F67) -> 0 | G68: =SUM(G67:G67) -> 0 | H68: 0
A70: Professional Services Narrative
A71: N/A
A73: MOD x APPROVAL DATE:
A76: 4. Non-Governmental Organizations (NGO) Subcontracts
A77: Description of Subcontract | C77: Calculation for Expenditure | F77: Grant Funds | G77: Match Funds | H77: Total
A78: ConXion - Salaries and Benefits | F78: 189800 | G78: 0 | H78: =SUM(F78:G78) -> 189800
A79: CARAS Salaries and Benefits | F79: 473401 | G79: 0 | H79: 473401
A80: EOCS & LATI Salaries and Benefits | F80: 189614 | G80: 0 | H80: 189614
A81: External Evaluator - SCCOE | F81: 28185 | G81: 0 | H81: 28185
A82: Travel - Project Evolve | C82: Travel/Mileage reimbursement | F82: 19000 | G82: 0 | H82: 19000
A83: TOTALS | F83: =SUM(F78:F82) -> 900000 | G83: =SUM(G78:G82) -> 0 | H83: 900000
A85: Non-Governmental Organizations (NGO) Subcontracts Narrative
A86: The contracted NGOs will provide a Program Coordinator, two Case Managers, and two Administrative Assistants/Interns. The Program Coordinator will oversee the case managers and administrative assistants. Staff will conduct outreach and recruitment, needs assessments, set goals, do house visits, coordinate prosocial activities, facilitate workshops and trainings and coordinate events. CARAS will provide the facilities and necessary office equipment for all Gilroy activities. Special events will include career fairs in both Gilroy and Morgan Hill, Cultural Awareness & Identity workshops, and the LATI Youth Matter leadership forum once a year. Pro-social activities will include group classes in art, music, archery, dance, bike repair and customizing, graphic design and vocals. Individual athletics classes will include boxing, mixed martial arts and martial arts in partnership with local gyms. After completing the Joven Noble/Xinaxtli curriculum or EOCS Life Skills and Gang Awareness classes, youth will be invited to participate in a Graduation Ceremony which will include their families and support network. Post graduation youth can then be part of the Youth Leadership Council, which will engage in civics, community service and leadership.Year 1 planning and setup including co-development of the evaluation plan, less involved planning and setup in years 2 and 3, annual summative and formative evaluation efforts, annual BSCC quarterly reports, meeting attendance, and drafting of the evaluation section of the final report. Grant funds will be used to compensate for partial cell phone stipends, materials for training, and mileage reimbursement for CBOs.
A96: MOD x APPROVAL DATE:
A99: 5. Equipment/Fixed Assets
A100: Description of Equipment/Fixed Asset | C100: Calculation for Expense | F100: Grant Funds | G100: Match Funds | H100: Total
F101: 0 | G101: 0 | H101: =SUM(F101:G101) -> 0
A102: TOTALS | F102: =SUM(F101:F101) -> 0 | G102: =SUM(G101:G101) -> 0 | H102: 0
A104: Equipment/Fixed Assets Narrative
A105: N/A
A107: MOD x APPROVAL DATE:
A110: 6. Data Collection
A111: Description | F111: Grant Funds | G111: Match Funds | H111: Total
F112: 0 | G112: 0 | H112: =SUM(F112:G112) -> 0
A113: TOTAL | F113: =SUM(F112:F112) -> 0 | G113: =SUM(G112:G112) -> 0 | H113: =SUM(F113:G113) -> 0
A115: Data Collection
A116: N/A
A118: MOD x APPROVAL DATE:
A121: 7. Project Evaluation
A122: Description | F122: Grant Funds | G122: Match Funds | H122: Total
A123: Evaluation Fee's | F123: 33733 | G123: 0 | H123: =SUM(F123:G123) -> 33733
A124: TOTAL | F124: =SUM(F123:F123) -> 33733 | G124: =SUM(G123:G123) -> 0 | H124: =SUM(F124:G124) -> 33733
A126: Project Evaluation Narrative:
A127: Year 1 planning and setup including co-development of the evaluation plan, less involved planning and setup in years 2 and 3, annual summative and formative evaluation efforts, annual BSCC quarterly reports, meeting attendance, and drafting of the evaluation section of the final report.
A130: MOD x APPROVAL DATE:
A133: 8. Other (Travel, Training, etc.)
A134: Description | C134: Calculation for Expense | F134: Grant Funds | G134: Match Funds | H134: Total
A135: Cell phone stipend | C135: Stephanie & Jennifer | F135: 239 | G135: 0 | H135: =SUM(F135:G135) -> 239
A136: Cell phone stipend | C136: Average (Rhonda, Stephanie & Christina) | F136: 0 | G136: 629 | H136: 629
A137: Other Operational | C137: Materials | F137: 6386 | G137: 0 | H137: 6386
A138: TOTAL | F138: =SUM(F135:F137) -> 6625 | G138: =SUM(G135:G137) -> 629 | H138: 7254
A140: Other (Travel, Training, etc.) Narrative:
A141: Grant funds will be used to compensate for partial cell phone stipends, materials for training, and mileage reimbursement for CBOs.
A143: MOD x APPROVAL DATE:
A146: 9. Indirect Costs
A147: Indirect costs may be charged by choosing only one of options 1) or 2) listed below. | F147: Grant Funds | G147: Match Funds | H147: Total
A148: 1. Indirect costs will be charged as 10% of total direct salaries and wages, not to exceed: | E148: =SUM(G25)*10% -> 24937.1 | F148: 5421 | G148: 0 | H148: =SUM(F148:G148) -> 5421
A149: 2. Indirect costs will be charged as 5% of direct total direct project costs (excluding equipment) not to exceed: | E149: =SUM(G138,G124,G113,G83,G68,G57,G25)*5% -> 12500 | F149: 0 | G149: 0 | H149: =SUM(F149:G149) -> 0
A150: If the amount entered turns red, adjust it to not exceed the maximum noted above: TOTAL | F150: =SUM(F148:F149) -> 5421 | G150: =SUM(G148:G149) -> 0 | H150: =SUM(H148:H149) -> 5421
A152: Indirect Costs Narrative:
A155: MOD x APPROVAL DATE:

Sheet INVOICE DUE DATES
A1: Invoice # | B1: Reporting Period | C1: Due Date
A2: Invoice 1 | B2: July 1, 2019 to September 30, 2019 | C2: 2019-11-14
A3: Invoice 2 | B3: October 1, 2019 to December 31, 2019 | C3: 2020-02-14
A4: Invoice 3 | B4: January 1, 2020 to March 31, 2020 | C4: 2020-05-15
A5: Invoice 4 | B5: April 1, 2020 to June 30, 2020 | C5: 2020-08-14
A6: Invoice 5 | B6: July 1, 2020 to September 30, 2020 | C6: 2020-11-16
A7: Invoice 6 | B7: October 1, 2020 to December 31, 2020 | C7: 2021-02-15
A8: Invoice 7 | B8: January 1, 2021 to March 31, 2021 | C8: 2021-05-17
A9: Invoice 8 | B9: April 1, 2021 to June 30, 2021 | C9: 2021-08-16
A10: Invoice 9 | B10: July 1, 2021 to September 30, 2021 | C10: 2021-11-15
A11: Invoice 10 | B11: October 1, 2021 to December 31, 2021 | C11: 2022-02-14
A12: Invoice 11 | B12: January 1, 2022 to March 31, 2022 | C12: 2022-05-16
A13: Invoice 12 | B13: April 1, 2022 to June 30, 2022 | C13: 2022-08-15
A14: Invoice 13 | B14: July 1, 2022 to September 30, 2022 | C14: 2022-11-14
A15: Invoice 14 | B15: October 1, 2022 to December 31, 2022 | C15: 2023-02-14
A16: Invoice 15 | B16: January 1, 2023 to February 28, 2023 | C16: 2023-04-14

Sheet INSTRUCTIONS
A1: Invoice Workbook
A3: How to Locate the Invoice Workbook
A4: Invoice workbooks are located on the Board of State and Community Corrections (BSCC) website under the Corrections Planning and Grant Programs Division (CPGP) webpage: http://www.bscc.ca.gov/s_correctionsplanningandprograms/.
A6: On the CPGP webpage, locate the CPGP Quick Links and select Grantee Invoicing.
A8: Invoice Workbooks are located under the respective grantee program (e.g., California Violence Intervention and Prevention, Edward Byrne Memorial Justice Assistance Grant, Law Enforcement Assisted Diversion, Proposition 47, etc.).
A10: How to Save the Invoice Workbook
A11: Right click on the file and select Save Link as. This will navigate the grantee to their computer files. The grantee shall navigate to a folder where they would like to save their Invoice Workbook. Do not rename the file.
A13: The grantee should then exit the web browser and work directly from the saved file.
A15: Prior to each reporting period, it is the grantee’s responsibility to download and save the Invoice Workbook to their local computer. This will ensure the most current budget information is being used in the Invoice Workbook.
A17: Forms Included in the Invoice Workbook
A18: The Invoice Workbook is an Excel file arranged by worksheet tabs (located along the bottom). The tabs included in the Invoice workbook are listed below:
A19:  Invoice (Form BSCC 201) for each reporting period;
A20:  Advance Payment (Form BSCC 201) for each of three advance disbursements;
A21:  Modification Request (Form BSCC 223.1 Rev 4/20);
A22:  Project Budget Narrative
A23:  Invoice Due Dates
A24:  Instructions.
A26: Passwords and Formulas in the Invoice Workbook
A27: Each time the grantee opens the Invoice workbook, they will be prompted to enter a password. The password is the grant agreement number (e.g. 990-19, include the -, do not include BSCC).
A29: The Invoice Workbook has specific functions which require macros to be enabled. A macro is a series of commands, such as calculations, that are stored within the document for tasks performed repeatedly. In most cases, Excel will prompt the grantee to enable macros. When this prompt appears, select Enable Editing then Enable Content. Enabling macros for the Invoice Workbook will not compromise the security of the local system nor the security of the agency's network.
A32: Financial Invoice - Form BSCC 201
A34: How to Complete a Financial Invoice
A35: Each Financial Invoice has a separate workbook tab titled, INVOICE #. The Financial Invoice will allow grantees to enter data into the green-shaded fields; all other fields are locked.
A37: The following instructions are for the green-shaded fields the Invoice to be completed by the Grantee.
A39: THIS REPORTING PERIOD
A40: The grantee shall enter the line item expenditures and match contributions incurred during the reporting period.
A41: All expenditures should be rounded to the nearest whole dollar; do not enter decimals.
A42: If an amount entered into a cell is greater than the available balance, an Invalid Dollar error message will appear. If the error is typographical, select Retry and enter the correct amount. If the amount entered is correct, however greater than the available balance, select Cancel and submit a Budget Modification. See, Budget Modification details below.
A44: EXPENDITURE DESCRIPTION
A45: For each dollar amount entered as an expenditure, enter a brief but detailed description. Your expenditures should correlate to Project Budget Narrative, which is listed on its own tab along with approved modification requests.
A47: PERSON PREPARING REPORT
A48: The grantee will designate an individual to prepare invoices. The Authorized Financial Officer cannot prepare invoices.
A49: The individual who prepares invoices will provide their contact information and the date the invoice was prepared under the PERSON PREPARING REPORT section. Then, forward the Invoice Workbook to the Authorized Financial Officer for review and approval.
A51: AUTHORIZED FINANCIAL OFFICER
A52: The Authorized Financial Officer is the Financial Officer listed in the Grant Agreement, STD 213 and/or Grantee Contact Information Sheet, Form 227.
A53: The Authorized Financial Officer cannot be the Project Director or the individual preparing the invoice.
A54: The Authorized Financial Officer must review each line item expenditure and description. Then, approve the invoice by checking the certification box and providing their contact information and the date of approval.
A55: Once the invoice is approved, the Authorized Financial Officer shall email the Invoice Workbook to the any grant inbox: anygrant@bscc.ca.gov. The Authorized Financial Officer is the only authorized party to submit an Invoice Workbook to the BSCC.
A56: Approved Financial Invoice
A57: Once BSCC staff reviews and approves the Financial Invoice, an updated Invoice Workbook will be available on the BSCC website. All approved Financial Invoices will be locked from editing but will be viewable in the Invoice Workbook.
A59: Advance Payment Invoice – Form 201A
A61: How to Complete the Advance Payment Invoice
A62: Each Advance Payment Invoice has a separate workbook tab titled, # ADVANCE PAYMENT. The Advance Payment Invoice will allow grantees to enter data into the green shaded fields; all other fields are locked.
A63: To complete the Advance Payment form, grantees must complete the following:
A64:  Idenitfy the effective invoice
A65:  Idenitfy the person preparing the report
A66:  Complete the information and signature for the Authorized Financial Officer.
A67: Advance Disbursement Details
A68: Grantees will receive three advance payments throughout the life of the grant agreement. Each advance payment will be one-third of the total grant award.
A69: Eight percent of the total advance disbursement must be expended prior to requesting the next advance payment.
A70: Approved Advance Payment Invoice
A71: Once BSCC staff reviews and approves the Advance Payment Invoice, the updated Invoice Workbook will be emailed to the Authorized Financial Officer and the individual that prepared the report. All approved Advance Payment Invoices will be locked from editing but will be viewable in the Invoice Workbook.
A73: Modification Request - Form BSCC 223.1
A75: Modification Request Requirements
A76: It is the grantees responsibility to receive prior approval from the Field Representative for modifications to the budget or budget narrative. Once the Field Representative approves a modification to the budget or budget narrative, the grantee may complete and submit a Modification Request.
A77: The Modification Request Form allows the grantee to:  Make a change within a line-item change that modifies the grant project narrative, but does not change the total dollar amount of the line item.  Modify the budget by moving funds from one line item to another; or  Allocate earned project income
A79: The grantee must allow a minimum of 10 working days, for the modification form to be submitted and approved by the BSCC prior to completing the next invoice.
A81: How to Complete a Modification Request
A82: Grantees can access the Modification Request form by selecting the tab titled, MODIFICATION REQUEST. For the Modification Request form, grantees can enter data into the yellow-shaded fields; all other fields are locked. First, the grantee must select the purpose of the modification by checking the appropriate box in the yellow section at the top of the form.
A84: The following instructions are for the yellow-shaded fields in the Modification Request to be completed by the Grantee.
A86: Modification Request # and Effective on Invoice #
A87: The grantee shall identify the budget modification number by selecting the next number in sequential order (1 if it's the first) and then identify on which invoice the modification becomes effective.
A89: CHANGES (+/-) and JUSTIFICATION FOR MODIFIED BUDGET
A90: Line-item changes - Complete only the JUSTIFICATION FOR MODIFICATION section below the budget table. The justification must: list the affected line-item(s), detail how the original budget narrative has changed, and explain why the change is necessary. Line-item changes do not change the budget $$. Budget modifications - complete the CHANGES (+/-) section by using a + (plus symbol) followed by a whole dollar amount in the line item that is increasing and using a - (minus symbol) followed by a whole dollar amount in the line item that is decreasing. The TOTAL line must show zeros. In addition, complete the JUSTIFICATION FOR MODIFICATION section. The justification must: list the affected line-item(s), detail how the original budget narrative has changed, and explain why the change is necessary Project Income Allocation - use the Grant Funds column in the CHANGES (+/-) to show how the income will be allocated across line-items. In the Total Allocating box on the Project Income line copy the amount shown in the TOTAL line of Grant Funds column. In addition, complete the JUSTIFICATION FOR MODIFICATION section. The justification must: list the affected line-item(s) and provide narrative detail about how the project income will be used to advance program objectives. (See Grant Administration Guide, Section 13, Project and Other Income)
A92: PERSON PREPARING REPORT
A93: The grantee will designate an individual to prepare Modification Requests. The Authorized Financial Officer cannot prepare Modification Requests.
A94: The individual who prepares the request will provide their contact information and the date the modification was prepared under the PERSON PREPARING REPORT section. Then, forward the Invoice Workbook to the Authorized Financial Officer for review and approval.
A96: AUTHORIZED FINANCIAL OFFICER
A97: The Authorized Financial Officer is the Financial Officer listed in the Grant Agreement, STD 213 and/or Grantee Contact Information Sheet, Form 227.
A98: The Authorized Financial Officer cannot be the Project Director or the individual preparing the modification request.
A99: The Authorized Financial Officer must review each line item change, narrative change and justifications. Then, approve the modification request by checking the certification box and providing their contact information and the date of approval.
A100: Once the modification request is approved, the Authorized Financial Officer shall email the Invoice Workbook to the any grant inbox: anygrant@bscc.ca.gov. The Authorized Financial Officer is the only authorized party to submit it an Invoice Workbook to the BSCC.
A102: Approved Modification Request
A103: Once BSCC staff reviews and approves the Modification Request, the updated Invoice Workbook will be emailed to the Authorized Financial Officer and the individual who prepared the re quest. All approved modifications will be locked from editing but will be viewable in the Invoice Workbook.
